{"text_format":"1","workbook":"xlsx","n_sheets":10,"sheets":["→調査票","就労移行支援事業所用","就労継続支援A型事業所用","就労継続支援B型事業所用","問6・7 別添","→集計表","【集計表】 (移行支援)","【集計表】 (継続A型)","【集計表】 (継続B型)","送迎（集計表）"],"not_rendered":{"charts":0,"images":0,"macros":0,"external_links":5,"defined_names":67,"comments":0,"pivot_tables":0},"unopened":[],"bounds":{"document_bytes":16777216,"sheet_cells":100000,"rows_first":2000,"rows_last":500,"rows_between":2000,"halvings":0,"cell_chars":16384,"cell_head_chars":4096},"cells_cut":0,"cells_raw":0,"read":"whole","date_system":"1900"}

{"sheet":"→調査票","index":0,"n_rows":0,"n_cols":0,"rows_kept":0,"cut":false,"hidden":false,"merged":[]}

{"sheet":"就労移行支援事業所用","index":1,"n_rows":524,"n_cols":18,"rows_kept":524,"cut":false,"hidden":false,"merged":[[480,5,480,16],[488,5,489,16],[513,5,514,17],[417,5,418,17],[363,5,364,16],[380,5,382,16],[389,5,391,16],[402,5,404,16],[415,5,416,16],[428,5,428,16],[446,5,448,16],[456,5,458,16],[492,6,492,7],[492,8,492,9],[492,11,492,12],[483,6,483,7],[483,8,483,9],[490,6,491,7],[490,8,490,10],[491,11,491,13],[494,6,507,9],[481,6,482,16],[472,6,472,7],[472,8,472,9],[318,5,321,16],[347,5,348,16],[351,5,353,16],[349,6,350,16],[237,6,238,16],[298,6,298,7],[299,6,299,7],[300,6,300,7],[303,6,315,9],[295,6,297,7],[295,8,295,9],[295,10,295,11],[296,10,296,13],[296,14,297,15],[297,12,297,13],[268,12,268,13],[269,6,269,7],[270,6,270,7],[271,6,271,7],[273,6,285,9],[292,6,293,16],[242,6,242,7],[243,6,243,7],[244,6,244,7],[472,11,472,12],[474,8,474,10],[475,11,475,13],[476,6,476,7],[476,8,476,9],[476,11,476,12],[465,6,465,7],[465,8,465,9],[465,11,465,12],[470,8,470,10],[471,11,471,13],[460,11,460,13],[461,6,461,7],[461,8,461,9],[461,11,461,12],[463,8,463,10],[464,11,464,13],[467,5,469,16],[451,6,451,7],[451,9,451,10],[452,9,452,10],[453,9,453,10],[459,8,459,10],[430,6,430,7],[430,8,430,9],[432,6,443,9],[449,6,450,8],[449,9,449,11],[450,12,450,13],[450,14,450,15],[419,8,419,10],[420,11,420,13],[421,6,421,7],[421,8,421,9],[421,11,421,12],[407,6,407,7],[407,8,407,9],[407,11,407,12],[409,8,409,10],[410,11,410,13],[411,6,411,7],[411,8,411,9],[411,11,411,12],[398,6,398,7],[398,8,398,9],[398,11,398,12],[405,8,405,10],[406,11,406,13],[393,11,393,13],[394,6,394,7],[394,8,394,9],[394,11,394,12],[396,8,396,10],[397,11,397,13],[385,6,385,7],[385,9,385,10],[386,9,386,10],[387,9,387,10],[392,8,392,10],[365,6,365,7],[365,8,365,9],[367,6,377,9],[383,6,384,8],[383,9,383,11],[384,12,384,13],[384,14,384,15],[360,8,360,10],[360,11,360,13],[361,6,361,7],[361,8,361,9],[361,11,361,12],[356,8,356,10],[357,11,357,13],[357,14,357,16],[358,6,358,7],[358,8,358,9],[358,11,358,12],[358,14,358,15],[354,6,355,16],[324,12,324,13],[325,6,325,7],[326,6,326,7],[327,6,327,7],[329,6,341,9],[322,6,324,7],[322,8,322,9],[322,10,322,11],[323,10,323,13],[323,14,324,15],[246,6,258,9],[266,6,268,7],[266,8,266,9],[266,10,266,11],[267,10,267,13],[267,14,268,15],[261,5,264,16],[288,5,291,16],[170,5,171,16],[183,5,183,16],[174,9,174,10],[174,11,174,12],[174,13,174,14],[185,7,185,8],[186,9,186,10],[186,11,186,12],[186,13,186,14],[186,15,186,16],[223,13,228,17],[145,7,145,8],[145,9,145,10],[145,11,145,12],[145,13,145,14],[154,6,167,9],[136,6,137,6],[239,6,241,7],[239,8,239,9],[239,10,239,11],[240,10,240,13],[240,14,241,15],[241,12,241,13],[221,6,222,6],[221,7,221,8],[222,9,222,10],[222,11,222,12],[218,5,219,16],[233,5,236,16],[194,7,194,8],[194,9,194,10],[194,11,194,12],[194,13,194,14],[194,15,194,16],[203,6,216,9],[136,7,136,8],[137,9,137,10],[137,11,137,12],[137,13,137,14],[116,6,116,7],[117,6,117,7],[121,7,121,8],[61,6,62,16],[101,6,102,6],[101,7,101,8],[102,9,102,10],[102,11,102,12],[72,6,73,8],[97,5,98,16],[132,5,133,16],[137,15,137,16],[134,5,134,16],[113,6,113,7],[114,6,114,7],[115,6,115,7],[115,10,117,16],[1,12,2,13],[47,6,47,7],[47,8,47,11],[44,6,45,16],[7,5,7,17],[11,6,11,16],[15,6,16,16],[18,6,19,16],[23,6,25,16],[31,6,32,16],[42,5,43,17],[234,1,236,3],[289,1,291,3],[348,1,350,3],[1,14,2,17],[478,5,479,16],[48,6,48,7],[48,8,48,11],[49,6,49,7],[49,8,49,11],[50,8,50,11],[51,6,51,7],[51,8,51,11],[55,6,55,7],[55,8,55,11],[56,6,56,7],[56,8,56,11],[57,6,57,7],[57,8,57,11],[52,6,52,7],[52,8,52,11],[53,6,53,7],[53,8,53,11],[54,6,54,7],[54,8,54,11]]}
[]
[null,null,null,null,null,null,null,null,null,null,null,null,"整理番号"]
[]
[]
[]
[]
[]
[null,null,null,null,null,"「就労移行支援」事業を行う事業所における調査票"]
[]
[]
[null,null,null,null,null,null,"○　このシートは、就労移行支援事業における調査票となっております。"]
[null,null,null,null,null,null,"　　 就労継続支援Ａ型事業、就労継続支援Ｂ型事業を行っている事業所は、それぞれの事業におけるシートに記入して下さい。"]
[]
[null,null,null,null,null,null," 　　また、法人で複数の事業を実施している場合及び多機能型事業所の場合、それぞれの事業毎に調査票を作成して下さい。"]
[]
[null,null,null,null,null,null,"　　（例）　「就労移行支援」と「就労継続支援Ｂ型」の多機能型である場合、「就労移行支援事業所用」のシートと「就労継続支\n　　　　　　　援Ｂ型事業所用」のシートで計２つの調査票が必要となります。"]
[]
[]
[null,null,null,null,null,null,"○　数字入力欄は必ず半角数字で入力して下さい。また、シートの行と列の追加・削除はせず、文字量が多くて枠内に表示\n　されない場合でも、そのまま入力して下さい（枠を広げたりしないで下さい）。"]
[]
[]
[]
[]
[null,null,null,null,null,null,"○　調査対象は、平成２９年４月１日時点で、就労移行支援、就労継続支援Ａ型、就労継続支援Ｂ型の指定を受けている\n　事業所（平成２９年４月１日時点で当該サービスを休止・廃止の事業所は除く。また、平成２８年４月１日以降に新設された\n　事業所は除く。）となります。"]
[]
[]
[]
[null,null,null,null,null,null,"○　主たる事業所と従たる事業所がある場合は、主たる事業所において調査票を１枚に集約して下さい。"]
[]
[null,null,null,null,null,null,"○　障害別の調査について、重複して該当する場合、主な障害を選択して下さい（複数回答不可）。"]
[]
[null,null,null,null,null,null,"○　５．～７．の調査票の記載は、社会福祉法人会計基準をもとに作成しています。他の会計基準で決算関係書類を作成\n　している場合、以下のように読み替えて記入して下さい。"]
[]
[]
[null,null,null,null,null,null,"例）社会福祉法人会計の　「サービス活動収益・費用」　と　「特別収益・費用」　を求める場合"]
[null,null,null,null,null,null,"　　・病院会計　→　「医業・介護外収益・費用」　と　「臨時収益・費用」　を記入"]
[null,null,null,null,null,null,"　　・企業会計、ＮＰＯ法人会計など　→　「営業外収益・費用」　と　「特別収益・費用」　を記入"]
[]
[null,null,null,null,null,null,"○　各項目の金額は、消費税込みで記入して下さい。"]
[]
[]
[]
[null,null,null,null,null,"　平成28年３月31日時点の事業所の所在地（都道府県名、市区町村名）、法人名、事業所名、事業所番号、事業開始時期、連絡先を記入して下さい。また、経営主体は右欄から選択し番号を記入して下さい。"]
[]
[null,null,null,null,null,null,"○　多機能型事業所で就労継続支援Ａ型、就労継続支援Ｂ型の事業を行っている場合、同事業のシートと\n　同じ事項を入力して下さい。"]
[]
[]
["１　国",null,null,null,null,null,"都道府県名",null,"○○県",null,null,null,null,"１　国"]
["２　地方公共団体",null,null,null,null,null,"市区町村名",null,"○○市",null,null,null,null,"２　地方公共団体"]
["３　社会福祉協議会",null,null,null,null,null,"法人名",null,null,null,null,null,null,"３　社会福祉協議会"]
["４　社会福祉法人",null,null,null,null,null,null,"経営主体",null,null,null,null,null,"４　社会福祉法人"]
["５　医療法人",null,null,null,null,null,"事業所名",null,"○○○○○",null,null,null,null,"５　医療法人"]
["６　公益法人",null,null,null,null,null,"事業所番号",null,"○○○○○",null,null,null,null,"６　公益法人"]
["７　共同組合",null,null,null,null,null,"事業開始時期",null,"H○年○月○日",null,null,null,null,"７　共同組合"]
["８　営利法人",null,null,null,null,null,"電話番号",null,"00-000-0000",null,null,null,null,"８　営利法人"]
["９　特定非営利活動法人",null,null,null,null,null,"E-mail",null,"○○○○○＠○○○",null,null,null,null,"９　特定非営利活動法人"]
["10　その他",null,null,null,null,null,"FAX",null,"00-000-0000",null,null,null,null,"10　その他"]
[null,null,null,null,null,null,"ご担当者氏名",null,"○○　○○"]
[]
[]
[null,null,null,null,null,"（調査目的）"]
[null,null,null,null,null,null,"　就労移行支援、就労継続支援Ａ型、就労継続支援Ｂ型事業所を経営されている事業所の運営実態を調査し、サービスの提供状況を把握するための基礎資料を得ることを目的としています。"]
[]
[]
[null,null,null,null,null,"（記載要領）"]
[null,null,null,null,null,null,"　着色セルに入力する形で、調査にご協力ください。"]
[]
[null,null,null,null,null,"（調査項目）"]
[null,null,null,null,null,"１．実施状況等について"]
[null,null,null,null,null,"（１）平成28年３月31日時点で実施している事業を右欄より選択し、番号を記入して下さい。"]
[]
["１",null,null,null,null,null,"事業実施の種類",null,"１",null,"１　就労移行支援"]
["２",null,null,null,null,null,"※　既定値として「１」を\n　入力しています。",null,null,null,"２　就労継続支援Ａ型"]
["３",null,null,null,null,null,null,null,null,null,"３　就労継続支援Ｂ型"]
[]
[]
[]
[]
[null,null,null,null,null,"（２）平成28年３月31日時点の事業の実施形態を右欄より選択し、番号を記入して下さい。"]
["１"]
["２",null,null,null,null,null,"事業の実施形態",null,null,null,"１　単独実施"]
[null,null,null,null,null,null,null,null,null,null,"２　多機能型実施"]
[]
[]
[]
[]
[]
[]
[]
[]
[]
[null,null,null,null,null,"２．定員数・利用者数について"]
[null,null,null,null,null,"（１）　平成28年３月31日時点の定員数を記入して下さい。"]
[]
[null,null,null,null,null,null,"定員数",null,"人"]
[]
[]
[null,null,null,null,null,"（２）　平成28年３月31日時点の利用者数（利用契約を締結している者の人数）について、障害支援区分\n　　　の有無別で、障害種別毎に記入して下さい。"]
[]
[null,null,null,null,null,null,"※　就労アセスメント対象者は除く。"]
[]
[null,null,null,null,null,null,"種別","利用者数"]
[null,null,null,null,null,null,null,null,null,"①障害支援区分有り",null,"②障害支援区分無し"]
[null,null,null,null,null,null,"身体障害",{"$f":"SUM(J104,L104)","v":0},"人",null,"人",null,"人"]
[null,null,null,null,null,null,"知的障害",{"$f":"SUM(J105,L105)","v":0},"人",null,"人",null,"人"]
[null,null,null,null,null,null,"精神障害",0,"人",null,"人",null,"人"]
[null,null,null,null,null,null,"難病等",0,"人",null,"人",null,"人"]
[null,null,null,null,null,null,"障害児",0,"人",null,"人",null,"人"]
[null,null,null,null,null,null,"合計",{"$f":"SUM(H104:H108)","v":0},"人",{"$f":"SUM(J104:J108)","v":0},"人",{"$f":"SUM(L104:L108)","v":0},"人"]
[]
[]
[null,null,null,null,null,"（３）　２．（２）で記入した利用者数のうち障害基礎年金受給者数を記入して下さい。"]
[]
[null,null,null,null,null,null,"障害基礎年金（１級）",null,null,"人"]
[null,null,null,null,null,null,"障害基礎年金（２級）",null,null,"人"]
[null,null,null,null,null,null,"受給無し",null,null,"人","※「障害基礎年金受給者数の合計」が赤いセルとなる場合、\n　　２．（２）と人数が合致していません。\n　　再度ご確認をお願いします。"]
[null,null,null,null,null,null,"不明",null,null,"人"]
[null,null,null,null,null,null,"合計",null,{"$f":"SUM(I114:I117)","v":0},"人"]
[]
[null,null,null,null,null,"（４）　平成28年３月31日時点の利用者実人数を障害種別毎に記入して下さい。"]
[]
[null,null,null,null,null,null,"種別","利用者数計"]
[null,null,null,null,null,null,"身体障害",null,"人"]
[null,null,null,null,null,null,"知的障害",null,"人"]
[null,null,null,null,null,null,"精神障害",null,"人"]
[null,null,null,null,null,null,"難病等",null,"人"]
[null,null,null,null,null,null,"障害児",null,"人"]
[null,null,null,null,null,null,"合計",{"$f":"SUM(H123:H127)","v":0},"人"]
[]
[]
[]
[]
[null,null,null,null,null,"３．入所前の状況、退所理由及び就職者の状況等について\n　　（平成27年度：平成27年４月１日～平成28年３月31日）"]
[]
[null,null,null,null,null,"（１）　平成27年度中に利用を開始した者の入所前の状況について、障害種別毎に人数を記入して下さい。"]
[]
[null,null,null,null,null,null,"種別","利用開始者数"]
[null,null,null,null,null,null,null,null,null,"①在宅（障害福祉サービス等の利用無し）・一般就労",null,"②特別支援学校（普通学校の特別支援学級含む）",null,"③普通学校",null,"④他の就労移行支援"]
[null,null,null,null,null,null,"身体障害",{"$f":"SUM(J139,L139,N139,P139,H147,J147,L147,N147)","v":0},"人",null,"人",null,"人",null,"人",null,"人"]
[null,null,null,null,null,null,"知的障害",{"$f":"SUM(J140,L140,N140,P140,H148,J148,L148,N148)","v":0},"人",null,"人",null,"人",null,"人",null,"人"]
[null,null,null,null,null,null,"精神障害",0,"人",null,"人",null,"人",null,"人",null,"人"]
[null,null,null,null,null,null,"難病等",0,"人",null,"人",null,"人",null,"人",null,"人"]
[null,null,null,null,null,null,"障害児",0,"人",null,"人",null,"人",null,"人",null,"人"]
[null,null,null,null,null,null,"合計",{"$f":"SUM(H139:H143)","v":0},"人",{"$f":"SUM(J139:J143)","v":0},"人",{"$f":"SUM(L139:L143)","v":0},"人",{"$f":"SUM(N139:N143)","v":0},"人",{"$f":"SUM(P139:P143)","v":0},"人"]
[]
[null,null,null,null,null,null,"種別","⑤他の就労継続支援Ａ型",null,"⑥他の就労継続支援Ｂ型",null,"⑦生活介護",null,"⑧他の障害福祉サービス等"]
[null,null,null,null,null,null,"身体障害",null,"人",null,"人",null,"人",null,"人"]
[null,null,null,null,null,null,"知的障害",null,"人",null,"人",null,"人",null,"人"]
[null,null,null,null,null,null,"精神障害",null,"人",null,"人",null,"人",null,"人"]
[null,null,null,null,null,null,"難病等",null,"人",null,"人",null,"人",null,"人"]
[null,null,null,null,null,null,"障害児",null,"人",null,"人",null,"人",null,"人"]
[null,null,null,null,null,null,"合計",{"$f":"SUM(H147:H151)","v":0},"人",{"$f":"SUM(J147:J151)","v":0},"人",{"$f":"SUM(L147:L151)","v":0},"人",{"$f":"SUM(N147:N151)","v":0},"人"]
[]
[]
[null,null,null,null,null,null,"例）調査対象が「Ｄ事業所」のような多機能型事業所で、調査対象が「就労移行支援」の場合\n\n→同一法人内のＣ事業所で「就労移行支援」を利用していたが、Ｄ事業所の就労移行支援の利用を始めた場合は「④他の就労移行支援」。\n\n→多機能型事業所であるＤ事業所内の「就労継続支援Ａ型」を利用していたが、Ｄ事業所内の「就労移行支援」の利用を始めた場合は「⑤他の就労継続支援Ａ型」。"]
[]
[]
[]
[]
[]
[]
[]
[]
[]
[]
[]
[]
[]
[]
[]
[null,null,null,null,null,"（２）　３．（１）の利用開始者数のうち、一般就労の経験が有る利用者の雇用形態について、障害種別\n　　　毎に人数を記入して下さい。"]
[]
[]
[null,null,null,null,null,null,"種別","一般就労の経験が有る利用者数"]
[null,null,null,null,null,null,null,null,null,"①障害者雇用枠",null,"②それ以外の雇用",null,"③どちらも経験有り"]
[null,null,null,null,null,null,"身体障害",{"$f":"SUM(J176,L176,N176,)","v":0},"人",null,"人",null,"人",null,"人"]
[null,null,null,null,null,null,"知的障害",{"$f":"SUM(J177,L177,N177,)","v":0},"人",null,"人",null,"人",null,"人"]
[null,null,null,null,null,null,"精神障害",0,"人",null,"人",null,"人",null,"人"]
[null,null,null,null,null,null,"難病等",0,"人",null,"人",null,"人",null,"人"]
[null,null,null,null,null,null,"障害児",0,"人",null,"人",null,"人",null,"人"]
[null,null,null,null,null,null,"合計",{"$f":"SUM(H176:H180)","v":0},"人",{"$f":"SUM(J176:J180)","v":0},"人",{"$f":"SUM(L176:L180)","v":0},"人",{"$f":"SUM(N176:N180)","v":0},"人"]
[]
[]
[null,null,null,null,null,"（３）　平成27年度中に利用を終了した者の退所理由について、障害種別毎に人数を記入して下さい。"]
[]
[null,null,null,null,null,null,"種別","利用終了者数計"]
[null,null,null,null,null,null,null,null,null,"①就職・正規雇用（Ａ型除く）",null,"②就職・非正規雇用（Ａ型除く）",null,"③就労移行支援へ転所",null,"④就労継続支援Ａ型へ転所"]
[null,null,null,null,null,null,"身体障害",{"$f":"SUM(J188,L188,N188,P188,H196,J196,L196,N196,P196)","v":0},"人",null,"人",null,"人",null,"人",null,"人"]
[null,null,null,null,null,null,"知的障害",{"$f":"SUM(J189,L189,N189,P189,H197,J197,L197,N197,P197)","v":0},"人",null,"人",null,"人",null,"人",null,"人"]
[null,null,null,null,null,null,"精神障害",{"$f":"SUM(J190,L190,N190,P190,H198,J198,L198,N198,P198)","v":0},"人",null,"人",null,"人",null,"人",null,"人"]
[null,null,null,null,null,null,"難病等",{"$f":"SUM(J191,L191,N191,P191,H199,J199,L199,N199,P199)","v":0},"人",null,"人",null,"人",null,"人",null,"人"]
[null,null,null,null,null,null,"障害児",{"$f":"SUM(J192,L192,N192,P192,H200,J200,L200,N200,P200)","v":0},"人",null,"人",null,"人",null,"人",null,"人"]
[null,null,null,null,null,null,"合計",{"$f":"SUM(H188:H192)","v":0},"人",{"$f":"SUM(J188:J192)","v":0},"人",{"$f":"SUM(L188:L192)","v":0},"人",{"$f":"SUM(N188:N192)","v":0},"人",{"$f":"SUM(P188:P192)","v":0},"人"]
[]
[null,null,null,null,null,null,"種別","⑤就労継続支援Ｂ型へ転所",null,"⑥生活介護へ転所",null,"⑦その他の障害福祉サービス等へ転所",null,"⑧期間満了のため退所（移行支援）",null,"⑨その他（①～⑧のいずれにも該当しないもの）"]
[null,null,null,null,null,null,"身体障害",null,"人",null,"人",null,"人",null,"人",null,"人"]
[null,null,null,null,null,null,"知的障害",null,"人",null,"人",null,"人",null,"人",null,"人"]
[null,null,null,null,null,null,"精神障害",null,"人",null,"人",null,"人",null,"人",null,"人"]
[null,null,null,null,null,null,"難病等",null,"人",null,"人",null,"人",null,"人",null,"人"]
[null,null,null,null,null,null,"障害児",null,"人",null,"人",null,"人",null,"人",null,"人"]
[null,null,null,null,null,null,"合計",{"$f":"SUM(H196:H200)","v":0},"人",{"$f":"SUM(J196:J200)","v":0},"人",{"$f":"SUM(L196:L200)","v":0},"人",{"$f":"SUM(N196:N200)","v":0},"人",{"$f":"SUM(P196:P200)","v":0},"人"]
[]
[]
[null,null,null,null,null,null,"例）調査対象が「Ｄ事業所」のような多機能型事業所で、調査対象が「就労移行支援」の場合\n\n→D事業所の就労移行支援を利用していた者が同一法人内のＣ事業所で「就労移行支援」の利用を始めた場合は「③就労移行支援へ転所」。\n\n→多機能型事業所である「Ｄ事業所」の就労移行支援を利用していた者が同一事業所内で「就労継続支援Ａ型」の利用を始めた場合は「④就労継続支援Ａ型へ転所」。"]
[]
[]
[]
[]
[]
[]
[]
[]
[]
[]
[]
[]
[]
[]
[null,null,null,null,null,"（４）　３．（３）で「就職・正規雇用（Ａ型除く）」、「就職・非正規雇用（Ａ型除く）」と記入した\n　　　利用者の雇用形態について、障害種別毎に人数を記入して下さい。"]
[]
[]
[null,null,null,null,null,null,"種別","就職者数"]
[null,null,null,null,null,null,null,null,null,"①障害者雇用枠",null,"②それ以外の雇用"]
[null,null,null,null,null,null,"身体障害",{"$f":"SUM(J224,L224)","v":0},"人",null,"人",null,"人","※　各種別の「就職者数の合計」が\n　赤いセルとなる場合、３．（３）の\n　①～②と人数が合致していません。\n　再度ご確認をお願いします。"]
[null,null,null,null,null,null,"知的障害",{"$f":"SUM(J225,L225)","v":0},"人",null,"人",null,"人"]
[null,null,null,null,null,null,"精神障害",0,"人",null,"人",null,"人"]
[null,null,null,null,null,null,"難病等",0,"人",null,"人",null,"人"]
[null,null,null,null,null,null,"障害児",0,"人",null,"人",null,"人"]
[null,null,null,null,null,null,"合計",{"$f":"SUM(H224:H228)","v":0},"人",{"$f":"SUM(J224:J228)","v":0},"人",{"$f":"SUM(L224:L228)","v":0},"人"]
[]
[]
[]
[null,null,null,null,null,"４．職員について"]
[null,null,null,null,null,"（１）　平成28年３月31日時点の事業所全体における障害福祉サービス等事業に従事する常勤職員、\n　　　非常勤職員の実人数を記入して下さい。実人数は、指導員等（職業指導員、生活支援員、就労支援\n　　　員、サービス管理責任者等）とその他の職員に分けて記入して下さい。また、指導員等のうち、\n　　　障害福祉サービス等以外の営利企業で経験がある者の人数を記入して下さい。"]
[null,"他の事業シートと不一致の場合は、\n下記に「×」が表示されます。"]
[]
[]
[null,null,"就労Ａ","就労Ｂ",null,null,"○　多機能型事業所で就労継続支援Ａ型、就労継続支援Ｂ型の事業を行っている場合、同事業の\n　シートと同じ数値が入ります。（C・D列を確認してください。）"]
[null,"常勤",{"$f":"IF(就労継続支援A型事業所用!$I$81=\"\",\"\",IF(I243=就労継続支援A型事業所用!I243,\"〇\",\"×\"))","v":""},{"$f":"IF(就労継続支援B型事業所用!I81=\"\",\"\",IF(I243=就労継続支援B型事業所用!I243,\"〇\",\"×\"))","v":""}]
[null,"非常勤",{"$f":"IF(就労継続支援A型事業所用!I81=\"\",\"\",IF(I244=就労継続支援A型事業所用!I244,\"〇\",\"×\"))","v":""},{"$f":"IF(就労継続支援B型事業所用!I81=\"\",\"\",IF(I244=就労継続支援B型事業所用!I244,\"〇\",\"×\"))","v":""},null,null,"区分",null,"実人数"]
[null,null,null,null,null,null,null,null,null,null,"①指導員等（職業指導員、生活支援員、就労支援員、サービス管理責任者等）",null,null,null,"③その他の職員"]
[null,null,null,null,null,null,null,null,null,null,null,null,"②うち障害福祉サービス等以外の営利企業で経験がある者"]
[null,null,null,null,null,null,"常勤職員",null,{"$f":"SUM(K243,O243)","v":0},"人",null,"人",null,"人",null,"人"]
[null,null,null,null,null,null,"非常勤職員",null,{"$f":"SUM(K244,O244)","v":0},"人",null,"人",null,"人",null,"人"]
[null,null,null,null,null,null,"合計",null,{"$f":"SUM(I243:I244)","v":0},"人",{"$f":"SUM(K243:K244)","v":0},"人",{"$f":"SUM(M243:M244)","v":0},"人",{"$f":"SUM(O243:O244)","v":0},"人"]
[]
[null,null,null,null,null,null,"例）調査対象が右表の「Ｄ事業所」のような多機能型事業所で、調査対象サービスが「就労移行支援」の場合\n\n→右記赤枠の常勤職員、非常勤職員の実人数を記入して下さい。\n\n"]
[]
[]
[]
[]
[]
[]
[]
[]
[]
[]
[]
[]
[]
[]
[null,null,null,null,null,"（２）　４．（１）で記入した実人数のうち、就労移行支援事業に従事している常勤職員、非常勤職員の\n　　　実人数を記入して下さい。実人数は、指導員等（職業指導員、生活支援員、就労支援員、サービス\n　　　管理責任者）とその他の職員に分けて記入して下さい。また、指導員等のうち、障害福祉サービス\n　　　等以外の営利企業で経験がある者の人数を記入して下さい。"]
[]
[]
[]
[]
[null,null,null,null,null,null,"区分",null,"就労移行支援事業に従事する職員の実人数"]
[null,null,null,null,null,null,null,null,null,null,"①指導員等（職業指導員、生活支援員、就労支援員、サービス管理責任者）",null,null,null,"③その他の職員"]
[null,null,null,null,null,null,null,null,null,null,null,null,"②うち障害福祉サービス等以外の営利企業で経験がある者"]
[null,null,null,null,null,null,"常勤職員",null,{"$f":"SUM(K270,O270)","v":0},"人",null,"人",null,"人",null,"人"]
[null,null,null,null,null,null,"非常勤職員",null,{"$f":"SUM(K271,O271)","v":0},"人",null,"人",null,"人",null,"人"]
[null,null,null,null,null,null,"合計",null,{"$f":"SUM(I270:I271)","v":0},"人",{"$f":"SUM(K270:K271)","v":0},"人",{"$f":"SUM(M270:M271)","v":0},"人",{"$f":"SUM(O270:O271)","v":0},"人"]
[]
[null,null,null,null,null,null,"例）調査対象が右表の「Ｄ事業所」のような多機能型事業所で、調査対象サービスが「就労移行支援」の場合\n\n→右記赤枠の常勤職員、非常勤職員の実人数を記入して下さい。\n\n「就労移行支援」と「生活介護」・「就労継続支援Ａ型」とを兼務している職員も１名としてカウントして下さい。\n"]
[]
[]
[]
[]
[]
[]
[]
[]
[]
[]
[]
[]
[]
[]
[null,null,null,null,null,"（３）　４．（１）で記入した平成28年３月31日時点の事業所全体で障害福祉サービス等事業に従事する\n　　　常勤職員、非常勤職員の常勤換算数を指導員等（職業指導員、生活支援員、就労支援員、サービス\n　　　管理責任者等）とその他の職員に分けて記入して下さい。また、指導員等のうち、障害福祉サービ\n　　　ス等以外の営利企業で経験がある者の人数を記入して下さい。"]
[null,"他の事業シートと不一致の場合は、\n下記に「×」が表示されます。"]
[]
[]
[null,null,"就労Ａ","就労Ｂ",null,null,"○　多機能型事業所で就労継続支援Ａ型、就労継続支援Ｂ型の事業を行っている場合、同事業\n　のシートと同じ数値が入ります。（C・D列を確認してください。）"]
[null,"常勤",{"$f":"IF(就労継続支援A型事業所用!$I$81=\"\",\"\",IF(就労移行支援事業所用!I299=就労継続支援A型事業所用!I299,\"〇\",\"×\"))","v":""},{"$f":"IF(就労継続支援B型事業所用!$I$81=\"\",\"\",IF(I299=就労継続支援B型事業所用!I299,\"〇\",\"×\"))","v":""}]
[null,"非常勤",{"$f":"IF(就労継続支援A型事業所用!$I$81=\"\",\"\",IF(就労移行支援事業所用!I300=就労継続支援A型事業所用!I300,\"〇\",\"×\"))","v":""},{"$f":"IF(就労継続支援B型事業所用!$I$81=\"\",\"\",IF(I300=就労継続支援B型事業所用!I300,\"〇\",\"×\"))","v":""},null,null,"○　常勤職員は、既定値として、４（１）の実人員と同数となるようにしています。\n"]
[null,null,null,null,null,null,"区分",null,"常勤換算数"]
[null,null,null,null,null,null,null,null,null,null,"①指導員等（職業指導員、生活支援員、就労支援員、サービス管理責任者等）",null,null,null,"③その他の職員"]
[null,null,null,null,null,null,null,null,null,null,null,null,"②うち障害福祉サービス等以外の営利企業で経験がある者"]
[null,null,null,null,null,null,"常勤職員",null,{"$f":"SUM(K299,O299)","v":0},"人",{"$f":"K243","v":0},"人",{"$f":"M243","v":0},"人",{"$f":"O243","v":0},"人"]
[null,null,null,null,null,null,"非常勤職員",null,{"$f":"SUM(K300,O300)","v":0},"人",null,"人",null,"人",null,"人"]
[null,null,null,null,null,null,"合計",null,{"$f":"SUM(I299:I300)","v":0},"人",{"$f":"SUM(K299:K300)","v":0},"人",{"$f":"SUM(M299:M300)","v":0},"人",{"$f":"SUM(O299:O300)","v":0},"人"]
[]
[]
[null,null,null,null,null,null,"例）調査対象が右表の「Ｄ事業所」のような多機能型事業所で、調査対象サービスが「就労移行支援」の場合\n\n→右記赤枠の常勤職員、非常勤職員の常勤換算数を記入して下さい。\n\n"]
[]
[]
[]
[]
[]
[]
[]
[]
[]
[]
[]
[]
[]
[]
[null,null,null,null,null,"（４）　４．（２）で記入した就労移行支援事業に従事する常勤職員、非常勤職員の常勤換算数を指導員\n　　　等（職業指導員、生活支援員、就労支援員、サービス管理責任者）とその他の職員に分けて記載し\n　　　て下さい。また、指導員等のうち、障害福祉サービス等以外の営利企業で経験がある者の人数を記\n　　　入して下さい。"]
[]
[]
[]
[null,null,null,null,null,null,"区分",null,"就労移行支援事業に従事する職員の常勤換算数"]
[null,null,null,null,null,null,null,null,null,null,"①指導員等（職業指導員、生活支援員、就労支援員、サービス管理責任者）",null,null,null,"③その他の職員"]
[null,null,null,null,null,null,null,null,null,null,null,null,"②うち障害福祉サービス等以外の営利企業で経験がある者"]
[null,null,null,null,null,null,"常勤職員",null,{"$f":"SUM(K326,O326)","v":0},"人",null,"人",null,"人",null,"人"]
[null,null,null,null,null,null,"非常勤職員",null,{"$f":"SUM(K327,O327)","v":0},"人",null,"人",null,"人",null,"人"]
[null,null,null,null,null,null,"合計",null,{"$f":"SUM(I326:I327)","v":0},"人",{"$f":"SUM(K326:K327)","v":0},"人",{"$f":"SUM(M326:M327)","v":0},"人",{"$f":"SUM(O326:O327)","v":0},"人"]
[]
[null,null,null,null,null,null,"例）調査対象が右表の「Ｄ事業所」のような多機能型事業所で、調査対象サービスが「就労移行支援」の場合\n\n→右記赤枠の常勤職員、非常勤職員の常勤換算数を記入して下さい。\n\n但し、「就労移行支援」と「生活介護」・「就労継続支援Ａ型」とを兼務している職員は、勤務時間を基礎として、常勤換算して、就労移行支援分を記入して下さい。\n"]
[]
[]
[]
[]
[]
[]
[]
[]
[]
[]
[]
[]
[]
[]
[]
[]
[]
[null,null,null,null,null,"５．事業所における障害福祉サービス等事業の収益・費用について\n　　（平成27年度：平成27年４月１日～平成28年３月31日）"]
[null,"他の事業シートと不一致の場合は、\n下記に「×」が表示されます。"]
[null,null,null,null,null,null,"○　多機能型事業所で就労継続支援Ａ型、就労継続支援Ｂ型の事業を行っている場合、５．（１）～\n　（５）は同事業のシートと同じ数値が入ります。（C・D列を確認してください。）"]
[]
[null,null,"就労Ａ","就労Ｂ",null,"（１）　平成27年度における障害福祉サービス等事業のサービス活動収益（就労移行支援事業以外の収益\n　　を含む）の総額を記入し、自立支援給付費収益、就労支援事業収益、寄附金による収益、その他の収\n　　益に分けて記入して下さい。"]
[null,"（1）サービス活動収益",{"$f":"IF(就労継続支援A型事業所用!$I$81=\"\",\"\",IF(就労移行支援事業所用!I359=就労継続支援A型事業所用!I359,\"〇\",\"×\"))","v":""},{"$f":"IF(就労継続支援B型事業所用!$I$81=\"\",\"\",IF(I359=就労継続支援B型事業所用!I359,\"〇\",\"×\"))","v":""}]
[null,"①自立支援給付",{"$f":"IF(就労継続支援A型事業所用!$I$81=\"\",\"\",IF(就労移行支援事業所用!L359=就労継続支援A型事業所用!L359,\"〇\",\"×\"))","v":""},{"$f":"IF(就労継続支援B型事業所用!$I$81=\"\",\"\",IF(L359=就労継続支援B型事業所用!L359,\"〇\",\"×\"))","v":""}]
[null,"②就労支援事業",{"$f":"IF(就労継続支援A型事業所用!$I$81=\"\",\"\",IF(就労移行支援事業所用!O359=就労継続支援A型事業所用!O359,\"〇\",\"×\"))","v":""},{"$f":"IF(就労継続支援B型事業所用!$I$81=\"\",\"\",IF(O359=就労継続支援B型事業所用!O359,\"〇\",\"×\"))","v":""},null,null,"※　「サービス活動収益の総額」が赤いセルとなる場合、①～④と金額が合致していません。再度\n　ご確認をお願いします。"]
[null,"③寄附金",{"$f":"IF(就労継続支援A型事業所用!$I$81=\"\",\"\",IF(就労移行支援事業所用!I362=就労継続支援A型事業所用!I362,\"〇\",\"×\"))","v":""},{"$f":"IF(就労継続支援B型事業所用!$I$81=\"\",\"\",IF(I362=就労継続支援B型事業所用!I362,\"〇\",\"×\"))","v":""}]
[null,"④その他",{"$f":"IF(就労継続支援A型事業所用!$I$81=\"\",\"\",IF(就労移行支援事業所用!L362=就労継続支援A型事業所用!L362,\"〇\",\"×\"))","v":""},{"$f":"IF(就労継続支援B型事業所用!$I$81=\"\",\"\",IF(L362=就労継続支援B型事業所用!L362,\"〇\",\"×\"))","v":""},null,null,null,null,"サービス活動収益の総額"]
[null,"(2)サービス活動費用",{"$f":"IF(就労継続支援A型事業所用!$I$81=\"\",\"\",IF(就労移行支援事業所用!I366=就労継続支援A型事業所用!I366,\"〇\",\"×\"))","v":""},{"$f":"IF(就労継続支援B型事業所用!$I$81=\"\",\"\",IF(I366=就労継続支援B型事業所用!I366,\"〇\",\"×\"))","v":""},null,null,null,null,null,null,null,"①うち自立支援給付費収益",null,null,"②うち就労支援事業収益"]
[null,"(3)常勤",{"$f":"IF(就労継続支援A型事業所用!$I$81=\"\",\"\",IF(就労移行支援事業所用!J387=就労継続支援A型事業所用!J387,\"〇\",\"×\"))","v":""},{"$f":"IF(就労継続支援B型事業所用!$I$81=\"\",\"\",IF(J387=就労継続支援B型事業所用!J387,\"〇\",\"×\"))","v":""},null,null,"平成27年度",null,null,null,"円",null,null,"円",null,null,"円"]
[null,"(3)非常勤",{"$f":"IF(就労継続支援A型事業所用!$I$81=\"\",\"\",IF(就労移行支援事業所用!J388=就労継続支援A型事業所用!J388,\"〇\",\"×\"))","v":""},{"$f":"IF(就労継続支援B型事業所用!$I$81=\"\",\"\",IF(J388=就労継続支援B型事業所用!J388,\"〇\",\"×\"))","v":""}]
[null,"(4）サービス活動外収益",{"$f":"IF(就労継続支援A型事業所用!$I$81=\"\",\"\",IF(就労移行支援事業所用!I395=就労継続支援A型事業所用!I395,\"〇\",\"×\"))","v":""},{"$f":"IF(就労継続支援B型事業所用!$I$81=\"\",\"\",IF(I395=就労継続支援B型事業所用!I395,\"〇\",\"×\"))","v":""},null,null,null,null,"③うち寄附金による収益",null,null,"④その他の収益"]
[null,"①借入金補助金収益",{"$f":"IF(就労継続支援A型事業所用!$I$81=\"\",\"\",IF(就労移行支援事業所用!L395=就労継続支援A型事業所用!L395,\"〇\",\"×\"))","v":""},{"$f":"IF(就労継続支援B型事業所用!$I$81=\"\",\"\",IF(L395=就労継続支援B型事業所用!L395,\"〇\",\"×\"))","v":""},null,null,null,null,null,null,"円",null,null,"円"]
[null,"(4）サービス活動外費用",{"$f":"IF(就労継続支援A型事業所用!$I$81=\"\",\"\",IF(就労移行支援事業所用!I399=就労継続支援A型事業所用!I399,\"〇\",\"×\"))","v":""},{"$f":"IF(就労継続支援B型事業所用!$I$81=\"\",\"\",IF(I399=就労継続支援B型事業所用!I399,\"〇\",\"×\"))","v":""}]
[null,"①支払利息",{"$f":"IF(就労継続支援A型事業所用!$I$81=\"\",\"\",IF(就労移行支援事業所用!L399=就労継続支援A型事業所用!L399,\"〇\",\"×\"))","v":""},{"$f":"IF(就労継続支援B型事業所用!$I$81=\"\",\"\",IF(L399=就労継続支援B型事業所用!L399,\"〇\",\"×\"))","v":""},null,"（２）　平成27年度における障害福祉サービス等事業のサービス活動費用（就労移行支援事業以外の費用\n　　　を含む）の総額を記入して下さい。"]
[null,"(5)特別収益",{"$f":"IF(就労継続支援A型事業所用!$I$81=\"\",\"\",IF(就労移行支援事業所用!I408=就労継続支援A型事業所用!I408,\"〇\",\"×\"))","v":""},{"$f":"IF(就労継続支援B型事業所用!$I$81=\"\",\"\",IF(I408=就労継続支援B型事業所用!I408,\"〇\",\"×\"))","v":""}]
[null,"①うち繰入金収益",{"$f":"IF(就労継続支援A型事業所用!$I$81=\"\",\"\",IF(就労移行支援事業所用!L408=就労継続支援A型事業所用!L408,\"〇\",\"×\"))","v":""},{"$f":"IF(就労継続支援B型事業所用!$I$81=\"\",\"\",IF(L408=就労継続支援B型事業所用!L408,\"〇\",\"×\"))","v":""},null,null,"平成27年度",null,null,null,"円"]
[null,"(5)特別費用",{"$f":"IF(就労継続支援A型事業所用!$I$81=\"\",\"\",IF(就労移行支援事業所用!I412=就労継続支援A型事業所用!I412,\"〇\",\"×\"))","v":""},{"$f":"IF(就労継続支援B型事業所用!$I$81=\"\",\"\",IF(I412=就労継続支援B型事業所用!I412,\"〇\",\"×\"))","v":""}]
[null,"①うち繰入金費用",{"$f":"IF(就労継続支援A型事業所用!$I$81=\"\",\"\",IF(就労移行支援事業所用!L412=就労継続支援A型事業所用!L412,\"〇\",\"×\"))","v":""},{"$f":"IF(就労継続支援B型事業所用!$I$81=\"\",\"\",IF(L412=就労継続支援B型事業所用!L412,\"〇\",\"×\"))","v":""},null,null,"５．の収益・費用について\n\n例）調査対象が右表の「Ｄ事業所」のような多機能型事業所で、調査対象サービスが「就労移行支援」の場合\n\n→右記赤枠の事業における収益・費用を記入して下さい。"]
[]
[]
[]
[]
[]
[]
[]
[]
[]
[]
[]
[]
[null,null,null,null,null,"（３）　５．（２）で記入した障害福祉サービス等事業のサービス活動費用のうち、平成27年度におけ\n　　　る人件費を指導員等（職業指導員、生活支援員、就労支援員、サービス管理責任者等）とその他\n　　　の職員に分けて記入して下さい。"]
[]
[]
[null,null,null,null,null,null,"区分",null,null,"人件費計"]
[null,null,null,null,null,null,null,null,null,null,null,null,"①指導員等（職業指導員、生活支援員、就労支援員、サービス管理責任者等）",null,"②その他の職員"]
[null,null,null,null,null,null,"職員人件費",null,null,{"$f":"SUM(J387:K388)","v":0},null,"円",{"$f":"SUM(M387:M388)","v":0},"円",{"$f":"SUM(O387:O388)","v":0},"円"]
[null,null,null,null,null,null,null,"常勤職員",null,{"$f":"SUM(M387,O387)","v":0},null,"円",null,"円",null,"円"]
[null,null,null,null,null,null,null,"非常勤職員",null,{"$f":"SUM(M388,O388)","v":0},null,"円",null,"円",null,"円"]
[]
[null,null,null,null,null,"（４）　平成27年度における障害福祉サービス等事業のサービス活動外収益とサービス活動外費用を記入\n　　　して下さい。また、サービス活動外収益のうち、借入金利息補助金収益の金額を記入し、サービス\n　　　活動外費用のうち、支払利息の金額を記入して下さい。",null,null,null,null,null,null,null,null,null,null,null,"　　"]
[]
[]
[null,null,null,null,null,null,null,null,"サービス活動外収益"]
[null,null,null,null,null,null,null,null,null,null,null,"うち借入金利息補助金収益"]
[null,null,null,null,null,null,"平成27年度",null,null,null,"円",null,null,"円"]
[]
[null,null,null,null,null,null,null,null,"サービス活動外費用"]
[null,null,null,null,null,null,null,null,null,null,null,"うち支払利息"]
[null,null,null,null,null,null,"平成27年度",null,null,null,"円",null,null,"円"]
[]
[]
[]
[null,null,null,null,null,"（５）　平成27年度における障害福祉サービス等事業における特別収益と特別費用を記入して下さい。\n　　　また、特別収益のうち、事業区分（拠点区分）間繰入金収益の総額を記入し、特別費用のうち、\n　　　事業区分（拠点区分）間繰入費用の総額を記入して下さい。"]
[]
[]
[null,null,null,null,null,null,null,null,"特別収益"]
[null,null,null,null,null,null,null,null,null,null,null,"うち事業区分（拠点区分）間繰入金収益"]
[null,null,null,null,null,null,"平成27年度",null,null,null,"円",null,null,"円"]
[]
[null,null,null,null,null,null,null,null,"特別費用"]
[null,null,null,null,null,null,null,null,null,null,null,"うち事業区分（拠点区分）間繰入金費用"]
[null,null,null,null,null,null,"平成27年度",null,null,null,"円",null,null,"円"]
[]
[]
[]
[null,null,null,null,null,"６．就労移行支援事業における収益・費用について\n　　（平成27年度：平成27年４月１日～平成28年３月31日）"]
[]
[null,null,null,null,null,"（１）　平成27年度の就労移行支援事業におけるサービス活動収益の総額を記入し、そのうち、訓練等給付\n　　　費収益を記入して下さい。また、平成28年３月31日現在で取得している加算をチェックして下さい。"]
[]
[null,null,null,null,null,null,null,null,"サービス活動収益"]
[null,null,null,null,null,null,null,null,null,null,null,"訓練等給付費収益"]
[null,null,null,null,null,null,"平成27年度",null,null,null,"円",null,null,"円"]
[]
[null,null,null,null,null,null,null,"就労定着支援体制加算"]
[null,null,null,null,null,null,null,"就労移行支援体制加算"]
[null,null,null,null,null,null,null,"目標工賃達成加算"]
[]
[]
[null,null,null,null,null,"（２）　平成27年度の就労移行支援事業におけるサービス活動費用の総額を記入して下さい。"]
[]
[null,null,null,null,null,null,"平成27年度",null,null,null,"円"]
[]
[null,null,null,null,null,null,"６．の収益・費用について\n\n例）調査対象が右表の「Ｄ事業所」のような多機能型事業所で、調査対象サービスが「就労移行支援」の場合\n\n→右記赤枠の事業における収益・費用を記入して下さい。"]
[]
[]
[]
[]
[]
[]
[]
[]
[]
[]
[]
[]
[]
[null,null,null,null,null,"（３）　６．（２）で記入した就労移行支援事業におけるサービス活動費用のうち、平成27年度の人件費\n　　を指導員等（職業指導員、生活支援員、就労支援員、サービス管理責任者）とその他の職員に分けて\n　　記入して下さい。"]
[]
[]
[null,null,null,null,null,null,"区分",null,null,"人件費計"]
[null,null,null,null,null,null,null,null,null,null,null,null,"①指導員等（職業指導員、生活支援員、就労支援員、サービス管理責任者）",null,"②その他の職員"]
[null,null,null,null,null,null,"職員人件費",null,null,{"$f":"SUM(J453:K454)","v":0},null,"円",{"$f":"SUM(M453:M454)","v":0},"円",{"$f":"SUM(O453:O454)","v":0},"円"]
[null,null,null,null,null,null,null,"常勤職員",null,{"$f":"SUM(M453,O453)","v":0},null,"円",null,"円",null,"円"]
[null,null,null,null,null,null,null,"非常勤職員",null,{"$f":"SUM(M454,O454)","v":0},null,"円",null,"円",null,"円"]
[]
[]
[null,null,null,null,null,"（４）　平成27年度の就労移行支援事業におけるサービス活動外収益とサービス活動外費用を記入して\n　　下さい。また、サービス活動外収益のうち、借入金利息補助金収益の金額を記入し、サービス活動外\n　　費用のうち、支払利息の金額を記入して下さい。"]
[]
[]
[null,null,null,null,null,null,null,null,"サービス活動外収益"]
[null,null,null,null,null,null,null,null,null,null,null,"うち借入金利息補助金収益"]
[null,null,null,null,null,null,"平成27年度",null,null,null,"円",null,null,"円"]
[]
[null,null,null,null,null,null,null,null,"サービス活動外費用"]
[null,null,null,null,null,null,null,null,null,null,null,"うち支払利息"]
[null,null,null,null,null,null,"平成27年度",null,null,null,"円",null,null,"円"]
[]
[null,null,null,null,null,"（５）　平成27年度における就労移行支援事業における特別収益と特別費用を記入して下さい。また、\n　　　特別収益には、事業区分（拠点区分）間繰入金収益の総額を記入し、特別費用には、事業区分\n　　（拠点区分）間繰入費用の総額を記入して下さい。"]
[]
[]
[null,null,null,null,null,null,null,null,"特別収益"]
[null,null,null,null,null,null,null,null,null,null,null,"うち事業区分（拠点区分）間繰入金収益"]
[null,null,null,null,null,null,"平成27年度",null,null,null,"円",null,null,"円"]
[]
[null,null,null,null,null,null,null,null,"特別費用"]
[null,null,null,null,null,null,null,null,null,null,null,"うち事業区分（拠点区分）間繰入金費用"]
[null,null,null,null,null,null,"平成27年度",null,null,null,"円",null,null,"円"]
[]
[null,null,null,null,null,"７．就労支援事業収益・就労支援事業費用について\n　　（平成27年度：平成27年４月１日～平成28年３月31日）"]
[]
[null,null,null,null,null,"（１）　平成27年度における就労移行支援事業の就労支援事業収益の総額を記入して下さい。"]
[null,null,null,null,null,null,"※　１．（２）で「1 単独事業」を選択して、５．（１）の「②うち就労支援事業収益」との数値が\n　一致しない場合、赤いセルとなります。再度ご確認をお願いします。"]
[]
[null,null,null,null,null,null,"平成27年度",null,null,null,"円"]
[]
[]
[]
[]
[null,null,null,null,null,"（２）　平成27年度における就労移行支援事業の就労支援事業費用を記入して下さい。また、そのうち\n　　　利用者に対して支払った工賃（賃金）の総額を記入して下さい。"]
[]
[null,null,null,null,null,null,null,null,"就労支援事業費用"]
[null,null,null,null,null,null,null,null,null,null,null,"うち利用者工賃（利用者賃金）"]
[null,null,null,null,null,null,"平成27年度",null,null,null,"円",null,null,"円"]
[]
[null,null,null,null,null,null,"７．の収益・費用について\n\n例）調査対象が右表の「Ｄ事業所」のような多機能型事業所で、調査対象サービスが「就労移行支援」の場合\n\n→右記赤枠の事業における就労支援事業収益・就労支援事業費用を記入して下さい。\n\n※６．で記入した「サービス活動収益」、「サービス活動費用」の内数となります。"]
[]
[]
[]
[]
[]
[]
[]
[]
[]
[]
[]
[]
[]
[]
[]
[]
[]
[]
[null,null,null,null,null,"８．27年度決算における事業所において生じた利益（剰余金）処分の方法について、以下の選択肢からご回答下さい（複数回答可）。"]
[]
[]
[null,null,null,null,null,null,null,"１．事業所の施設や設備への投資に向けた留保"]
[null,null,null,null,null,null,null,"２．有利子負債削減"]
[null,null,null,null,null,null,null,"３．新規雇用の拡大や従業員への還元に向けた留保"]
[null,null,null,null,null,null,null,"４．役員報酬・賞与の支払い"]
[null,null,null,null,null,null,null,"５．把握していない"]
[null,null,null,null,null,null,null,"６．その他"]
[]
[null,null,null,null,null,null,"　以上で調査は終了です。調査にご協力いただき、誠にありがとうございました。"]

{"sheet":"就労継続支援A型事業所用","index":2,"n_rows":525,"n_cols":17,"rows_kept":525,"cut":false,"hidden":false,"merged":[[476,8,476,9],[492,6,492,7],[492,8,492,9],[492,11,492,12],[483,6,483,7],[483,8,483,9],[490,6,491,7],[490,8,490,10],[491,11,491,13],[476,6,476,7],[478,5,479,16],[480,5,480,16],[481,6,482,16],[488,5,489,16],[494,6,507,9],[450,12,450,13],[450,14,450,15],[428,5,428,16],[446,5,448,16],[456,5,458,16],[476,11,476,12],[465,6,465,7],[465,8,465,9],[465,11,465,12],[470,8,470,10],[471,11,471,13],[460,11,460,13],[461,6,461,7],[461,8,461,9],[461,11,461,12],[463,8,463,10],[464,11,464,13],[467,5,469,16],[472,6,472,7],[472,8,472,9],[472,11,472,12],[474,8,474,10],[475,11,475,13],[451,6,451,7],[451,9,451,10],[452,9,452,10],[453,9,453,10],[459,8,459,10],[430,6,430,7],[430,8,430,9],[432,6,443,9],[449,6,450,8],[449,9,449,11],[419,8,419,10],[420,11,420,13],[421,6,421,7],[421,8,421,9],[421,11,421,12],[407,6,407,7],[407,8,407,9],[407,11,407,12],[409,8,409,10],[410,11,410,13],[411,6,411,7],[411,8,411,9],[411,11,411,12],[415,5,416,16],[398,6,398,7],[398,8,398,9],[398,11,398,12],[405,8,405,10],[406,11,406,13],[393,11,393,13],[394,6,394,7],[394,8,394,9],[394,11,394,12],[396,8,396,10],[397,11,397,13],[402,5,404,16],[363,5,364,16],[385,6,385,7],[385,9,385,10],[386,9,386,10],[387,9,387,10],[392,8,392,10],[365,6,365,7],[365,8,365,9],[367,6,377,9],[383,6,384,8],[383,9,383,11],[384,12,384,13],[384,14,384,15],[380,5,382,16],[389,5,391,16],[323,14,324,15],[318,5,321,16],[347,5,348,16],[360,8,360,10],[360,11,360,13],[361,6,361,7],[361,8,361,9],[361,11,361,12],[356,8,356,10],[357,11,357,13],[357,14,357,16],[358,6,358,7],[358,8,358,9],[358,11,358,12],[358,14,358,15],[354,6,355,16],[351,5,353,16],[349,6,350,16],[324,12,324,13],[325,6,325,7],[326,6,326,7],[327,6,327,7],[329,6,341,9],[298,6,298,7],[299,6,299,7],[300,6,300,7],[303,6,315,9],[322,6,324,7],[322,8,322,9],[322,10,322,11],[323,10,323,13],[295,6,297,7],[295,8,295,9],[295,10,295,11],[296,10,296,13],[296,14,297,15],[297,12,297,13],[268,12,268,13],[269,6,269,7],[270,6,270,7],[271,6,271,7],[273,6,285,9],[288,5,291,16],[292,6,293,16],[218,5,219,16],[237,6,238,16],[242,6,242,7],[243,6,243,7],[244,6,244,7],[246,6,258,9],[266,6,268,7],[266,8,266,9],[266,10,266,11],[267,10,267,13],[267,14,268,15],[261,5,264,16],[239,6,241,7],[239,8,239,9],[239,10,239,11],[240,10,240,13],[240,14,241,15],[241,12,241,13],[221,6,222,6],[221,7,221,8],[222,9,222,10],[222,11,222,12],[223,13,228,17],[203,6,216,9],[174,9,174,10],[174,11,174,12],[174,13,174,14],[185,7,185,8],[186,9,186,10],[186,11,186,12],[186,13,186,14],[186,15,186,16],[183,5,183,16],[137,15,137,16],[132,5,133,16],[134,5,134,16],[170,5,171,16],[194,7,194,8],[194,9,194,10],[194,11,194,12],[194,13,194,14],[194,15,194,16],[145,7,145,8],[145,9,145,10],[145,11,145,12],[145,13,145,14],[154,6,167,9],[136,6,137,6],[136,7,136,8],[137,9,137,10],[137,11,137,12],[137,13,137,14],[54,6,54,7],[54,8,54,11],[113,6,113,7],[114,6,114,7],[115,6,115,7],[116,6,116,7],[117,6,117,7],[121,7,121,8],[61,6,62,16],[101,6,102,6],[101,7,101,8],[102,9,102,10],[102,11,102,12],[72,6,73,8],[97,5,98,16],[115,10,117,16],[1,12,2,13],[47,6,47,7],[47,8,47,11],[7,5,7,17],[11,6,11,16],[15,6,16,16],[18,6,19,16],[23,6,25,16],[31,6,32,16],[42,5,43,17],[44,6,45,16],[234,1,236,3],[289,1,291,3],[348,1,350,3],[1,14,2,17],[513,5,514,17],[417,5,418,18],[233,5,236,16],[48,6,48,7],[48,8,48,11],[49,6,49,7],[49,8,49,11],[50,8,50,11],[51,6,51,7],[51,8,51,11],[55,6,55,7],[55,8,55,11],[56,6,56,7],[56,8,56,11],[57,6,57,7],[57,8,57,11],[52,6,52,7],[52,8,52,11],[53,6,53,7],[53,8,53,11]]}
[]
[null,null,null,null,null,null,null,null,null,null,null,null,"整理番号"]
[]
[]
[]
[]
[]
[null,null,null,null,null,"「就労継続支援Ａ型」事業を行う事業所における調査票"]
[]
[]
[null,null,null,null,null,null,"○　このシートは、就労継続支援A型事業における調査票となっております。"]
[null,null,null,null,null,null,"　　 就労移行支援事業、就労継続支援Ｂ型事業を行っている事業所は、それぞれの事業におけるシートに記入して下さい。"]
[]
[null,null,null,null,null,null," 　　また、法人で複数の事業を実施している場合及び多機能型事業所の場合、それぞれの事業毎に調査票を作成して下さい。"]
[]
[null,null,null,null,null,null,"　　（例）　「就労移行支援」と「就労継続支援Ｂ型」の多機能型である場合、「就労移行支援事業所用」のシートと「就労継続支\n　　　　　　　援Ｂ型事業所用」のシートで計２つの調査票が必要となります。"]
[]
[]
[null,null,null,null,null,null,"○　数字入力欄は必ず半角数字で入力して下さい。また、シートの行と列の追加・削除はせず、文字量が多くて枠内に表示\n　されない場合でも、そのまま入力して下さい（枠を広げたりしないで下さい）。"]
[]
[]
[]
[]
[null,null,null,null,null,null,"○　調査対象は、平成２９年４月１日時点で、就労移行支援、就労継続支援Ａ型、就労継続支援Ｂ型の指定を受けている\n　事業所（平成２９年４月１日時点で当該サービスを休止・廃止の事業所は除く。また、平成２８年４月１日以降に新設された\n　事業所は除く。）となります。"]
[]
[]
[]
[null,null,null,null,null,null,"○　主たる事業所と従たる事業所がある場合は、主たる事業所において調査票を１枚に集約して下さい。"]
[]
[null,null,null,null,null,null,"○　障害別の調査について、重複して該当する場合、主な障害を選択して下さい（複数回答不可）。"]
[]
[null,null,null,null,null,null,"○　５．～７．の調査票の記載は、社会福祉法人会計基準をもとに作成しています。他の会計基準で決算関係書類を作成\n　している場合、以下のように読み替えて記入して下さい。"]
[]
[]
[null,null,null,null,null,null,"例）社会福祉法人会計の　「サービス活動収益・費用」　と　「特別収益・費用」　を求める場合"]
[null,null,null,null,null,null,"　　・病院会計　→　「医業・介護外収益・費用」　と　「臨時収益・費用」　を記入"]
[null,null,null,null,null,null,"　　・企業会計、ＮＰＯ法人会計など　→　「営業外収益・費用」　と　「特別収益・費用」　を記入"]
[]
[null,null,null,null,null,null,"○　各項目の金額は、消費税込みで記入して下さい。"]
[]
[]
[]
[null,null,null,null,null,"　平成28年３月31日時点の事業所の所在地（都道府県名、市区町村名）、法人名、事業所名、事業所番号、事業開始時期、連絡先を記入して下さい。また、経営主体は右欄から選択し番号を記入して下さい。"]
[]
[null,null,null,null,null,null,"○　多機能型事業所で就労移行支援、就労継続支援Ｂ型の事業を行っている場合、同事業のシートと\n　同じ事項を入力して下さい。"]
[]
[]
["１　国",null,null,null,null,null,"都道府県名",null,"○○県",null,null,null,null,"１　国"]
["２　地方公共団体",null,null,null,null,null,"市区町村名",null,"○○市",null,null,null,null,"２　地方公共団体"]
["３　社会福祉協議会",null,null,null,null,null,"法人名",null,null,null,null,null,null,"３　社会福祉協議会"]
["４　社会福祉法人",null,null,null,null,null,null,"経営主体",null,null,null,null,null,"４　社会福祉法人"]
["５　医療法人",null,null,null,null,null,"事業所名",null,"○○○○○",null,null,null,null,"５　医療法人"]
["６　公益法人",null,null,null,null,null,"事業所番号",null,"○○○○○",null,null,null,null,"６　公益法人"]
["７　共同組合",null,null,null,null,null,"事業開始時期",null,"H○年○月○日",null,null,null,null,"７　共同組合"]
["８　営利法人",null,null,null,null,null,"電話番号",null,"00-000-0000",null,null,null,null,"８　営利法人"]
["９　特定非営利活動法人",null,null,null,null,null,"E-mail",null,"○○○○○＠○○○",null,null,null,null,"９　特定非営利活動法人"]
["10　その他",null,null,null,null,null,"FAX",null,"00-000-0000",null,null,null,null,"10　その他"]
[null,null,null,null,null,null,"ご担当者氏名",null,"○○　○○"]
[]
[]
[null,null,null,null,null,"（調査目的）"]
[null,null,null,null,null,null,"　就労移行支援、就労継続支援Ａ型、就労継続支援Ｂ型事業所を経営されている事業所の運営実態を調査し、サービスの提供状況を把握するための基礎資料を得ることを目的としています。"]
[]
[]
[null,null,null,null,null,"（記載要領）"]
[null,null,null,null,null,null,"　着色セルに入力する形で、調査にご協力ください。"]
[]
[null,null,null,null,null,"（調査項目）"]
[null,null,null,null,null,"１．実施状況等について"]
[null,null,null,null,null,"（１）平成28年３月31日時点で実施している事業を右欄より選択し、番号を記入して下さい。"]
[]
["１",null,null,null,null,null,"事業実施の種類",null,"２",null,"１　就労移行支援"]
["２",null,null,null,null,null,"※　既定値として「２」を\n　入力しています。",null,null,null,"２　就労継続支援Ａ型"]
["３",null,null,null,null,null,null,null,null,null,"３　就労継続支援Ｂ型"]
[]
[]
[]
[]
[null,null,null,null,null,"（２）平成28年３月31日時点の事業の実施形態を右欄より選択し、番号を記入して下さい。"]
["１"]
["２",null,null,null,null,null,"事業の実施形態",null,null,null,"１　単独実施"]
[null,null,null,null,null,null,null,null,null,null,"２　多機能型実施"]
[]
[]
[]
[]
[]
[]
[]
[]
[]
[null,null,null,null,null,"２．定員数・利用者数について"]
[null,null,null,null,null,"（１）　平成28年３月31日時点の定員数を記入して下さい。"]
[]
[null,null,null,null,null,null,"定員数",null,"人"]
[]
[]
[null,null,null,null,null,"（２）　平成28年３月31日時点の利用者数（利用契約を締結している者の人数）について、障害支援区分\n　　　の有無別で、障害種別毎に記入して下さい。"]
[]
[null,null,null,null,null,null,"※　就労アセスメント対象者は除く。"]
[]
[null,null,null,null,null,null,"種別","利用者数"]
[null,null,null,null,null,null,null,null,null,"①障害支援区分有り",null,"②障害支援区分無し"]
[null,null,null,null,null,null,"身体障害",{"$f":"SUM(J104,L104)","v":0},"人",null,"人",null,"人"]
[null,null,null,null,null,null,"知的障害",{"$f":"SUM(J105,L105)","v":0},"人",null,"人",null,"人"]
[null,null,null,null,null,null,"精神障害",0,"人",null,"人",null,"人"]
[null,null,null,null,null,null,"難病等",0,"人",null,"人",null,"人"]
[null,null,null,null,null,null,"障害児",0,"人",null,"人",null,"人"]
[null,null,null,null,null,null,"合計",{"$f":"SUM(H104:H108)","v":0},"人",{"$f":"SUM(J104:J108)","v":0},"人",{"$f":"SUM(L104:L108)","v":0},"人"]
[]
[]
[null,null,null,null,null,"（３）　２．（２）で記入した利用者数のうち障害基礎年金受給者数を記入して下さい。"]
[]
[null,null,null,null,null,null,"障害基礎年金（１級）",null,null,"人"]
[null,null,null,null,null,null,"障害基礎年金（２級）",null,null,"人"]
[null,null,null,null,null,null,"受給無し",null,null,"人","※「障害基礎年金受給者数の合計」が赤いセルとなる場合、\n　　２．（２）と人数が合致していません。\n　　再度ご確認をお願いします。"]
[null,null,null,null,null,null,"不明",null,null,"人"]
[null,null,null,null,null,null,"合計",null,{"$f":"SUM(I114:I117)","v":0},"人"]
[]
[null,null,null,null,null,"（４）　平成28年３月31日時点の利用者実人数を障害種別毎に記入して下さい。"]
[]
[null,null,null,null,null,null,"種別","利用者数計"]
[null,null,null,null,null,null,"身体障害",null,"人"]
[null,null,null,null,null,null,"知的障害",null,"人"]
[null,null,null,null,null,null,"精神障害",null,"人"]
[null,null,null,null,null,null,"難病等",null,"人"]
[null,null,null,null,null,null,"障害児",null,"人"]
[null,null,null,null,null,null,"合計",{"$f":"SUM(H123:H127)","v":0},"人"]
[]
[]
[]
[]
[null,null,null,null,null,"３．入所前の状況、退所理由及び就職者の状況等について\n　　（平成27年度：平成27年４月１日～平成28年３月31日）"]
[]
[null,null,null,null,null,"（１）　平成27年度中に利用を開始した者の入所前の状況について、障害種別毎に人数を記入して下さい。"]
[]
[null,null,null,null,null,null,"種別","利用開始者数"]
[null,null,null,null,null,null,null,null,null,"①在宅（障害福祉サービス等の利用無し）・一般就労",null,"②特別支援学校（普通学校の特別支援学級含む）",null,"③普通学校",null,"④他の就労移行支援"]
[null,null,null,null,null,null,"身体障害",{"$f":"SUM(J139,L139,N139,P139,H147,J147,L147,N147)","v":0},"人",null,"人",null,"人",null,"人",null,"人"]
[null,null,null,null,null,null,"知的障害",{"$f":"SUM(J140,L140,N140,P140,H148,J148,L148,N148)","v":0},"人",null,"人",null,"人",null,"人",null,"人"]
[null,null,null,null,null,null,"精神障害",{"$f":"SUM(J141,L141,N141,P141,H149,J149,L149,N149)","v":0},"人",null,"人",null,"人",null,"人",null,"人"]
[null,null,null,null,null,null,"難病等",{"$f":"SUM(J142,L142,N142,P142,H150,J150,L150,N150)","v":0},"人",null,"人",null,"人",null,"人",null,"人"]
[null,null,null,null,null,null,"障害児",{"$f":"SUM(J143,L143,N143,P143,H151,J151,L151,N151)","v":0},"人",null,"人",null,"人",null,"人",null,"人"]
[null,null,null,null,null,null,"合計",{"$f":"SUM(H139:H143)","v":0},"人",{"$f":"SUM(J139:J143)","v":0},"人",{"$f":"SUM(L139:L143)","v":0},"人",{"$f":"SUM(N139:N143)","v":0},"人",{"$f":"SUM(P139:P143)","v":0},"人"]
[]
[null,null,null,null,null,null,"種別","⑤他の就労継続支援Ａ型",null,"⑥他の就労継続支援Ｂ型",null,"⑦生活介護",null,"⑧他の障害福祉サービス等"]
[null,null,null,null,null,null,"身体障害",null,"人",null,"人",null,"人",null,"人"]
[null,null,null,null,null,null,"知的障害",null,"人",null,"人",null,"人",null,"人"]
[null,null,null,null,null,null,"精神障害",null,"人",null,"人",null,"人",null,"人"]
[null,null,null,null,null,null,"難病等",null,"人",null,"人",null,"人",null,"人"]
[null,null,null,null,null,null,"障害児",null,"人",null,"人",null,"人",null,"人"]
[null,null,null,null,null,null,"合計",{"$f":"SUM(H147:H151)","v":0},"人",{"$f":"SUM(J147:J151)","v":0},"人",{"$f":"SUM(L147:L151)","v":0},"人",{"$f":"SUM(N147:N151)","v":0},"人"]
[]
[]
[null,null,null,null,null,null,"例）調査対象が「Ｄ事業所」のような多機能型事業所で、調査対象が「就労移行支援」の場合\n\n→同一法人内のＣ事業所で「就労移行支援」を利用していたが、Ｄ事業所の就労移行支援の利用を始めた場合は「④他の就労移行支援」。\n\n→多機能型事業所であるＤ事業所内の「就労継続支援Ａ型」を利用していたが、Ｄ事業所内の「就労移行支援」の利用を始めた場合は「⑤他の就労継続支援Ａ型」。"]
[]
[]
[]
[]
[]
[]
[]
[]
[]
[]
[]
[]
[]
[]
[]
[null,null,null,null,null,"（２）　３．（１）の利用開始者数のうち、一般就労の経験が有る利用者の雇用形態について、障害種別\n　　　毎に人数を記入して下さい。"]
[]
[]
[null,null,null,null,null,null,"種別","一般就労の経験が有る利用者数"]
[null,null,null,null,null,null,null,null,null,"①障害者雇用枠",null,"②それ以外の雇用",null,"③どちらも経験有り"]
[null,null,null,null,null,null,"身体障害",{"$f":"SUM(J176,L176,N176,)","v":0},"人",null,"人",null,"人",null,"人"]
[null,null,null,null,null,null,"知的障害",{"$f":"SUM(J177,L177,N177,)","v":0},"人",null,"人",null,"人",null,"人"]
[null,null,null,null,null,null,"精神障害",{"$f":"SUM(J178,L178,N178,)","v":0},"人",null,"人",null,"人",null,"人"]
[null,null,null,null,null,null,"難病等",{"$f":"SUM(J179,L179,N179,)","v":0},"人",null,"人",null,"人",null,"人"]
[null,null,null,null,null,null,"障害児",{"$f":"SUM(J180,L180,N180,)","v":0},"人",null,"人",null,"人",null,"人"]
[null,null,null,null,null,null,"合計",{"$f":"SUM(H176:H180)","v":0},"人",{"$f":"SUM(J176:J180)","v":0},"人",{"$f":"SUM(L176:L180)","v":0},"人",{"$f":"SUM(N176:N180)","v":0},"人"]
[]
[]
[null,null,null,null,null,"（３）　平成27年度中に利用を終了した者の退所理由について、障害種別毎に人数を記入して下さい。"]
[]
[null,null,null,null,null,null,"種別","利用終了者数計"]
[null,null,null,null,null,null,null,null,null,"①就職・正規雇用（Ａ型除く）",null,"②就職・非正規雇用（Ａ型除く）",null,"③就労移行支援へ転所",null,"④就労継続支援Ａ型へ転所"]
[null,null,null,null,null,null,"身体障害",{"$f":"SUM(J188,L188,N188,P188,H196,J196,L196,N196,P196)","v":0},"人",null,"人",null,"人",null,"人",null,"人"]
[null,null,null,null,null,null,"知的障害",{"$f":"SUM(J189,L189,N189,P189,H197,J197,L197,N197,P197)","v":0},"人",null,"人",null,"人",null,"人",null,"人"]
[null,null,null,null,null,null,"精神障害",{"$f":"SUM(J190,L190,N190,P190,H198,J198,L198,N198,P198)","v":0},"人",null,"人",null,"人",null,"人",null,"人"]
[null,null,null,null,null,null,"難病等",{"$f":"SUM(J191,L191,N191,P191,H199,J199,L199,N199,P199)","v":0},"人",null,"人",null,"人",null,"人",null,"人"]
[null,null,null,null,null,null,"障害児",{"$f":"SUM(J192,L192,N192,P192,H200,J200,L200,N200,P200)","v":0},"人",null,"人",null,"人",null,"人",null,"人"]
[null,null,null,null,null,null,"合計",{"$f":"SUM(H188:H192)","v":0},"人",{"$f":"SUM(J188:J192)","v":0},"人",{"$f":"SUM(L188:L192)","v":0},"人",{"$f":"SUM(N188:N192)","v":0},"人",{"$f":"SUM(P188:P192)","v":0},"人"]
[]
[null,null,null,null,null,null,"種別","⑤就労継続支援Ｂ型へ転所",null,"⑥生活介護へ転所",null,"⑦その他の障害福祉サービス等へ転所",null,"⑧期間満了のため退所（移行支援）",null,"⑨その他（①～⑧のいずれにも該当しないもの）"]
[null,null,null,null,null,null,"身体障害",null,"人",null,"人",null,"人",0,"人",null,"人"]
[null,null,null,null,null,null,"知的障害",null,"人",null,"人",null,"人",0,"人",null,"人"]
[null,null,null,null,null,null,"精神障害",null,"人",null,"人",null,"人",0,"人",null,"人"]
[null,null,null,null,null,null,"難病等",null,"人",null,"人",null,"人",0,"人",null,"人"]
[null,null,null,null,null,null,"障害児",null,"人",null,"人",null,"人",0,"人",null,"人"]
[null,null,null,null,null,null,"合計",{"$f":"SUM(H196:H200)","v":0},"人",{"$f":"SUM(J196:J200)","v":0},"人",{"$f":"SUM(L196:L200)","v":0},"人",{"$f":"SUM(N196:N200)","v":0},"人",0,"人"]
[]
[]
[null,null,null,null,null,null,"例）調査対象が「Ｄ事業所」のような多機能型事業所で、調査対象が「就労移行支援」の場合\n\n→D事業所の就労移行支援を利用していた者が同一法人内のＣ事業所で「就労移行支援」の利用を始めた場合は「③就労移行支援へ転所」。\n\n→多機能型事業所である「Ｄ事業所」の就労移行支援を利用していた者が同一事業所内で「就労継続支援Ａ型」の利用を始めた場合は「④就労継続支援Ａ型へ転所」。"]
[]
[]
[]
[]
[]
[]
[]
[]
[]
[]
[]
[]
[]
[]
[null,null,null,null,null,"（４）　３．（３）で「就職・正規雇用（Ａ型除く）」、「就職・非正規雇用（Ａ型除く）」と記入した\n　　　利用者の雇用形態について、障害種別毎に人数を記入して下さい。"]
[]
[]
[null,null,null,null,null,null,"種別","就職者数"]
[null,null,null,null,null,null,null,null,null,"①障害者雇用枠",null,"②それ以外の雇用"]
[null,null,null,null,null,null,"身体障害",{"$f":"SUM(J224,L224)","v":0},"人",null,"人",null,"人","※　各種別の「就職者数の合計」が\n　赤いセルとなる場合、３．（３）の\n　①～②と人数が合致していません。\n　再度ご確認をお願いします。"]
[null,null,null,null,null,null,"知的障害",{"$f":"SUM(J225,L225)","v":0},"人",null,"人",null,"人"]
[null,null,null,null,null,null,"精神障害",0,"人",null,"人",null,"人"]
[null,null,null,null,null,null,"難病等",0,"人",null,"人",null,"人"]
[null,null,null,null,null,null,"障害児",0,"人",null,"人",null,"人"]
[null,null,null,null,null,null,"合計",{"$f":"SUM(H224:H228)","v":0},"人",{"$f":"SUM(J224:J228)","v":0},"人",{"$f":"SUM(L224:L228)","v":0},"人"]
[]
[]
[]
[null,null,null,null,"４．職員について"]
[null,null,null,null,null,"（１）　平成28年３月31日時点の事業所全体における障害福祉サービス等事業に従事する常勤職員、\n　　　非常勤職員の実人数を記入して下さい。実人数は、指導員等（職業指導員、生活支援員、就労支援\n　　　員、サービス管理責任者等）とその他の職員に分けて記入して下さい。また、指導員等のうち、\n　　　障害福祉サービス等以外の営利企業で経験がある者の人数を記入して下さい。"]
[null,"他の事業シートと不一致の場合は、\n下記に「×」が表示されます。"]
[]
[]
[null,null,"移行","就労Ｂ",null,null,"○　多機能型事業所で就労移行支援、就労継続支援Ｂ型の事業を行っている場合、同事業の\n　シートと同じ数値が入ります。（C・D列を確認してください。）"]
[null,"常勤",{"$f":"IF(就労移行支援事業所用!$I$81=\"\",\"\",IF(I243=就労移行支援事業所用!I243,\"〇\",\"×\"))","v":""},{"$f":"IF(就労継続支援B型事業所用!I81=\"\",\"\",IF(I243=就労継続支援B型事業所用!I243,\"〇\",\"×\"))","v":""}]
[null,"非常勤",{"$f":"IF(就労移行支援事業所用!$I$81=\"\",\"\",IF(I244=就労移行支援事業所用!I244,\"〇\",\"×\"))","v":""},{"$f":"IF(就労継続支援B型事業所用!I81=\"\",\"\",IF(I244=就労継続支援B型事業所用!I244,\"〇\",\"×\"))","v":""},null,null,"区分",null,"実人数"]
[null,null,{"$f":"IF(就労継続支援A型事業所用!I78=\"\",\"\",IF(就労移行支援事業所用!I241=就労継続支援A型事業所用!I241,\"〇\",\"×\"))","v":""},{"$f":"IF(就労継続支援B型事業所用!I78=\"\",\"\",IF(就労移行支援事業所用!I241=就労継続支援B型事業所用!I241,\"〇\",\"×\"))","v":""},null,null,null,null,null,null,"①指導員等（職業指導員、生活支援員、就労支援員、サービス管理責任者等）",null,null,null,"③その他の職員"]
[null,null,{"$f":"IF(就労継続支援A型事業所用!I78=\"\",\"\",IF(就労移行支援事業所用!I242=就労継続支援A型事業所用!I242,\"〇\",\"×\"))","v":""},{"$f":"IF(就労継続支援B型事業所用!I78=\"\",\"\",IF(就労移行支援事業所用!I242=就労継続支援B型事業所用!I242,\"〇\",\"×\"))","v":""},null,null,null,null,null,null,null,null,"②うち障害福祉サービス等以外の営利企業で経験がある者"]
[null,null,null,null,null,null,"常勤職員",null,{"$f":"SUM(K243,O243)","v":0},"人",null,"人",null,"人",null,"人"]
[null,null,null,null,null,null,"非常勤職員",null,{"$f":"SUM(K244,O244)","v":0},"人",null,"人",null,"人",null,"人"]
[null,null,null,null,null,null,"合計",null,{"$f":"SUM(I243:I244)","v":0},"人",{"$f":"SUM(K243:K244)","v":0},"人",{"$f":"SUM(M243:M244)","v":0},"人",{"$f":"SUM(O243:O244)","v":0},"人"]
[]
[null,null,null,null,null,null,"例）調査対象が右表の「Ｄ事業所」のような多機能型事業所で、調査対象サービスが「就労移行支援」の場合\n\n→右記赤枠の常勤職員、非常勤職員の実人数を記入して下さい。\n\n"]
[]
[]
[]
[]
[]
[]
[]
[]
[]
[]
[]
[]
[]
[]
[null,null,null,null,null,"（２）　４．（１）で記入した実人数のうち、就労継続支援A型事業に従事している常勤職員、非常勤職\n　　　員の実人数を記入して下さい。実人数は、指導員等（職業指導員、生活支援員、就労支援員、サー\n　　　ビス管理責任者）とその他の職員に分けて記入して下さい。また、指導員等のうち、障害福祉サー\n　　　ビス等以外の営利企業で経験がある者の人数を記入して下さい。"]
[]
[]
[]
[]
[null,null,null,null,null,null,"区分",null,"就労継続支援Ａ型事業に従事する職員の実人数"]
[null,null,null,null,null,null,null,null,null,null,"①指導員等（職業指導員、生活支援員、就労支援員、サービス管理責任者）",null,null,null,"③その他の職員"]
[null,null,null,null,null,null,null,null,null,null,null,null,"②うち障害福祉サービス等以外の営利企業で経験がある者"]
[null,null,null,null,null,null,"常勤職員",null,{"$f":"SUM(K270,O270)","v":0},"人",null,"人",null,"人",null,"人"]
[null,null,null,null,null,null,"非常勤職員",null,{"$f":"SUM(K271,O271)","v":0},"人",null,"人",null,"人",null,"人"]
[null,null,null,null,null,null,"合計",null,{"$f":"SUM(I270:I271)","v":0},"人",{"$f":"SUM(K270:K271)","v":0},"人",{"$f":"SUM(M270:M271)","v":0},"人",{"$f":"SUM(O270:O271)","v":0},"人"]
[]
[null,null,null,null,null,null,"例）調査対象が右表の「Ｄ事業所」のような多機能型事業所で、調査対象サービスが「就労移行支援」の場合\n\n→右記赤枠の常勤職員、非常勤職員の実人数を記入して下さい。\n\n「就労移行支援」と「生活介護」・「就労継続支援Ａ型」とを兼務している職員も１名としてカウントして下さい。\n"]
[]
[]
[]
[]
[]
[]
[]
[]
[]
[]
[]
[]
[]
[]
[null,null,null,null,null,"（３）　４．（１）で記入した平成28年３月31日時点の事業所全体で障害福祉サービス等事業に従事する\n　　　常勤職員、非常勤職員の常勤換算数を指導員等（職業指導員、生活支援員、就労支援員、サービス\n　　　管理責任者等）とその他の職員に分けて記入して下さい。また、指導員等のうち、障害福祉サービ\n　　　ス等以外の営利企業で経験がある者の人数を記入して下さい。"]
[null,"他の事業シートと不一致の場合は、\n下記に「×」が表示されます。"]
[]
[]
[null,null,"移行","就労Ｂ",null,null,"○　多機能型事業所で就労移行支援、就労継続支援Ｂ型の事業を行っている場合、同事業の\n　シートと同じ数値が入ります。（C・D列を確認してください。）"]
[null,"常勤",{"$f":"IF(就労移行支援事業所用!$I$81=\"\",\"\",IF(I299=就労移行支援事業所用!I299,\"〇\",\"×\"))","v":""},{"$f":"IF(就労継続支援B型事業所用!$I$81=\"\",\"\",IF(I299=就労継続支援B型事業所用!I299,\"〇\",\"×\"))","v":""}]
[null,"非常勤",{"$f":"IF(就労移行支援事業所用!$I$81=\"\",\"\",IF(I300=就労移行支援事業所用!I300,\"〇\",\"×\"))","v":""},{"$f":"IF(就労継続支援B型事業所用!$I$81=\"\",\"\",IF(I300=就労継続支援B型事業所用!I300,\"〇\",\"×\"))","v":""},null,null,"○　常勤職員は、既定値として、４（１）の実人員と同数となるようにしています。\n"]
[null,null,null,null,null,null,"区分",null,"常勤換算数"]
[null,null,null,null,null,null,null,null,null,null,"①指導員等（職業指導員、生活支援員、就労支援員、サービス管理責任者等）",null,null,null,"③その他の職員"]
[null,null,null,null,null,null,null,null,null,null,null,null,"②うち障害福祉サービス等以外の営利企業で経験がある者"]
[null,null,null,null,null,null,"常勤職員",null,{"$f":"SUM(K299,O299)","v":0},"人",{"$f":"K243","v":0},"人",{"$f":"M243","v":0},"人",{"$f":"O243","v":0},"人"]
[null,null,null,null,null,null,"非常勤職員",null,{"$f":"SUM(K300,O300)","v":0},"人",null,"人",null,"人",null,"人"]
[null,null,null,null,null,null,"合計",null,{"$f":"SUM(I299:I300)","v":0},"人",{"$f":"SUM(K299:K300)","v":0},"人",{"$f":"SUM(M299:M300)","v":0},"人",{"$f":"SUM(O299:O300)","v":0},"人"]
[]
[]
[null,null,null,null,null,null,"例）調査対象が右表の「Ｄ事業所」のような多機能型事業所で、調査対象サービスが「就労移行支援」の場合\n\n→右記赤枠の常勤職員、非常勤職員の常勤換算数を記入して下さい。\n\n"]
[]
[]
[]
[]
[]
[]
[]
[]
[]
[]
[]
[]
[]
[]
[null,null,null,null,null,"（４）　４．（２）で記入した就労継続支援A型事業に従事する常勤職員、非常勤職員の常勤換算数を\n　　　指導員等（職業指導員、生活支援員、就労支援員、サービス管理責任者）とその他の職員に分けて\n　　　記載して下さい。また、指導員等のうち、障害福祉サービス等以外の営利企業で経験がある者の人数\n　　　を記入して下さい。"]
[]
[]
[]
[null,null,null,null,null,null,"区分",null,"就労継続支援Ａ型事業に従事する職員の常勤換算数"]
[null,null,null,null,null,null,null,null,null,null,"①指導員等（職業指導員、生活支援員、就労支援員、サービス管理責任者）",null,null,null,"③その他の職員"]
[null,null,null,null,null,null,null,null,null,null,null,null,"②うち障害福祉サービス等以外の営利企業で経験がある者"]
[null,null,null,null,null,null,"常勤職員",null,{"$f":"SUM(K326,O326)","v":0},"人",null,"人",null,"人",null,"人"]
[null,null,null,null,null,null,"非常勤職員",null,{"$f":"SUM(K327,O327)","v":0},"人",null,"人",null,"人",null,"人"]
[null,null,null,null,null,null,"合計",null,{"$f":"SUM(I326:I327)","v":0},"人",{"$f":"SUM(K326:K327)","v":0},"人",{"$f":"SUM(M326:M327)","v":0},"人",{"$f":"SUM(O326:O327)","v":0},"人"]
[]
[null,null,null,null,null,null,"例）調査対象が右表の「Ｄ事業所」のような多機能型事業所で、調査対象サービスが「就労移行支援」の場合\n\n→右記赤枠の常勤職員、非常勤職員の常勤換算数を記入して下さい。\n\n但し、「就労移行支援」と「生活介護」・「就労継続支援Ａ型」とを兼務している職員は、勤務時間を基礎として、常勤換算して、就労移行支援分を記入して下さい。\n"]
[]
[]
[]
[]
[]
[]
[]
[]
[]
[]
[]
[]
[]
[]
[]
[]
[]
[null,null,null,null,null,"５．事業所における障害福祉サービス等事業の収益・費用について\n　　（平成27年度：平成27年４月１日～平成28年３月31日）"]
[null,"他の事業シートと不一致の場合は、\n下記に「×」が表示されます。"]
[null,null,null,null,null,null,"○　多機能型事業所で就労移行支援、就労継続支援Ｂ型の事業を行っている場合、５．（１）～\n　（５）は同事業のシートと同じ数値が入ります。"]
[]
[null,null,"移行","就労Ｂ",null,"（１）　平成27年度における障害福祉サービス等事業のサービス活動収益（就労継続支援A型事業以外の\n　　　収益を含む）の総額を記入し、自立支援給付費収益、就労支援事業収益、寄附金による収益、その\n　　　他の収益に分けて記入して下さい。"]
[null,"（1）サービス活動収益",{"$f":"IF(就労移行支援事業所用!$I$81=\"\",\"\",IF(I359=就労移行支援事業所用!I359,\"〇\",\"×\"))","v":""},{"$f":"IF(就労継続支援B型事業所用!$I$81=\"\",\"\",IF(I359=就労継続支援B型事業所用!I359,\"〇\",\"×\"))","v":""}]
[null,"①自立支援給付",{"$f":"IF(就労移行支援事業所用!$I$81=\"\",\"\",IF(L359=就労移行支援事業所用!L359,\"〇\",\"×\"))","v":""},{"$f":"IF(就労継続支援B型事業所用!$I$81=\"\",\"\",IF(L359=就労継続支援B型事業所用!L359,\"〇\",\"×\"))","v":""}]
[null,"②就労支援事業",{"$f":"IF(就労移行支援事業所用!$I$81=\"\",\"\",IF(O359=就労移行支援事業所用!O359,\"〇\",\"×\"))","v":""},{"$f":"IF(就労継続支援B型事業所用!$I$81=\"\",\"\",IF(O359=就労継続支援B型事業所用!O359,\"〇\",\"×\"))","v":""},null,null,"※　「サービス活動収益の総額」が赤いセルとなる場合、①～④と金額が合致していません。再度\n　ご確認をお願いします。"]
[null,"③寄附金",{"$f":"IF(就労移行支援事業所用!$I$81=\"\",\"\",IF(I362=就労移行支援事業所用!I362,\"〇\",\"×\"))","v":""},{"$f":"IF(就労継続支援B型事業所用!$I$81=\"\",\"\",IF(I362=就労継続支援B型事業所用!I362,\"〇\",\"×\"))","v":""}]
[null,"④その他",{"$f":"IF(就労移行支援事業所用!$I$81=\"\",\"\",IF(L362=就労移行支援事業所用!L362,\"〇\",\"×\"))","v":""},{"$f":"IF(就労継続支援B型事業所用!$I$81=\"\",\"\",IF(L362=就労継続支援B型事業所用!L362,\"〇\",\"×\"))","v":""},null,null,null,null,"サービス活動収益の総額"]
[null,"(2)サービス活動費用",{"$f":"IF(就労移行支援事業所用!$I$81=\"\",\"\",IF(I366=就労移行支援事業所用!I366,\"〇\",\"×\"))","v":""},{"$f":"IF(就労継続支援B型事業所用!$I$81=\"\",\"\",IF(I366=就労継続支援B型事業所用!I366,\"〇\",\"×\"))","v":""},null,null,null,null,null,null,null,"①うち自立支援給付費収益",null,null,"②うち就労支援事業収益"]
[null,"(3)常勤",{"$f":"IF(就労移行支援事業所用!$I$81=\"\",\"\",IF(J387=就労移行支援事業所用!J387,\"〇\",\"×\"))","v":""},{"$f":"IF(就労継続支援B型事業所用!$I$81=\"\",\"\",IF(J387=就労継続支援B型事業所用!J387,\"〇\",\"×\"))","v":""},null,null,"平成27年度",null,null,null,"円",null,null,"円",null,null,"円"]
[null,"(3)非常勤",{"$f":"IF(就労移行支援事業所用!$I$81=\"\",\"\",IF(J388=就労移行支援事業所用!J388,\"〇\",\"×\"))","v":""},{"$f":"IF(就労継続支援B型事業所用!$I$81=\"\",\"\",IF(J388=就労継続支援B型事業所用!J388,\"〇\",\"×\"))","v":""}]
[null,"(4）サービス活動外収益",{"$f":"IF(就労移行支援事業所用!$I$81=\"\",\"\",IF(I395=就労移行支援事業所用!I395,\"〇\",\"×\"))","v":""},{"$f":"IF(就労継続支援B型事業所用!$I$81=\"\",\"\",IF(I395=就労継続支援B型事業所用!I395,\"〇\",\"×\"))","v":""},null,null,null,null,"③うち寄附金による収益",null,null,"④その他の収益"]
[null,"①借入金補助金収益",{"$f":"IF(就労移行支援事業所用!$I$81=\"\",\"\",IF(L395=就労移行支援事業所用!L395,\"〇\",\"×\"))","v":""},{"$f":"IF(就労継続支援B型事業所用!$I$81=\"\",\"\",IF(L395=就労継続支援B型事業所用!L395,\"〇\",\"×\"))","v":""},null,null,null,null,null,null,"円",null,null,"円"]
[null,"(4）サービス活動外費用",{"$f":"IF(就労移行支援事業所用!$I$81=\"\",\"\",IF(I399=就労移行支援事業所用!I399,\"〇\",\"×\"))","v":""},{"$f":"IF(就労継続支援B型事業所用!$I$81=\"\",\"\",IF(I399=就労継続支援B型事業所用!I399,\"〇\",\"×\"))","v":""}]
[null,"①支払利息",{"$f":"IF(就労移行支援事業所用!$I$81=\"\",\"\",IF(L399=就労移行支援事業所用!L399,\"〇\",\"×\"))","v":""},{"$f":"IF(就労継続支援B型事業所用!$I$81=\"\",\"\",IF(L399=就労継続支援B型事業所用!L399,\"〇\",\"×\"))","v":""},null,"（２）　平成27年度における障害福祉サービス等事業のサービス活動費用（就労継続支援A型事業以外の費\n　　　用を含む）の総額を記入して下さい。"]
[null,"(5)特別収益",{"$f":"IF(就労移行支援事業所用!$I$81=\"\",\"\",IF(I408=就労移行支援事業所用!I408,\"〇\",\"×\"))","v":""},{"$f":"IF(就労継続支援B型事業所用!$I$81=\"\",\"\",IF(I408=就労継続支援B型事業所用!I408,\"〇\",\"×\"))","v":""}]
[null,"①うち繰入金収益",{"$f":"IF(就労移行支援事業所用!$I$81=\"\",\"\",IF(L408=就労移行支援事業所用!L408,\"〇\",\"×\"))","v":""},{"$f":"IF(就労継続支援B型事業所用!$I$81=\"\",\"\",IF(L408=就労継続支援B型事業所用!L408,\"〇\",\"×\"))","v":""},null,null,"平成27年度",null,null,null,"円"]
[null,"(5)特別費用",{"$f":"IF(就労移行支援事業所用!$I$81=\"\",\"\",IF(I412=就労移行支援事業所用!I412,\"〇\",\"×\"))","v":""},{"$f":"IF(就労継続支援B型事業所用!$I$81=\"\",\"\",IF(I412=就労継続支援B型事業所用!I412,\"〇\",\"×\"))","v":""}]
[null,"①うち繰入金費用",{"$f":"IF(就労移行支援事業所用!$I$81=\"\",\"\",IF(L412=就労移行支援事業所用!L412,\"〇\",\"×\"))","v":""},{"$f":"IF(就労継続支援B型事業所用!$I$81=\"\",\"\",IF(L412=就労継続支援B型事業所用!L412,\"〇\",\"×\"))","v":""},null,null,"５．の収益・費用について\n\n例）調査対象が右表の「Ｄ事業所」のような多機能型事業所で、調査対象サービスが「就労移行支援」の場合\n\n→右記赤枠の事業における収益・費用を記入して下さい。"]
[]
[]
[]
[]
[]
[]
[]
[]
[]
[]
[]
[]
[null,null,null,null,null,"（３）　５．（２）で記入した障害福祉サービス等事業のサービス活動費用のうち、平成27年度におけ\n　　　る人件費を指導員等（職業指導員、生活支援員、就労支援員、サービス管理責任者等）とその他\n　　　の職員に分けて記入して下さい。"]
[]
[]
[null,null,null,null,null,null,"区分",null,null,"人件費計"]
[null,null,null,null,null,null,null,null,null,null,null,null,"①指導員等（職業指導員、生活支援員、就労支援員、サービス管理責任者等）",null,"②その他の職員"]
[null,null,null,null,null,null,"職員人件費",null,null,{"$f":"SUM(J387:K388)","v":0},null,"円",{"$f":"SUM(M387:M388)","v":0},"円",{"$f":"SUM(O387:O388)","v":0},"円"]
[null,null,null,null,null,null,null,"常勤職員",null,{"$f":"SUM(M387,O387)","v":0},null,"円",null,"円",null,"円"]
[null,null,null,null,null,null,null,"非常勤職員",null,{"$f":"SUM(M388,O388)","v":0},null,"円",null,"円",null,"円"]
[]
[null,null,null,null,null,"（４）　平成27年度における障害福祉サービス等事業のサービス活動外収益とサービス活動外費用を記入\n　　　して下さい。また、サービス活動外収益のうち、借入金利息補助金収益の金額を記入し、サービス\n　　　活動外費用のうち、支払利息の金額を記入して下さい。"]
[]
[]
[null,null,null,null,null,null,null,null,"サービス活動外収益"]
[null,null,null,null,null,null,null,null,null,null,null,"うち借入金利息補助金収益"]
[null,null,null,null,null,null,"平成27年度",null,null,null,"円",null,null,"円"]
[]
[null,null,null,null,null,null,null,null,"サービス活動外費用"]
[null,null,null,null,null,null,null,null,null,null,null,"うち支払利息"]
[null,null,null,null,null,null,"平成27年度",null,null,null,"円",null,null,"円"]
[]
[]
[]
[null,null,null,null,null,"（５）　平成27年度における障害福祉サービス等事業における特別収益と特別費用を記入して下さい。\n　　　また、特別収益のうち、事業区分（拠点区分）間繰入金収益の総額を記入し、特別費用のうち、\n　　　事業区分（拠点区分）間繰入費用の総額を記入して下さい。"]
[]
[]
[null,null,null,null,null,null,null,null,"特別収益"]
[null,null,null,null,null,null,null,null,null,null,null,"うち事業区分（拠点区分）間繰入金収益"]
[null,null,null,null,null,null,"平成27年度",null,null,null,"円",null,null,"円"]
[]
[null,null,null,null,null,null,null,null,"特別費用"]
[null,null,null,null,null,null,null,null,null,null,null,"うち事業区分（拠点区分）間繰入金費用"]
[null,null,null,null,null,null,"平成27年度",null,null,null,"円",null,null,"円"]
[]
[]
[]
[null,null,null,null,null,"６．就労継続支援A型事業における収益・費用について\n　　（平成27年度：平成27年４月１日～平成28年３月31日）"]
[]
[null,null,null,null,null,"（１）　平成27年度の就労継続支援A型事業におけるサービス活動収益の総額を記入し、そのうち、訓練等給\n　　　付費収益を記入して下さい。また、平成28年３月31日現在で取得している加算をチェックして下さい。"]
[]
[null,null,null,null,null,null,null,null,"サービス活動収益"]
[null,null,null,null,null,null,null,null,null,null,null,"訓練等給付費収益"]
[null,null,null,null,null,null,"平成27年度",null,null,null,"円",null,null,"円"]
[]
[null,null,null,null,null,null,null,"就労定着支援体制加算"]
[null,null,null,null,null,null,null,"就労移行支援体制加算"]
[null,null,null,null,null,null,null,"目標工賃達成加算"]
[]
[]
[null,null,null,null,null,"（２）　平成27年度の就労継続支援A型事業におけるサービス活動費用の総額を記入して下さい。"]
[]
[null,null,null,null,null,null,"平成27年度",null,null,null,"円"]
[]
[null,null,null,null,null,null,"６．の収益・費用について\n\n例）調査対象が右表の「Ｄ事業所」のような多機能型事業所で、調査対象サービスが「就労移行支援」の場合\n\n→右記赤枠の事業における収益・費用を記入して下さい。"]
[]
[]
[]
[]
[]
[]
[]
[]
[]
[]
[]
[]
[]
[null,null,null,null,null,"（３）　６．（２）で記入した就労継続支援A型事業におけるサービス活動費用のうち、平成27年度の人\n　　件費を指導員等（職業指導員、生活支援員、就労支援員、サービス管理責任者）とその他の職員に分\n　　けて記入して下さい。"]
[]
[]
[null,null,null,null,null,null,"区分",null,null,"人件費計"]
[null,null,null,null,null,null,null,null,null,null,null,null,"①指導員等（職業指導員、生活支援員、就労支援員、サービス管理責任者）",null,"②その他の職員"]
[null,null,null,null,null,null,"職員人件費",null,null,{"$f":"SUM(J453:K454)","v":0},null,"円",{"$f":"SUM(M453:M454)","v":0},"円",{"$f":"SUM(O453:O454)","v":0},"円"]
[null,null,null,null,null,null,null,"常勤職員",null,{"$f":"SUM(M453,O453)","v":0},null,"円",null,"円",null,"円"]
[null,null,null,null,null,null,null,"非常勤職員",null,{"$f":"SUM(M454,O454)","v":0},null,"円",null,"円",null,"円"]
[]
[]
[null,null,null,null,null,"（４）　平成27年度の就労継続支援A型事業におけるサービス活動外収益とサービス活動外費用を記入し\n　　て下さい。また、サービス活動外収益のうち、借入金利息補助金収益の金額を記入し、サービス活動\n　　外費用のうち、支払利息の金額を記入して下さい。"]
[]
[]
[null,null,null,null,null,null,null,null,"サービス活動外収益"]
[null,null,null,null,null,null,null,null,null,null,null,"うち借入金利息補助金収益"]
[null,null,null,null,null,null,"平成27年度",null,null,null,"円",null,null,"円"]
[]
[null,null,null,null,null,null,null,null,"サービス活動外費用"]
[null,null,null,null,null,null,null,null,null,null,null,"うち支払利息"]
[null,null,null,null,null,null,"平成27年度",null,null,null,"円",null,null,"円"]
[]
[null,null,null,null,null,"（５）　平成27年度における就労継続支援A型事業における特別収益と特別費用を記入して下さい。\n　　　また、特別収益には、事業区分（拠点区分）間繰入金収益の総額を記入し、特別費用には、\n　　　事業区分（拠点区分）間繰入費用の総額を記入して下さい。"]
[]
[]
[null,null,null,null,null,null,null,null,"特別収益"]
[null,null,null,null,null,null,null,null,null,null,null,"うち事業区分（拠点区分）間繰入金収益"]
[null,null,null,null,null,null,"平成27年度",null,null,null,"円",null,null,"円"]
[]
[null,null,null,null,null,null,null,null,"特別費用"]
[null,null,null,null,null,null,null,null,null,null,null,"うち事業区分（拠点区分）間繰入金費用"]
[null,null,null,null,null,null,"平成27年度",null,null,null,"円",null,null,"円"]
[]
[null,null,null,null,null,"７．就労支援事業収益・就労支援事業費用について\n　　（平成27年度：平成27年４月１日～平成28年３月31日）"]
[]
[null,null,null,null,null,"（１）　平成27年度における就労継続支援A型事業の就労支援事業収益の総額を記入して下さい。"]
[null,null,null,null,null,null,"※　１．（２）で「1 単独事業」を選択して、５．（１）の「②うち就労支援事業収益」との数値が\n　一致しない場合、赤いセルとなります。再度ご確認をお願いします。"]
[]
[null,null,null,null,null,null,"平成27年度",null,null,null,"円"]
[]
[]
[]
[]
[null,null,null,null,null,"（２）　平成27年度における就労継続支援A型事業の就労支援事業費用を記入して下さい。また、そのうち\n　　　利用者に対して支払った工賃（賃金）の総額を記入して下さい。"]
[]
[null,null,null,null,null,null,null,null,"就労支援事業費用"]
[null,null,null,null,null,null,null,null,null,null,null,"うち利用者工賃（利用者賃金）"]
[null,null,null,null,null,null,"平成27年度",null,null,null,"円",null,null,"円"]
[]
[null,null,null,null,null,null,"７．の収益・費用について\n\n例）調査対象が右表の「Ｄ事業所」のような多機能型事業所で、調査対象サービスが「就労移行支援」の場合\n\n→右記赤枠の事業における就労支援事業収益・就労支援事業費用を記入して下さい。\n\n※６．で記入した「サービス活動収益」、「サービス活動費用」の内数となります。"]
[]
[]
[]
[]
[]
[]
[]
[]
[]
[]
[]
[]
[]
[]
[]
[]
[]
[]
[null,null,null,null,null,"８．27年度決算における事業所において生じた利益（剰余金）処分の方法について、以下の選択肢からご回答下さい（複数回答可）。"]
[]
[]
[null,null,null,null,null,null,null,"１．事業所の施設や設備への投資に向けた留保"]
[null,null,null,null,null,null,null,"２．有利子負債削減"]
[null,null,null,null,null,null,null,"３．新規雇用の拡大や従業員への還元に向けた留保"]
[null,null,null,null,null,null,null,"４．役員報酬・賞与の支払い"]
[null,null,null,null,null,null,null,"５．把握していない"]
[null,null,null,null,null,null,null,"６．その他"]
[]
[]
[null,null,null,null,null,null,"　以上でアンケートは終了です。調査にご協力いただき、誠にありがとうございました。"]

{"sheet":"就労継続支援B型事業所用","index":3,"n_rows":525,"n_cols":17,"rows_kept":525,"cut":false,"hidden":false,"merged":[[492,11,492,12],[483,6,483,7],[483,8,483,9],[490,6,491,7],[490,8,490,10],[491,11,491,13],[495,6,508,9],[472,6,472,7],[472,8,472,9],[472,11,472,12],[474,8,474,10],[475,11,475,13],[476,6,476,7],[476,8,476,9],[476,11,476,12],[451,6,451,7],[451,9,451,10],[452,9,452,10],[453,9,453,10],[459,8,459,10],[430,6,430,7],[430,8,430,9],[432,6,443,9],[492,6,492,7],[492,8,492,9],[465,6,465,7],[456,5,458,16],[465,8,465,9],[465,11,465,12],[470,8,470,10],[471,11,471,13],[460,11,460,13],[461,6,461,7],[461,8,461,9],[461,11,461,12],[463,8,463,10],[464,11,464,13],[467,5,469,16],[449,6,450,8],[450,12,450,13],[450,14,450,15],[428,5,428,16],[446,5,448,16],[398,6,398,7],[398,8,398,9],[398,11,398,12],[405,8,405,10],[406,11,406,13],[449,9,449,11],[419,8,419,10],[420,11,420,13],[421,6,421,7],[421,8,421,9],[421,11,421,12],[407,6,407,7],[407,8,407,9],[407,11,407,12],[409,8,409,10],[410,11,410,13],[411,6,411,7],[411,8,411,9],[411,11,411,12],[415,5,416,16],[393,11,393,13],[394,6,394,7],[394,8,394,9],[394,11,394,12],[396,8,396,10],[397,11,397,13],[402,5,404,16],[363,5,364,16],[385,6,385,7],[385,9,385,10],[386,9,386,10],[387,9,387,10],[392,8,392,10],[365,6,365,7],[365,8,365,9],[367,6,377,9],[383,6,384,8],[383,9,383,11],[384,12,384,13],[384,14,384,15],[380,5,382,16],[389,5,391,16],[323,14,324,15],[318,5,321,16],[347,5,348,16],[360,8,360,10],[360,11,360,13],[361,6,361,7],[361,8,361,9],[361,11,361,12],[356,8,356,10],[357,11,357,13],[357,14,357,16],[358,6,358,7],[358,8,358,9],[358,11,358,12],[358,14,358,15],[354,6,355,16],[351,5,353,16],[349,6,350,16],[324,12,324,13],[325,6,325,7],[326,6,326,7],[327,6,327,7],[329,6,341,9],[298,6,298,7],[299,6,299,7],[300,6,300,7],[303,6,315,9],[322,6,324,7],[322,8,322,9],[322,10,322,11],[323,10,323,13],[295,6,297,7],[295,8,295,9],[295,10,295,11],[296,10,296,13],[296,14,297,15],[297,12,297,13],[268,12,268,13],[269,6,269,7],[270,6,270,7],[271,6,271,7],[273,6,285,9],[292,6,293,16],[288,5,291,16],[218,5,219,16],[233,5,236,16],[237,6,238,16],[242,6,242,7],[243,6,243,7],[244,6,244,7],[246,6,258,9],[266,6,268,7],[266,8,266,9],[266,10,266,11],[267,10,267,13],[267,14,268,15],[261,5,264,16],[239,6,241,7],[239,8,239,9],[239,10,239,11],[240,10,240,13],[240,14,241,15],[241,12,241,13],[221,6,222,6],[221,7,221,8],[222,9,222,10],[222,11,222,12],[223,13,228,17],[203,6,216,9],[174,9,174,10],[174,11,174,12],[174,13,174,14],[185,7,185,8],[186,9,186,10],[186,11,186,12],[186,13,186,14],[186,15,186,16],[183,5,183,16],[137,15,137,16],[132,5,133,16],[134,5,134,16],[170,5,171,16],[194,7,194,8],[194,9,194,10],[194,11,194,12],[194,13,194,14],[194,15,194,16],[145,7,145,8],[145,9,145,10],[145,11,145,12],[145,13,145,14],[154,6,167,9],[136,6,137,6],[136,7,136,8],[137,9,137,10],[137,11,137,12],[137,13,137,14],[113,6,113,7],[114,6,114,7],[115,6,115,7],[116,6,116,7],[117,6,117,7],[121,7,121,8],[61,6,62,16],[101,6,102,6],[101,7,101,8],[102,9,102,10],[102,11,102,12],[72,6,73,8],[97,5,98,16],[115,10,117,16],[52,8,52,11],[53,6,53,7],[53,8,53,11],[54,6,54,7],[1,12,2,13],[47,6,47,7],[47,8,47,11],[44,6,45,16],[7,5,7,17],[11,6,11,16],[15,6,16,16],[18,6,19,16],[23,6,25,16],[31,6,32,16],[42,5,43,17],[54,8,54,11],[234,1,236,3],[289,1,291,3],[348,1,350,3],[1,14,2,17],[478,5,479,16],[480,5,480,16],[481,6,482,16],[488,5,489,16],[513,5,514,17],[417,5,418,18],[48,6,48,7],[48,8,48,11],[49,6,49,7],[49,8,49,11],[50,8,50,11],[51,6,51,7],[51,8,51,11],[55,6,55,7],[55,8,55,11],[56,6,56,7],[56,8,56,11],[57,6,57,7],[57,8,57,11],[52,6,52,7]]}
[]
[null,null,null,null,null,null,null,null,null,null,null,null,"整理番号"]
[]
[]
[]
[]
[]
[null,null,null,null,null,"「就労継続支援Ｂ型」事業を行う事業所における調査票"]
[]
[]
[null,null,null,null,null,null,"○　このシートは、就労継続支援B型事業における調査票となっております。"]
[null,null,null,null,null,null,"　　 就労移行支援事業、就労継続支援A型事業を行っている事業所は、それぞれの事業におけるシートに記入して下さい。"]
[]
[null,null,null,null,null,null," 　　また、法人で複数の事業を実施している場合及び多機能型事業所の場合、それぞれの事業毎に調査票を作成して下さい。"]
[]
[null,null,null,null,null,null,"　　（例）　「就労移行支援」と「就労継続支援Ｂ型」の多機能型である場合、「就労移行支援事業所用」のシートと「就労継続支\n　　　　　　　援Ｂ型事業所用」のシートで計２つの調査票が必要となります。"]
[]
[]
[null,null,null,null,null,null,"○　数字入力欄は必ず半角数字で入力して下さい。また、シートの行と列の追加・削除はせず、文字量が多くて枠内に表示\n　されない場合でも、そのまま入力して下さい（枠を広げたりしないで下さい）。"]
[]
[]
[]
[]
[null,null,null,null,null,null,"○　調査対象は、平成２９年４月１日時点で、就労移行支援、就労継続支援Ａ型、就労継続支援Ｂ型の指定を受けている\n　事業所（平成２９年４月１日時点で当該サービスを休止・廃止の事業所は除く。また、平成２８年４月１日以降に新設された\n　事業所は除く。）となります。"]
[]
[]
[]
[null,null,null,null,null,null,"○　主たる事業所と従たる事業所がある場合は、主たる事業所において調査票を１枚に集約して下さい。"]
[]
[null,null,null,null,null,null,"○　障害別の調査について、重複して該当する場合、主な障害を選択して下さい（複数回答不可）。"]
[]
[null,null,null,null,null,null,"○　５．～７．の調査票の記載は、社会福祉法人会計基準をもとに作成しています。他の会計基準で決算関係書類を作成\n　している場合、以下のように読み替えて記入して下さい。"]
[]
[]
[null,null,null,null,null,null,"例）社会福祉法人会計の　「サービス活動収益・費用」　と　「特別収益・費用」　を求める場合"]
[null,null,null,null,null,null,"　　・病院会計　→　「医業・介護外収益・費用」　と　「臨時収益・費用」　を記入"]
[null,null,null,null,null,null,"　　・企業会計、ＮＰＯ法人会計など　→　「営業外収益・費用」　と　「特別収益・費用」　を記入"]
[]
[null,null,null,null,null,null,"○　各項目の金額は、消費税込みで記入して下さい。"]
[]
[]
[]
[null,null,null,null,null,"　平成28年３月31日時点の事業所の所在地（都道府県名、市区町村名）、法人名、事業所名、事業所番号、事業開始時期、連絡先を記入して下さい。また、経営主体は右欄から選択し番号を記入して下さい。"]
[]
[null,null,null,null,null,null,"○　多機能型事業所で就労移行支援、就労継続支援Ａ型の事業を行っている場合、同事業のシートと\n　同じ事項を入力して下さい。"]
[]
[]
["１　国",null,null,null,null,null,"都道府県名",null,"○○県",null,null,null,null,"１　国"]
["２　地方公共団体",null,null,null,null,null,"市区町村名",null,"○○市",null,null,null,null,"２　地方公共団体"]
["３　社会福祉協議会",null,null,null,null,null,"法人名",null,null,null,null,null,null,"３　社会福祉協議会"]
["４　社会福祉法人",null,null,null,null,null,null,"経営主体",null,null,null,null,null,"４　社会福祉法人"]
["５　医療法人",null,null,null,null,null,"事業所名",null,"○○○○○",null,null,null,null,"５　医療法人"]
["６　公益法人",null,null,null,null,null,"事業所番号",null,"○○○○○",null,null,null,null,"６　公益法人"]
["７　共同組合",null,null,null,null,null,"事業開始時期",null,"H○年○月○日",null,null,null,null,"７　共同組合"]
["８　営利法人",null,null,null,null,null,"電話番号",null,"00-000-0000",null,null,null,null,"８　営利法人"]
["９　特定非営利活動法人",null,null,null,null,null,"E-mail",null,"○○○○○＠○○○",null,null,null,null,"９　特定非営利活動法人"]
["10　その他",null,null,null,null,null,"FAX",null,"00-000-0000",null,null,null,null,"10　その他"]
[null,null,null,null,null,null,"ご担当者氏名",null,"○○　○○"]
[]
[]
[null,null,null,null,null,"（調査目的）"]
[null,null,null,null,null,null,"　就労移行支援、就労継続支援Ａ型、就労継続支援Ｂ型事業所を経営されている事業所の運営実態を調査し、サービスの提供状況を把握するための基礎資料を得ることを目的としています。"]
[]
[]
[null,null,null,null,null,"（記載要領）"]
[null,null,null,null,null,null,"　着色セルに入力する形で、調査にご協力ください。"]
[]
[null,null,null,null,null,"（調査項目）"]
[null,null,null,null,null,"１．実施状況等について"]
[null,null,null,null,null,"（１）平成28年３月31日時点で実施している事業を右欄より選択し、番号を記入して下さい。"]
[]
["１",null,null,null,null,null,"事業実施の種類",null,"３",null,"１　就労移行支援"]
["２",null,null,null,null,null,"※　既定値として「３」を\n　入力しています。",null,null,null,"２　就労継続支援Ａ型"]
["３","　","　",null,null,null,null,null,null,null,"３　就労継続支援Ｂ型"]
[]
[]
[]
[]
[null,null,null,null,null,"（２）平成28年３月31日時点の事業の実施形態を右欄より選択し、番号を記入して下さい。"]
["１"]
["２",null,null,null,null,null,"事業の実施形態",null,null,null,"１　単独実施"]
[null,null,null,null,null,null,null,null,null,null,"２　多機能型実施"]
[]
[]
[]
[]
[]
[]
[]
[]
[]
[null,null,null,null,null,"２．定員数・利用者数について"]
[null,null,null,null,null,"（１）　平成28年３月31日時点の定員数を記入して下さい。"]
[]
[null,null,null,null,null,null,"定員数",null,"人"]
[]
[]
[null,null,null,null,null,"（２）　平成28年３月31日時点の利用者数（利用契約を締結している者の人数）について、障害支援区分\n　　　の有無別で、障害種別毎に記入して下さい。"]
[]
[null,null,null,null,null,null,"※　就労アセスメント対象者は除く。"]
[]
[null,null,null,null,null,null,"種別","利用者数"]
[null,null,null,null,null,null,null,null,null,"①障害支援区分有り",null,"②障害支援区分無し"]
[null,null,null,null,null,null,"身体障害",{"$f":"SUM(J104,L104)","v":0},"人",null,"人",null,"人"]
[null,null,null,null,null,null,"知的障害",{"$f":"SUM(J105,L105)","v":0},"人",null,"人",null,"人"]
[null,null,null,null,null,null,"精神障害",{"$f":"SUM(J106,L106)","v":0},"人",null,"人",null,"人"]
[null,null,null,null,null,null,"難病等",{"$f":"SUM(J107,L107)","v":0},"人",null,"人",null,"人"]
[null,null,null,null,null,null,"障害児",{"$f":"SUM(J108,L108)","v":0},"人",null,"人",null,"人"]
[null,null,null,null,null,null,"合計",{"$f":"SUM(H104:H108)","v":0},"人",{"$f":"SUM(J104:J108)","v":0},"人",{"$f":"SUM(L104:L108)","v":0},"人"]
[]
[]
[null,null,null,null,null,"（３）　２．（２）で記入した利用者数のうち障害基礎年金受給者数を記入して下さい。"]
[]
[null,null,null,null,null,null,"障害基礎年金（１級）",null,null,"人"]
[null,null,null,null,null,null,"障害基礎年金（２級）",null,null,"人"]
[null,null,null,null,null,null,"受給無し",null,null,"人","※「障害基礎年金受給者数の合計」が赤いセルとなる場合、\n　　２．（２）と人数が合致していません。\n　　再度ご確認をお願いします。"]
[null,null,null,null,null,null,"不明",null,null,"人"]
[null,null,null,null,null,null,"合計",null,{"$f":"SUM(I114:I117)","v":0},"人"]
[]
[null,null,null,null,null,"（４）　平成28年３月31日時点の利用者実人数を障害種別毎に記入して下さい。"]
[]
[null,null,null,null,null,null,"種別","利用者数計"]
[null,null,null,null,null,null,"身体障害",null,"人"]
[null,null,null,null,null,null,"知的障害",null,"人"]
[null,null,null,null,null,null,"精神障害",null,"人"]
[null,null,null,null,null,null,"難病等",null,"人"]
[null,null,null,null,null,null,"障害児",null,"人"]
[null,null,null,null,null,null,"合計",{"$f":"SUM(H123:H127)","v":0},"人"]
[]
[]
[]
[]
[null,null,null,null,null,"３．入所前の状況、退所理由及び就職者の状況等について\n　　（平成27年度：平成27年４月１日～平成28年３月31日）"]
[]
[null,null,null,null,null,"（１）　平成27年度中に利用を開始した者の入所前の状況について、障害種別毎に人数を記入して下さい。"]
[]
[null,null,null,null,null,null,"種別","利用開始者数"]
[null,null,null,null,null,null,null,null,null,"①在宅（障害福祉サービス等の利用無し）・一般就労",null,"②特別支援学校（普通学校の特別支援学級含む）",null,"③普通学校",null,"④他の就労移行支援"]
[null,null,null,null,null,null,"身体障害",{"$f":"SUM(J139,L139,N139,P139,H147,J147,L147,N147)","v":0},"人",null,"人",null,"人",null,"人",null,"人"]
[null,null,null,null,null,null,"知的障害",{"$f":"SUM(J140,L140,N140,P140,H148,J148,L148,N148)","v":0},"人",null,"人",null,"人",null,"人",null,"人"]
[null,null,null,null,null,null,"精神障害",{"$f":"SUM(J141,L141,N141,P141,H149,J149,L149,N149)","v":0},"人",null,"人",null,"人",null,"人",null,"人"]
[null,null,null,null,null,null,"難病等",{"$f":"SUM(J142,L142,N142,P142,H150,J150,L150,N150)","v":0},"人",null,"人",null,"人",null,"人",null,"人"]
[null,null,null,null,null,null,"障害児",{"$f":"SUM(J143,L143,N143,P143,H151,J151,L151,N151)","v":0},"人",null,"人",null,"人",null,"人",null,"人"]
[null,null,null,null,null,null,"合計",{"$f":"SUM(H139:H143)","v":0},"人",{"$f":"SUM(J139:J143)","v":0},"人",{"$f":"SUM(L139:L143)","v":0},"人",{"$f":"SUM(N139:N143)","v":0},"人",{"$f":"SUM(P139:P143)","v":0},"人"]
[]
[null,null,null,null,null,null,"種別","⑤他の就労継続支援Ａ型",null,"⑥他の就労継続支援Ｂ型",null,"⑦生活介護",null,"⑧他の障害福祉サービス等"]
[null,null,null,null,null,null,"身体障害",null,"人",null,"人",null,"人",null,"人"]
[null,null,null,null,null,null,"知的障害",null,"人",null,"人",null,"人",null,"人"]
[null,null,null,null,null,null,"精神障害",null,"人",null,"人",null,"人",null,"人"]
[null,null,null,null,null,null,"難病等",null,"人",null,"人",null,"人",null,"人"]
[null,null,null,null,null,null,"障害児",null,"人",null,"人",null,"人",null,"人"]
[null,null,null,null,null,null,"合計",{"$f":"SUM(H147:H151)","v":0},"人",{"$f":"SUM(J147:J151)","v":0},"人",{"$f":"SUM(L147:L151)","v":0},"人",{"$f":"SUM(N147:N151)","v":0},"人"]
[]
[]
[null,null,null,null,null,null,"例）調査対象が「Ｄ事業所」のような多機能型事業所で、調査対象が「就労移行支援」の場合\n\n→同一法人内のＣ事業所で「就労移行支援」を利用していたが、Ｄ事業所の就労移行支援の利用を始めた場合は「④他の就労移行支援」。\n\n→多機能型事業所であるＤ事業所内の「就労継続支援Ａ型」を利用していたが、Ｄ事業所内の「就労移行支援」の利用を始めた場合は「⑤他の就労継続支援Ａ型」。"]
[]
[]
[]
[]
[]
[]
[]
[]
[]
[]
[]
[]
[]
[]
[]
[null,null,null,null,null,"（２）　３．（１）の利用開始者数のうち、一般就労の経験が有る利用者の雇用形態について、障害種別\n　　　毎に人数を記入して下さい。"]
[]
[]
[null,null,null,null,null,null,"種別","一般就労の経験が有る利用者数"]
[null,null,null,null,null,null,null,null,null,"①障害者雇用枠",null,"②それ以外の雇用",null,"③どちらも経験有り"]
[null,null,null,null,null,null,"身体障害",{"$f":"SUM(J176,L176,N176,)","v":0},"人",null,"人",null,"人",null,"人"]
[null,null,null,null,null,null,"知的障害",{"$f":"SUM(J177,L177,N177,)","v":0},"人",null,"人",null,"人",null,"人"]
[null,null,null,null,null,null,"精神障害",{"$f":"SUM(J178,L178,N178,)","v":0},"人",null,"人",null,"人",null,"人"]
[null,null,null,null,null,null,"難病等",{"$f":"SUM(J179,L179,N179,)","v":0},"人",null,"人",null,"人",null,"人"]
[null,null,null,null,null,null,"障害児",{"$f":"SUM(J180,L180,N180,)","v":0},"人",null,"人",null,"人",null,"人"]
[null,null,null,null,null,null,"合計",{"$f":"SUM(H176:H180)","v":0},"人",{"$f":"SUM(J176:J180)","v":0},"人",{"$f":"SUM(L176:L180)","v":0},"人",{"$f":"SUM(N176:N180)","v":0},"人"]
[]
[]
[null,null,null,null,null,"（３）　平成27年度中に利用を終了した者の退所理由について、障害種別毎に人数を記入して下さい。"]
[]
[null,null,null,null,null,null,"種別","利用終了者数計"]
[null,null,null,null,null,null,null,null,null,"①就職・正規雇用（Ａ型除く）",null,"②就職・非正規雇用（Ａ型除く）",null,"③就労移行支援へ転所",null,"④就労継続支援Ａ型へ転所"]
[null,null,null,null,null,null,"身体障害",{"$f":"SUM(J188,L188,N188,P188,H196,J196,L196,N196,P196)","v":0},"人",null,"人",null,"人",null,"人",null,"人"]
[null,null,null,null,null,null,"知的障害",{"$f":"SUM(J189,L189,N189,P189,H197,J197,L197,N197,P197)","v":0},"人",null,"人",null,"人",null,"人",null,"人"]
[null,null,null,null,null,null,"精神障害",{"$f":"SUM(J190,L190,N190,P190,H198,J198,L198,N198,P198)","v":0},"人",null,"人",null,"人",null,"人",null,"人"]
[null,null,null,null,null,null,"難病等",{"$f":"SUM(J191,L191,N191,P191,H199,J199,L199,N199,P199)","v":0},"人",null,"人",null,"人",null,"人",null,"人"]
[null,null,null,null,null,null,"障害児",{"$f":"SUM(J192,L192,N192,P192,H200,J200,L200,N200,P200)","v":0},"人",null,"人",null,"人",null,"人",null,"人"]
[null,null,null,null,null,null,"合計",{"$f":"SUM(H188:H192)","v":0},"人",{"$f":"SUM(J188:J192)","v":0},"人",{"$f":"SUM(L188:L192)","v":0},"人",{"$f":"SUM(N188:N192)","v":0},"人",{"$f":"SUM(P188:P192)","v":0},"人"]
[]
[null,null,null,null,null,null,"種別","⑤就労継続支援Ｂ型へ転所",null,"⑥生活介護へ転所",null,"⑦その他の障害福祉サービス等へ転所",null,"⑧期間満了のため退所（移行支援）",null,"⑨その他（①～⑧のいずれにも該当しないもの）"]
[null,null,null,null,null,null,"身体障害",null,"人",null,"人",null,"人",0,"人",null,"人"]
[null,null,null,null,null,null,"知的障害",null,"人",null,"人",null,"人",0,"人",null,"人"]
[null,null,null,null,null,null,"精神障害",null,"人",null,"人",null,"人",0,"人",null,"人"]
[null,null,null,null,null,null,"難病等",null,"人",null,"人",null,"人",0,"人",null,"人"]
[null,null,null,null,null,null,"障害児",null,"人",null,"人",null,"人",0,"人",null,"人"]
[null,null,null,null,null,null,"合計",{"$f":"SUM(H196:H200)","v":0},"人",{"$f":"SUM(J196:J200)","v":0},"人",{"$f":"SUM(L196:L200)","v":0},"人",{"$f":"SUM(N196:N200)","v":0},"人",{"$f":"SUM(P196:P200)","v":0},"人"]
[]
[]
[null,null,null,null,null,null,"例）調査対象が「Ｄ事業所」のような多機能型事業所で、調査対象が「就労移行支援」の場合\n\n→D事業所の就労移行支援を利用していた者が同一法人内のＣ事業所で「就労移行支援」の利用を始めた場合は「③就労移行支援へ転所」。\n\n→多機能型事業所である「Ｄ事業所」の就労移行支援を利用していた者が同一事業所内で「就労継続支援Ａ型」の利用を始めた場合は「④就労継続支援Ａ型へ転所」。"]
[]
[]
[]
[]
[]
[]
[]
[]
[]
[]
[]
[]
[]
[]
[null,null,null,null,null,"（４）　３．（３）で「就職・正規雇用（Ａ型除く）」、「就職・非正規雇用（Ａ型除く）」と記入した\n　　　利用者の雇用形態について、障害種別毎に人数を記入して下さい。"]
[]
[]
[null,null,null,null,null,null,"種別","就職者数"]
[null,null,null,null,null,null,null,null,null,"①障害者雇用枠",null,"②それ以外の雇用"]
[null,null,null,null,null,null,"身体障害",{"$f":"SUM(J224,L224)","v":0},"人",null,"人",null,"人","※　各種別の「就職者数の合計」が\n　赤いセルとなる場合、３．（３）の\n　①～②と人数が合致していません。\n　再度ご確認をお願いします。"]
[null,null,null,null,null,null,"知的障害",{"$f":"SUM(J225,L225)","v":0},"人",null,"人",null,"人"]
[null,null,null,null,null,null,"精神障害",0,"人",null,"人",null,"人"]
[null,null,null,null,null,null,"難病等",0,"人",null,"人",null,"人"]
[null,null,null,null,null,null,"障害児",0,"人",null,"人",null,"人"]
[null,null,null,null,null,null,"合計",{"$f":"SUM(H224:H228)","v":0},"人",{"$f":"SUM(J224:J228)","v":0},"人",{"$f":"SUM(L224:L228)","v":0},"人"]
[]
[]
[]
[null,null,null,null,null,"４．職員について"]
[null,null,null,null,null,"（１）　平成28年３月31日時点の事業所全体における障害福祉サービス等事業に従事する常勤職員、\n　　　非常勤職員の実人数を記入して下さい。実人数は、指導員等（職業指導員、生活支援員、就労支援\n　　　員、サービス管理責任者等）とその他の職員に分けて記入して下さい。また、指導員等のうち、\n　　　障害福祉サービス等以外の営利企業で経験がある者の人数を記入して下さい。"]
[null,"他の事業シートと不一致の場合は、\n下記に「×」が表示されます。"]
[]
[]
[null,null,"移行","就労Ａ",null,null,"○　多機能型事業所で就労移行支援、就労継続支援Ａ型の事業を行っている場合、同事業の\n　シートと同じ数値が入ります。（C・D列を確認してください。）"]
[null,"常勤",{"$f":"IF(就労移行支援事業所用!$I$81=\"\",\"\",IF(I243=就労移行支援事業所用!I243,\"〇\",\"×\"))","v":""},{"$f":"IF(就労継続支援A型事業所用!$I$81=\"\",\"\",IF(I243=就労継続支援A型事業所用!I243,\"〇\",\"×\"))","v":""}]
[null,"非常勤",{"$f":"IF(就労移行支援事業所用!$I$81=\"\",\"\",IF(I244=就労移行支援事業所用!I244,\"〇\",\"×\"))","v":""},{"$f":"IF(就労継続支援A型事業所用!$I$81=\"\",\"\",IF(I244=就労継続支援A型事業所用!I244,\"〇\",\"×\"))","v":""},null,null,"区分",null,"実人数"]
[null,null,null,null,null,null,null,null,null,null,"①指導員等（職業指導員、生活支援員、就労支援員、サービス管理責任者等）",null,null,null,"③その他の職員"]
[null,null,null,null,null,null,null,null,null,null,null,null,"②うち障害福祉サービス等以外の営利企業で経験がある者"]
[null,null,null,null,null,null,"常勤職員",null,{"$f":"SUM(K243,O243)","v":0},"人",null,"人",null,"人",null,"人"]
[null,null,null,null,null,null,"非常勤職員",null,{"$f":"SUM(K244,O244)","v":0},"人",null,"人",null,"人",null,"人"]
[null,null,null,null,null,null,"合計",null,{"$f":"SUM(I243:I244)","v":0},"人",{"$f":"SUM(K243:K244)","v":0},"人",{"$f":"SUM(M243:M244)","v":0},"人",{"$f":"SUM(O243:O244)","v":0},"人"]
[]
[null,null,null,null,null,null,"例）調査対象が右表の「Ｄ事業所」のような多機能型事業所で、調査対象サービスが「就労移行支援」の場合\n\n→右記赤枠の常勤職員、非常勤職員の実人数を記入して下さい。\n\n"]
[]
[]
[]
[]
[]
[]
[]
[]
[]
[]
[]
[]
[]
[]
[null,null,null,null,null,"（２）　４．（１）で記入した実人数のうち、就労継続支援B型事業に従事している常勤職員、非常勤職\n　　　員の実人数を記入して下さい。実人数は、指導員等（職業指導員、生活支援員、就労支援員、サー\n　　　ビス管理責任者）とその他の職員に分けて記入して下さい。また、指導員等のうち、障害福祉サー\n　　　ビス等以外の営利企業で経験がある者の人数を記入して下さい。"]
[]
[]
[]
[]
[null,null,null,null,null,null,"区分",null,"就労継続支援Ｂ型事業に従事する職員の実人数"]
[null,null,null,null,null,null,null,null,null,null,"①指導員等（職業指導員、生活支援員、就労支援員、サービス管理責任者）",null,null,null,"③その他の職員"]
[null,null,null,null,null,null,null,null,null,null,null,null,"②うち障害福祉サービス等以外の営利企業で経験がある者"]
[null,null,null,null,null,null,"常勤職員",null,{"$f":"SUM(K270,O270)","v":0},"人",null,"人",null,"人",null,"人"]
[null,null,null,null,null,null,"非常勤職員",null,{"$f":"SUM(K271,O271)","v":0},"人",null,"人",null,"人",null,"人"]
[null,null,null,null,null,null,"合計",null,{"$f":"SUM(I270:I271)","v":0},"人",{"$f":"SUM(K270:K271)","v":0},"人",{"$f":"SUM(M270:M271)","v":0},"人",{"$f":"SUM(O270:O271)","v":0},"人"]
[]
[null,null,null,null,null,null,"例）調査対象が右表の「Ｄ事業所」のような多機能型事業所で、調査対象サービスが「就労移行支援」の場合\n\n→右記赤枠の常勤職員、非常勤職員の実人数を記入して下さい。\n\n「就労移行支援」と「生活介護」・「就労継続支援Ａ型」とを兼務している職員も１名としてカウントして下さい。\n"]
[]
[]
[]
[]
[]
[]
[]
[]
[]
[]
[]
[]
[]
[]
[null,null,null,null,null,"（３）　４．（１）で記入した平成28年３月31日時点の事業所全体で障害福祉サービス等事業に従事する\n　　　常勤職員、非常勤職員の常勤換算数を指導員等（職業指導員、生活支援員、就労支援員、サービス\n　　　管理責任者等）とその他の職員に分けて記入して下さい。また、指導員等のうち、障害福祉サービス\n　　　等以外の営利企業で経験がある者の人数を記入して下さい。"]
[null,"他の事業シートと不一致の場合は、\n下記に「×」が表示されます。"]
[]
[]
[null,null,"移行","就労Ａ",null,null,"○　多機能型事業所で就労移行支援、就労継続支援Ａ型の事業を行っている場合、同事業の\n　シートと同じ数値が入ります。（C・D列を確認してください。）"]
[null,"常勤",{"$f":"IF(就労移行支援事業所用!$I$81=\"\",\"\",IF(I299=就労移行支援事業所用!I299,\"〇\",\"×\"))","v":""},{"$f":"IF(就労継続支援A型事業所用!$I$81=\"\",\"\",IF(I299=就労継続支援A型事業所用!I299,\"〇\",\"×\"))","v":""}]
[null,"非常勤",{"$f":"IF(就労移行支援事業所用!$I$81=\"\",\"\",IF(I300=就労移行支援事業所用!I300,\"〇\",\"×\"))","v":""},{"$f":"IF(就労継続支援A型事業所用!$I$81=\"\",\"\",IF(I300=就労継続支援A型事業所用!I300,\"〇\",\"×\"))","v":""},null,null,"○　常勤職員は、既定値として、４（１）の実人員と同数となるようにしています。\n"]
[null,null,null,null,null,null,"区分",null,"常勤換算数"]
[null,null,null,null,null,null,null,null,null,null,"①指導員等（職業指導員、生活支援員、就労支援員、サービス管理責任者等）",null,null,null,"③その他の職員"]
[null,null,null,null,null,null,null,null,null,null,null,null,"②うち障害福祉サービス等以外の営利企業で経験がある者"]
[null,null,null,null,null,null,"常勤職員",null,{"$f":"SUM(K299,O299)","v":0},"人",{"$f":"K243","v":0},"人",{"$f":"M243","v":0},"人",{"$f":"O243","v":0},"人"]
[null,null,null,null,null,null,"非常勤職員",null,{"$f":"SUM(K300,O300)","v":0},"人",null,"人",null,"人",null,"人"]
[null,null,null,null,null,null,"合計",null,{"$f":"SUM(I299:I300)","v":0},"人",{"$f":"SUM(K299:K300)","v":0},"人",{"$f":"SUM(M299:M300)","v":0},"人",{"$f":"SUM(O299:O300)","v":0},"人"]
[]
[]
[null,null,null,null,null,null,"例）調査対象が右表の「Ｄ事業所」のような多機能型事業所で、調査対象サービスが「就労移行支援」の場合\n\n→右記赤枠の常勤職員、非常勤職員の常勤換算数を記入して下さい。\n\n"]
[]
[]
[]
[]
[]
[]
[]
[]
[]
[]
[]
[]
[]
[]
[null,null,null,null,null,"（４）　４．（２）で記入した就労継続支援B型事業に従事する常勤職員、非常勤職員の常勤換算数を\n　　　指導員等（職業指導員、生活支援員、就労支援員、サービス管理責任者）とその他の職員に分けて\n　　　記載して下さい。また、指導員等のうち、障害福祉サービス等以外の営利企業で経験がある者の人数\n　　　を記入して下さい。"]
[]
[]
[]
[null,null,null,null,null,null,"区分",null,"就労継続支援Ｂ型事業に従事する職員の常勤換算数"]
[null,null,null,null,null,null,null,null,null,null,"①指導員等（職業指導員、生活支援員、就労支援員、サービス管理責任者）",null,null,null,"③その他の職員"]
[null,null,null,null,null,null,null,null,null,null,null,null,"②うち障害福祉サービス等以外の営利企業で経験がある者"]
[null,null,null,null,null,null,"常勤職員",null,{"$f":"SUM(K326,O326)","v":0},"人",null,"人",null,"人",null,"人"]
[null,null,null,null,null,null,"非常勤職員",null,{"$f":"SUM(K327,O327)","v":0},"人",null,"人",null,"人",null,"人"]
[null,null,null,null,null,null,"合計",null,{"$f":"SUM(I326:I327)","v":0},"人",{"$f":"SUM(K326:K327)","v":0},"人",{"$f":"SUM(M326:M327)","v":0},"人",{"$f":"SUM(O326:O327)","v":0},"人"]
[]
[null,null,null,null,null,null,"例）調査対象が右表の「Ｄ事業所」のような多機能型事業所で、調査対象サービスが「就労移行支援」の場合\n\n→右記赤枠の常勤職員、非常勤職員の常勤換算数を記入して下さい。\n\n但し、「就労移行支援」と「生活介護」・「就労継続支援Ａ型」とを兼務している職員は、勤務時間を基礎として、常勤換算して、就労移行支援分を記入して下さい。\n"]
[]
[]
[]
[]
[]
[]
[]
[]
[]
[]
[]
[]
[]
[]
[]
[]
[]
[null,null,null,null,null,"５．事業所における障害福祉サービス等事業の収益・費用について\n　　（平成27年度：平成27年４月１日～平成28年３月31日）"]
[null,"他の事業シートと不一致の場合は、\n下記に「×」が表示されます。"]
[null,null,null,null,null,null,"○　多機能型事業所で就労移行支援事業、就労継続支援A型の事業を行っている場合、５．（１）～\n　（５）は同事業のシートと同じ数値が入ります。"]
[]
[null,null,"移行","就労Ａ",null,"（１）　平成27年度における障害福祉サービス等事業のサービス活動収益（就労継続支援B型事業以外の\n　　　収益を含む）の総額を記入し、自立支援給付費収益、就労支援事業収益、寄附金による収益、その\n　　　他の収益に分けて記入して下さい。"]
[null,"（1）サービス活動収益",{"$f":"IF(就労移行支援事業所用!$I$81=\"\",\"\",IF(I359=就労移行支援事業所用!I359,\"〇\",\"×\"))","v":""},{"$f":"IF(就労継続支援A型事業所用!$I$81=\"\",\"\",IF(I359=就労継続支援A型事業所用!I359,\"〇\",\"×\"))","v":""}]
[null,"①自立支援給付",{"$f":"IF(就労移行支援事業所用!$I$81=\"\",\"\",IF(L359=就労移行支援事業所用!L359,\"〇\",\"×\"))","v":""},{"$f":"IF(就労継続支援A型事業所用!$I$81=\"\",\"\",IF(L359=就労継続支援A型事業所用!L359,\"〇\",\"×\"))","v":""}]
[null,"②就労支援事業",{"$f":"IF(就労移行支援事業所用!$I$81=\"\",\"\",IF(O359=就労移行支援事業所用!O359,\"〇\",\"×\"))","v":""},{"$f":"IF(就労継続支援A型事業所用!$I$81=\"\",\"\",IF(O359=就労継続支援A型事業所用!O359,\"〇\",\"×\"))","v":""},null,null,"※　「サービス活動収益の総額」が赤いセルとなる場合、①～④と金額が合致していません。再度\n　ご確認をお願いします。"]
[null,"③寄附金",{"$f":"IF(就労移行支援事業所用!$I$81=\"\",\"\",IF(I362=就労移行支援事業所用!I362,\"〇\",\"×\"))","v":""},{"$f":"IF(就労継続支援A型事業所用!$I$81=\"\",\"\",IF(I362=就労継続支援A型事業所用!I362,\"〇\",\"×\"))","v":""}]
[null,"④その他",{"$f":"IF(就労移行支援事業所用!$I$81=\"\",\"\",IF(L362=就労移行支援事業所用!L362,\"〇\",\"×\"))","v":""},{"$f":"IF(就労継続支援A型事業所用!$I$81=\"\",\"\",IF(L362=就労継続支援A型事業所用!L362,\"〇\",\"×\"))","v":""},null,null,null,null,"サービス活動収益の総額"]
[null,"(2)サービス活動費用",{"$f":"IF(就労移行支援事業所用!$I$81=\"\",\"\",IF(I366=就労移行支援事業所用!I366,\"〇\",\"×\"))","v":""},{"$f":"IF(就労継続支援A型事業所用!$I$81=\"\",\"\",IF(I366=就労継続支援A型事業所用!I366,\"〇\",\"×\"))","v":""},null,null,null,null,null,null,null,"①うち自立支援給付費収益",null,null,"②うち就労支援事業収益"]
[null,"(3)常勤",{"$f":"IF(就労移行支援事業所用!$I$81=\"\",\"\",IF(J387=就労移行支援事業所用!J387,\"〇\",\"×\"))","v":""},{"$f":"IF(就労継続支援A型事業所用!$I$81=\"\",\"\",IF(J387=就労継続支援A型事業所用!J387,\"〇\",\"×\"))","v":""},null,null,"平成27年度",null,null,null,"円",null,null,"円",null,null,"円"]
[null,"(3)非常勤",{"$f":"IF(就労移行支援事業所用!$I$81=\"\",\"\",IF(J388=就労移行支援事業所用!J388,\"〇\",\"×\"))","v":""},{"$f":"IF(就労継続支援A型事業所用!$I$81=\"\",\"\",IF(J388=就労継続支援A型事業所用!J388,\"〇\",\"×\"))","v":""}]
[null,"(4）サービス活動外収益",{"$f":"IF(就労移行支援事業所用!$I$81=\"\",\"\",IF(I395=就労移行支援事業所用!I395,\"〇\",\"×\"))","v":""},{"$f":"IF(就労継続支援A型事業所用!$I$81=\"\",\"\",IF(I395=就労継続支援A型事業所用!I395,\"〇\",\"×\"))","v":""},null,null,null,null,"③うち寄附金による収益",null,null,"④その他の収益"]
[null,"①借入金補助金収益",{"$f":"IF(就労移行支援事業所用!$I$81=\"\",\"\",IF(L395=就労移行支援事業所用!L395,\"〇\",\"×\"))","v":""},{"$f":"IF(就労継続支援A型事業所用!$I$81=\"\",\"\",IF(L395=就労継続支援A型事業所用!L395,\"〇\",\"×\"))","v":""},null,null,null,null,null,null,"円",null,null,"円"]
[null,"(4）サービス活動外費用",{"$f":"IF(就労移行支援事業所用!$I$81=\"\",\"\",IF(I399=就労移行支援事業所用!I399,\"〇\",\"×\"))","v":""},{"$f":"IF(就労継続支援A型事業所用!$I$81=\"\",\"\",IF(I399=就労継続支援A型事業所用!I399,\"〇\",\"×\"))","v":""}]
[null,"①支払利息",{"$f":"IF(就労移行支援事業所用!$I$81=\"\",\"\",IF(L399=就労移行支援事業所用!L399,\"〇\",\"×\"))","v":""},{"$f":"IF(就労継続支援A型事業所用!$I$81=\"\",\"\",IF(L399=就労継続支援A型事業所用!L399,\"〇\",\"×\"))","v":""},null,"（２）　平成27年度における障害福祉サービス等事業のサービス活動費用（就労継続支援B型事業以外の費\n　　　用を含む）の総額を記入して下さい。"]
[null,"(5)特別収益",{"$f":"IF(就労移行支援事業所用!$I$81=\"\",\"\",IF(I408=就労移行支援事業所用!I408,\"〇\",\"×\"))","v":""},{"$f":"IF(就労継続支援A型事業所用!$I$81=\"\",\"\",IF(I408=就労継続支援A型事業所用!I408,\"〇\",\"×\"))","v":""}]
[null,"①うち繰入金収益",{"$f":"IF(就労移行支援事業所用!$I$81=\"\",\"\",IF(L408=就労移行支援事業所用!L408,\"〇\",\"×\"))","v":""},{"$f":"IF(就労継続支援A型事業所用!$I$81=\"\",\"\",IF(L408=就労継続支援A型事業所用!L408,\"〇\",\"×\"))","v":""},null,null,"平成27年度",null,null,null,"円"]
[null,"(5)特別費用",{"$f":"IF(就労移行支援事業所用!$I$81=\"\",\"\",IF(I412=就労移行支援事業所用!I412,\"〇\",\"×\"))","v":""},{"$f":"IF(就労継続支援A型事業所用!$I$81=\"\",\"\",IF(I412=就労継続支援A型事業所用!I412,\"〇\",\"×\"))","v":""}]
[null,"①うち繰入金費用",{"$f":"IF(就労移行支援事業所用!$I$81=\"\",\"\",IF(L412=就労移行支援事業所用!L412,\"〇\",\"×\"))","v":""},{"$f":"IF(就労継続支援A型事業所用!$I$81=\"\",\"\",IF(L412=就労継続支援A型事業所用!L412,\"〇\",\"×\"))","v":""},null,null,"５．の収益・費用について\n\n例）調査対象が右表の「Ｄ事業所」のような多機能型事業所で、調査対象サービスが「就労移行支援」の場合\n\n→右記赤枠の事業における収益・費用を記入して下さい。"]
[]
[]
[]
[]
[]
[]
[]
[]
[]
[]
[]
[]
[null,null,null,null,null,"（３）　５．（２）で記入した障害福祉サービス等事業のサービス活動費用のうち、平成27年度におけ\n　　　る人件費を指導員等（職業指導員、生活支援員、就労支援員、サービス管理責任者等）とその他\n　　　の職員に分けて記入して下さい。"]
[]
[]
[null,null,null,null,null,null,"区分",null,null,"人件費計"]
[null,null,null,null,null,null,null,null,null,null,null,null,"①指導員等（職業指導員、生活支援員、就労支援員、サービス管理責任者等）",null,"②その他の職員"]
[null,null,null,null,null,null,"職員人件費",null,null,{"$f":"SUM(J387:K388)","v":0},null,"円",{"$f":"SUM(M387:M388)","v":0},"円",{"$f":"SUM(O387:O388)","v":0},"円"]
[null,null,null,null,null,null,null,"常勤職員",null,{"$f":"SUM(M387,O387)","v":0},null,"円",null,"円",null,"円"]
[null,null,null,null,null,null,null,"非常勤職員",null,{"$f":"SUM(M388,O388)","v":0},null,"円",null,"円",null,"円"]
[]
[null,null,null,null,null,"（４）　平成27年度における障害福祉サービス等事業のサービス活動外収益とサービス活動外費用を記入\n　　　して下さい。また、サービス活動外収益のうち、借入金利息補助金収益の金額を記入し、サービス\n　　　活動外費用のうち、支払利息の金額を記入して下さい。"]
[]
[]
[null,null,null,null,null,null,null,null,"サービス活動外収益"]
[null,null,null,null,null,null,null,null,null,null,null,"うち借入金利息補助金収益"]
[null,null,null,null,null,null,"平成27年度",null,null,null,"円",null,null,"円"]
[]
[null,null,null,null,null,null,null,null,"サービス活動外費用"]
[null,null,null,null,null,null,null,null,null,null,null,"うち支払利息"]
[null,null,null,null,null,null,"平成27年度",null,null,null,"円",null,null,"円"]
[]
[]
[]
[null,null,null,null,null,"（５）　平成27年度における障害福祉サービス等事業における特別収益と特別費用を記入して下さい。\n　　　また、特別収益のうち、事業区分（拠点区分）間繰入金収益の総額を記入し、特別費用のうち、\n　　　事業区分（拠点区分）間繰入費用の総額を記入して下さい。"]
[]
[]
[null,null,null,null,null,null,null,null,"特別収益"]
[null,null,null,null,null,null,null,null,null,null,null,"うち事業区分（拠点区分）間繰入金収益"]
[null,null,null,null,null,null,"平成27年度",null,null,null,"円",null,null,"円"]
[]
[null,null,null,null,null,null,null,null,"特別費用"]
[null,null,null,null,null,null,null,null,null,null,null,"うち事業区分（拠点区分）間繰入金費用"]
[null,null,null,null,null,null,"平成27年度",null,null,null,"円",null,null,"円"]
[]
[]
[]
[null,null,null,null,null,"６．就労継続支援B型事業における収益・費用について\n　　（平成27年度：平成27年４月１日～平成28年３月31日）"]
[]
[null,null,null,null,null,"（１）　平成27年度の就労継続支援B型事業におけるサービス活動収益の総額を記入し、そのうち、訓練等給\n　　　付費収益を記入して下さい。また、平成28年３月31日現在で取得している加算をチェックして下さい。"]
[]
[null,null,null,null,null,null,null,null,"サービス活動収益"]
[null,null,null,null,null,null,null,null,null,null,null,"訓練等給付費収益"]
[null,null,null,null,null,null,"平成27年度",null,null,null,"円",null,null,"円"]
[]
[null,null,null,null,null,null,null,"就労定着支援体制加算"]
[null,null,null,null,null,null,null,"就労移行支援体制加算"]
[null,null,null,null,null,null,null,"目標工賃達成加算"]
[]
[]
[null,null,null,null,null,"（２）　平成27年度の就労継続支援B型事業におけるサービス活動費用の総額を記入して下さい。"]
[]
[null,null,null,null,null,null,"平成27年度",null,null,null,"円"]
[]
[null,null,null,null,null,null,"６．の収益・費用について\n\n例）調査対象が右表の「Ｄ事業所」のような多機能型事業所で、調査対象サービスが「就労移行支援」の場合\n\n→右記赤枠の事業における収益・費用を記入して下さい。"]
[]
[]
[]
[]
[]
[]
[]
[]
[]
[]
[]
[]
[]
[null,null,null,null,null,"（３）　６．（２）で記入した就労継続支援B型事業におけるサービス活動費用のうち、平成27年度の人\n　　件費を指導員等（職業指導員、生活支援員、就労支援員、サービス管理責任者）とその他の職員に分\n　　けて記入して下さい。"]
[]
[]
[null,null,null,null,null,null,"区分",null,null,"人件費計"]
[null,null,null,null,null,null,null,null,null,null,null,null,"①指導員等（職業指導員、生活支援員、就労支援員、サービス管理責任者）",null,"②その他の職員"]
[null,null,null,null,null,null,"職員人件費",null,null,{"$f":"SUM(J453:K454)","v":0},null,"円",{"$f":"SUM(M453:M454)","v":0},"円",{"$f":"SUM(O453:O454)","v":0},"円"]
[null,null,null,null,null,null,null,"常勤職員",null,{"$f":"SUM(M453,O453)","v":0},null,"円",null,"円",null,"円"]
[null,null,null,null,null,null,null,"非常勤職員",null,{"$f":"SUM(M454,O454)","v":0},null,"円",null,"円",null,"円"]
[]
[]
[null,null,null,null,null,"（４）　平成27年度の就労継続支援B型事業におけるサービス活動外収益とサービス活動外費用を記入し\n　　て下さい。また、サービス活動外収益のうち、借入金利息補助金収益の金額を記入し、サービス活動\n　　外費用のうち、支払利息の金額を記入して下さい。"]
[]
[]
[null,null,null,null,null,null,null,null,"サービス活動外収益"]
[null,null,null,null,null,null,null,null,null,null,null,"うち借入金利息補助金収益"]
[null,null,null,null,null,null,"平成27年度",null,null,null,"円",null,null,"円"]
[]
[null,null,null,null,null,null,null,null,"サービス活動外費用"]
[null,null,null,null,null,null,null,null,null,null,null,"うち支払利息"]
[null,null,null,null,null,null,"平成27年度",null,null,null,"円",null,null,"円"]
[]
[null,null,null,null,null,"（５）　平成27年度における就労継続支援B型事業における特別収益と特別費用を記入して下さい。\n　　　また、特別収益には、事業区分（拠点区分）間繰入金収益の総額を記入し、特別費用には、\n　　　事業区分（拠点区分）間繰入費用の総額を記入して下さい。"]
[]
[]
[null,null,null,null,null,null,null,null,"特別収益"]
[null,null,null,null,null,null,null,null,null,null,null,"うち事業区分（拠点区分）間繰入金収益"]
[null,null,null,null,null,null,"平成27年度",null,null,null,"円",null,null,"円"]
[]
[null,null,null,null,null,null,null,null,"特別費用"]
[null,null,null,null,null,null,null,null,null,null,null,"うち事業区分（拠点区分）間繰入金費用"]
[null,null,null,null,null,null,"平成27年度",null,null,null,"円",null,null,"円"]
[]
[null,null,null,null,null,"７．就労支援事業収益・就労支援事業費用について\n　　（平成27年度：平成27年４月１日～平成28年３月31日）"]
[]
[null,null,null,null,null,"（１）　平成27年度における就労継続支援B型事業の就労支援事業収益の総額を記入して下さい。"]
[null,null,null,null,null,null,"※　１．（２）で「1 単独事業」を選択して、５．（１）の「②うち就労支援事業収益」との数値が\n　一致しない場合、赤いセルとなります。再度ご確認をお願いします。"]
[]
[null,null,null,null,null,null,"平成27年度",null,null,null,"円"]
[]
[]
[]
[]
[null,null,null,null,null,"（２）　平成27年度における就労継続支援B型事業の就労支援事業費用を記入して下さい。また、そのうち\n　　　利用者に対して支払った工賃（賃金）の総額を記入して下さい。"]
[]
[null,null,null,null,null,null,null,null,"就労支援事業費用"]
[null,null,null,null,null,null,null,null,null,null,null,"うち利用者工賃（利用者賃金）"]
[null,null,null,null,null,null,"平成27年度",null,null,null,"円",null,null,"円"]
[]
[]
[null,null,null,null,null,null,"７．の収益・費用について\n\n例）調査対象が右表の「Ｄ事業所」のような多機能型事業所で、調査対象サービスが「就労移行支援」の場合\n\n→右記赤枠の事業における就労支援事業収益・就労支援事業費用を記入して下さい。\n\n※６．で記入した「サービス活動収益」、「サービス活動費用」の内数となります。"]
[]
[]
[]
[]
[]
[]
[]
[]
[]
[]
[]
[]
[]
[]
[]
[]
[]
[null,null,null,null,null,"８．27年度決算における事業所において生じた利益（剰余金）処分の方法について、以下の選択肢からご回答下さい（複数回答可）。"]
[]
[]
[null,null,null,null,null,null,null,"１．事業所の施設や設備への投資に向けた留保"]
[null,null,null,null,null,null,null,"２．有利子負債削減"]
[null,null,null,null,null,null,null,"３．新規雇用の拡大や従業員への還元に向けた留保"]
[null,null,null,null,null,null,null,"４．役員報酬・賞与の支払い"]
[null,null,null,null,null,null,null,"５．把握していない"]
[null,null,null,null,null,null,null,"６．その他"]
[]
[]
[null,null,null,null,null,null,"　以上でアンケートは終了です。調査にご協力いただき、誠にありがとうございました。"]

{"sheet":"問6・7 別添","index":4,"n_rows":41,"n_cols":11,"rows_kept":41,"cut":false,"hidden":false,"merged":[[45,1,45,3],[45,4,45,9],[45,10,45,15],[44,1,44,3],[44,4,44,9],[44,10,44,15],[41,1,41,3],[41,4,41,9],[41,10,41,15],[42,1,42,3],[42,4,42,9],[42,10,42,15],[39,1,39,3],[39,4,39,9],[39,10,39,15],[40,1,40,3],[40,4,40,9],[40,10,40,15],[37,1,37,3],[37,4,37,9],[37,10,37,15],[38,1,38,3],[38,4,38,9],[38,10,38,15],[35,1,35,3],[35,4,35,9],[35,10,35,15],[36,1,36,3],[36,4,36,9],[36,10,36,15],[33,1,33,3],[33,4,33,9],[33,10,33,15],[34,1,34,3],[34,4,34,9],[34,10,34,15],[31,1,31,3],[31,4,31,9],[31,10,31,15],[32,1,32,3],[32,4,32,9],[32,10,32,15],[29,1,29,3],[29,4,29,9],[29,10,29,15],[30,1,30,3],[30,4,30,9],[30,10,30,15],[27,1,27,3],[27,4,27,9],[27,10,27,15],[28,1,28,3],[28,4,28,9],[28,10,28,15],[25,1,25,3],[25,4,25,9],[25,10,25,15],[26,1,26,3],[26,4,26,9],[26,10,26,15],[23,1,23,3],[23,4,23,9],[23,10,23,15],[24,1,24,3],[24,4,24,9],[24,10,24,15],[21,1,21,3],[21,4,21,9],[21,10,21,15],[22,1,22,3],[22,4,22,9],[22,10,22,15],[19,1,19,3],[19,4,19,9],[19,10,19,15],[20,1,20,3],[20,4,20,9],[20,10,20,15],[17,1,17,3],[17,4,17,9],[17,10,17,15],[18,1,18,3],[18,4,18,9],[18,10,18,15],[3,1,5,15],[6,1,6,15],[7,1,8,15],[9,1,13,15],[15,1,15,15]]}
[]
[]
[null,"記入要領　６．　７． （事業の共通支出及び費用について）別添"]
[null,"（事業の共通支出及び費用について）\n○　事業の共通支出及び費用は、原則として別添シートに記載のある「社会福祉法人会計基準の制定に伴う会計処理等に関する運用上の留意事項について（平成28年3月31日付 厚生労働省雇用均等・児童家庭局総務課長、社会・援護局福祉基盤課長、障害保健福祉部障害福祉課長、老健局総務課長連名通知）」に基づき、具体的な科目毎に配分して下さい。また、社会福祉法人会計基準以外の会計基準で決算関係書類を作成している場合、上記の留意事項通知に準拠して、配分して下さい。\n"]
[]
[]
[null,"社会福祉法人会計基準の制定に伴う会計処理等に関する運用上の留意事項について（抄）"]
[null,"（平成28年3月31日付　厚生労働省雇用均等・児童家庭局総務課長、社会・援護局福祉基盤課長、障害保健福祉部障害福祉課長、老健局総務課長連名通知）"]
[]
[null,"13 共通支出及び費用の配分方法\n（１）配分方法について\n　共通支出及び費用の具体的な科目及び配分方法は別添１のとおりとするが、これによりがたい場合は、実態に即した合理的な配分方法によることとして差し支えない。\n　また、科目が別添１に示すものにない場合は、適宜、類似の科目の考え方を基に配分して差し支えない。"]
[]
[]
[]
[]
[]
[null,"具 体 的 な 科 目 及 び 配 分 方 法"]
[]
[null,"種類",null,null,"想定される勘定科目",null,null,null,null,null,"配分方法"]
[null,"人件費（支出）",null,null,"・職員給料（支出）\n・職員賞与（支出）\n・賞与引当金繰入\n・非常勤職員給与（支出）\n・退職給付費用（退職給付支出）\n・法定福利費（支出）",null,null,null,null,null,"勤務時間割合により区分。\n（困難な場合は次の方法により配分）\n・職種別人員配置割合\n・看護・介護職員人員配置割合\n・届出人員割合\n・延利用者数割合"]
[null,"事業費（支出）",null,null,"・介護用品費（支出）\n・医薬品費（支出）\n・診療・療養等材料費（支出）\n・消耗器具備品費（支出）",null,null,null,null,null,"各事業の消費金額により区分。\n（困難な場合は次の方法により配分）\n・延利用者数割合\n・各事業別収入割合"]
[null,null,null,null,"・給食費（支出）",null,null,null,null,null,"実際食数割合により区分。\n（困難な場合は次の方法により配分）\n・延利用者数割合\n・各事業別収入割合"]
[null,"事務費（支出）",null,null,"・福利厚生費（支出）\n・職員被服費（支出）",null,null,null,null,null,"給与費割合により区分。\n（困難な場合は延利用者数割合により配分）"]
[null,null,null,null,"・旅費交通費（支出）\n・通信運搬費（支出）\n・諸会費（支出）\n・雑費（支出）\n・渉外費（支出）",null,null,null,null,null,"・延利用者数割合\n・職種別人員配置割合\n・給与費割合"]
[null,null,null,null,"・事務消耗品費（支出）\n・広報費（支出）",null,null,null,null,null,"各事業の消費金額により区分。\n（困難な場合は延利用者数割合により配分）"]
[null,null,null,null,"・会議費（支出）",null,null,null,null,null,"会議内容により事業個別費として区分。\n（困難な場合は延利用者数割合により配分）"]
[null,null,null,null,"・水道光熱費（支出）",null,null,null,null,null,"メーター等による測定割合により区分。\n（困難な場合は建物床面積割合により配分）"]
[null,null,null,null,"・修繕費（支出）",null,null,null,null,null,"建物修繕は、当該修繕部分により区分、建物修繕以外は事業個別費として配分。\n（困難な場合は建物床面積割合で配分）"]
[null,null,null,null,"・賃借料（支出）\n・土地建物賃借料（支出）",null,null,null,null,null,"賃貸物件特にリース物件については、その物件の使用割合により区分。\n（困難な場合は建物床面積割合により配分）"]
[null,null,null,null,"・保険料（支出）",null,null,null,null,null,"・建物床面積割合により配分。\n・自動車関係は送迎利用者数割合又は使用高割合で、損害保険料等は延利用者数割合により配分。"]
[null,null,null,null,"・租税公課（支出）",null,null,null,null,null,"・建物床面積割合により配分。\n・自動車関係は送迎利用者数割合又は使用高割合で配分。"]
[null,null,null,null,"・保守料（支出）",null,null,null,null,null,"保守契約対象物件の設置場所等に基づき事業個別費として区分。\n（困難な場合は延利用者数割合により配分）"]
[null,null,null,null,"・業務委託費（支出）（寝具）",null,null,null,null,null,"各事業の消費金額により区分。\n（困難な場合は、延利用者数割合により配分）"]
[null,null,null,null,"　　　　　 　　 （給食）",null,null,null,null,null,"・延利用者数割合\n・実際食数割合"]
[null,null,null,null,"　　　　　　　　（その他）",null,null,null,null,null,"・建物床面積割合\n・延利用者数割合"]
[null,null,null,null,"・研修研究費（支出）",null,null,null,null,null,"研修内容等、目的、出席者等の実態に応じて、事業個別費として区分。\n（困難な場合は、延利用者数割合により配分）"]
[null,"減価償却費",null,null,"・建物、構築物等に係る減価償却費",null,null,null,null,null,"建物床面積割合により区分。\n（困難な場合は、延利用者数割合により配分）"]
[null,null,null,null,"・車輌運搬具、機械及び装置等に係る減価償却費",null,null,null,null,null,"使用高割合により区分。\n（困難な場合は、延利用者数割合により配分）"]
[null,null,null,null,"・その他の有形固定資産、無形固定資産に係る減価償却費",null,null,null,null,null,"延利用者数割合により配分"]
[null,"徴収不能額",null,null,"・徴収不能額",null,null,null,null,null,"各事業の個別発生金額により区分。\n（困難な場合は、各事業別収入割合により配分）"]
[null,"徴収不能引当金繰入",null,null,"・徴収不能引当金繰入",null,null,null,null,null,"事業ごとの債権金額に引当率を乗じた金額に基づき区分。\n（困難な場合は、延利用者数割合により配分）"]
[null,"支払利息（支出）",null,null,"・支払利息（支出）",null,null,null,null,null,"事業借入目的の借入金に対する期末残高割合により区分。\n（困難な場合は、次の方法により配分）\n・借入金が主として土地建物の取得の場合は建物床面積割合\n・それ以外は、延利用者数割合"]

{"sheet":"→集計表","index":5,"n_rows":0,"n_cols":0,"rows_kept":0,"cut":false,"hidden":false,"merged":[]}

{"sheet":"【集計表】 (移行支援)","index":6,"n_rows":5,"n_cols":305,"rows_kept":5,"cut":false,"hidden":false,"merged":[[1,304,3,304],[2,303,3,303],[2,297,3,297],[2,298,3,298],[2,299,3,299],[2,300,3,300],[2,301,3,301],[2,302,3,302],[2,291,3,291],[2,292,3,292],[2,293,3,293],[2,294,3,294],[2,295,3,295],[2,296,3,296],[2,281,2,283],[2,284,2,286],[2,287,3,287],[2,288,3,288],[2,289,3,289],[2,290,3,290],[2,273,3,273],[2,274,3,274],[2,275,3,275],[2,276,3,276],[2,277,3,277],[2,278,2,280],[2,267,3,267],[2,268,3,268],[2,269,3,269],[2,270,3,270],[2,271,3,271],[2,272,3,272],[2,255,2,257],[2,258,2,260],[2,261,2,263],[2,264,3,264],[2,265,3,265],[2,266,3,266],[2,249,3,249],[2,250,3,250],[2,251,3,251],[2,252,3,252],[2,253,3,253],[2,254,3,254],[2,231,2,233],[2,234,2,236],[2,237,2,239],[2,240,2,242],[2,243,2,245],[2,246,2,248],[2,216,2,218],[2,219,2,221],[2,222,2,224],[2,225,2,227],[2,228,2,230],[2,189,2,194],[2,195,2,200],[2,201,2,203],[2,204,2,206],[2,207,2,209],[2,210,2,212],[2,177,2,182],[2,183,2,188],[2,117,2,122],[2,123,2,128],[2,129,2,134],[2,135,2,140],[2,141,2,146],[2,147,2,152],[2,213,2,215],[2,51,2,56],[2,57,2,62],[2,63,2,68],[2,69,2,74],[2,75,2,80],[2,153,2,158],[2,159,2,164],[2,165,2,170],[2,171,2,176],[1,213,1,224],[1,225,1,236],[1,237,1,248],[1,2,1,12],[1,16,1,33],[2,15,3,15],[2,16,2,21],[2,22,2,27],[2,28,2,33],[2,34,2,38],[2,39,2,44],[2,9,3,9],[2,10,3,10],[2,11,3,11],[2,12,3,12],[2,13,3,13],[2,14,3,14],[2,81,2,86],[2,87,2,92],[2,93,2,98],[2,99,2,104],[2,105,2,110],[2,111,2,116],[2,45,2,50],[1,34,1,38],[1,39,1,44],[1,45,1,98],[1,99,1,122],[1,1,3,1],[1,287,1,290],[1,291,1,294],[1,296,1,297],[1,298,1,303],[2,2,3,2],[2,3,3,3],[2,4,2,5],[2,6,3,6],[2,7,3,7],[2,8,3,8],[1,249,1,253],[1,255,1,263],[1,264,1,267],[1,268,1,271],[1,272,1,276],[1,278,1,286],[1,123,1,182],[1,183,1,200],[1,201,1,212]]}
[null,null,null,null,null,null,null,null,null,null,null,null,null,null,null,null,null,null,null,null,null,null,null,null,null,null,null,null,null,null,null,null,null,null,null,null,null,null,null,null,null,null,null,null,null,null,null,null,null,null,null,null,null,null,null,null,null,null,null,null,null,null,null,null,null,null,null,null,null,null,null,null,null,null,null,null,null,null,null,null,null,null,null,null,null,null,null,null,null,null,null,null,null,null,null,null,null,null,null,null,null,null,null,null,null,null,null,null,null,null,null,null,null,null,null,null,null,null,null,null,null,null,null,null,null,null,null,null,null,null,null,null,null,null,null,null,null,null,null,null,null,null,null,null,null,null,null,null,null,null,null,null,null,null,null,null,null,null,null,null,null,null,null,null,null,null,null,null,null,null,null,null,null,null,null,null,null,null,null,null,null,null,null,null,null,null,null,null,null,null,null,null,null,null,null,null,null,null,null,null,null,null,null,null,null,null,null,null,null,null,null,null,null,null,null,null,null,null,null,null,null,null,null,null,null,null,null,null,null,null,null,null,null,null,null,null,null,null,null,null,null,null,null,null,null,null,null,null,null,null,null,null,null,null,null,null,null,null,null,null,null,null,null,null,null,null,null,null,null,null,null,null,null,null,null,null,null,null,null,null,null,null,null,"z"]
[null,"整理番号",null,null,null,null,null,null,null,null,null,null,null,"１（１）","１（２）","２（１）","２（２）",null,null,null,null,null,null,null,null,null,null,null,null,null,null,null,null,null,"２（３）",null,null,null,null,"２（４）",null,null,null,null,null,"３（１）",null,null,null,null,null,null,null,null,null,null,null,null,null,null,null,null,null,null,null,null,null,null,null,null,null,null,null,null,null,null,null,null,null,null,null,null,null,null,null,null,null,null,null,null,null,null,null,null,null,null,null,null,null,"３（２）",null,null,null,null,null,null,null,null,null,null,null,null,null,null,null,null,null,null,null,null,null,null,null,"３（３）",null,null,null,null,null,null,null,null,null,null,null,null,null,null,null,null,null,null,null,null,null,null,null,null,null,null,null,null,null,null,null,null,null,null,null,null,null,null,null,null,null,null,null,null,null,null,null,null,null,null,null,null,null,null,null,null,null,null,null,"３（４）",null,null,null,null,null,null,null,null,null,null,null,null,null,null,null,null,null,"４（１）",null,null,null,null,null,null,null,null,null,null,null,"４（２）",null,null,null,null,null,null,null,null,null,null,null,"４（３）",null,null,null,null,null,null,null,null,null,null,null,"４（４）",null,null,null,null,null,null,null,null,null,null,null,"５（１）",null,null,null,null,"５（２）","５（３）",null,null,null,null,null,null,null,null,"５（４）",null,null,null,"５（５）",null,null,null,"６（１）",null,null,null,null,"６（２）","６（３）",null,null,null,null,null,null,null,null,"６（４）",null,null,null,"６（５）",null,null,null,"７（１）","７（２）",null,"８",null,null,null,null,null,"備考"]
[null,null,{"$f":"就労移行支援事業所用!G48","v":"都道府県名"},{"$f":"就労移行支援事業所用!G49","v":"市区町村名"},{"$f":"就労移行支援事業所用!G50","v":"法人名"},null,{"$f":"就労移行支援事業所用!G52","v":"事業所名"},{"$f":"就労移行支援事業所用!G53","v":"事業所番号"},{"$f":"就労移行支援事業所用!G54","v":"事業開始時期"},{"$f":"就労移行支援事業所用!G55","v":"電話番号"},{"$f":"就労移行支援事業所用!G56","v":"E-mail"},{"$f":"就労移行支援事業所用!G57","v":"FAX"},{"$f":"就労移行支援事業所用!G58","v":"ご担当者氏名"},"事業実施の\n種類","事業の\n実施形態","定員数","平成28年3月31日時点の利用者数\n（利用契約を締結している者の人数）",null,null,null,null,null,"①障害支援区分有り",null,null,null,null,null,"②障害支援区分無し",null,null,null,null,null,"障害基礎年金受給者数",null,null,null,null,"平成28年3月31日時点の利用者実人数",null,null,null,null,null,"平成27年度中の利用開始者数",null,null,null,null,null,"入所前の状況\n①在宅（障害福祉サービスの利用無し）・一般就労",null,null,null,null,null,"入所前の状況\n②特別支援学校（普通学校の特別支援学級含む）",null,null,null,null,null,"入所前の状況\n③普通学校",null,null,null,null,null,"入所前の状況\n④他の就労移行支援",null,null,null,null,null,"入所前の状況\n⑤他の就労継続支援Ａ型",null,null,null,null,null,"入所前の状況\n⑥他の就労継続支援Ｂ型",null,null,null,null,null,"入所前の状況\n⑦生活介護",null,null,null,null,null,"入所前の状況\n⑧他の障害福祉サービス",null,null,null,null,null,"一般就労の経験がある利用者数",null,null,null,null,null,"①障害者雇用枠",null,null,null,null,null,"②それ以外の雇用",null,null,null,null,null,"③どちらも経験有り",null,null,null,null,null,"利用終了者数計",null,null,null,null,null,"退所理由\n①就職・正規雇用（Ａ型除く）",null,null,null,null,null,"退所理由\n②就職・非正規雇用（Ａ型除く）",null,null,null,null,null,"退所理由\n③就労移行支援へ転所",null,null,null,null,null,"退所理由\n④就労継続支援Ａ型へ転所",null,null,null,null,null,"退所理由\n⑤就労継続支援Ｂ型へ転所",null,null,null,null,null,"退所理由\n⑥生活介護へ転所",null,null,null,null,null,"退所理由\n⑦その他の障害福祉サービスへ転所",null,null,null,null,null,"退所理由\n⑧期間満了のため退所（移行支援）",null,null,null,null,null,"退所理由\n⑨その他（①～⑧のいずれにも該当しないもの）",null,null,null,null,null,"就職者数",null,null,null,null,null,"①障害者雇用枠",null,null,null,null,null,"②それ以外の雇用",null,null,null,null,null,"職員の実人数",null,null,"①指導員等（職業指導員、生活支援員、\n就労支援員、サービス管理責任者等)",null,null,"②うち障害福祉サービス以外の\n営利企業で経験がある者等",null,null,"③その他の職員",null,null,{"$f":"就労移行支援事業所用!I267","v":"就労移行支援事業に従事する職員の実人数"},null,null,"①指導員等（職業指導員、生活支援員、\n就労支援員、サービス管理責任者）",null,null,"②うち障害福祉サービス以外の\n営利企業で経験がある者",null,null,"③その他の職員",null,null,"職員の常勤換算数",null,null,"①指導員等（職業指導員、生活支援員、\n就労支援員、サービス管理責任者）",null,null,"②うち障害福祉サービス以外の\n営利企業で経験がある者",null,null,"③その他の職員",null,null,{"$f":"就労移行支援事業所用!I323","v":"就労移行支援事業に従事する職員の常勤換算数"},null,null,"①指導員等（職業指導員、生活支援員、\n就労支援員、サービス管理責任者）",null,null,"②うち障害福祉サービス以外の\n営利企業で経験がある者",null,null,"③その他の職員",null,null,"サービス活動収益の総額","①うち自立支援給付費収益","②うち就労支援事業収益","③うち寄附金による収益","④その他の収益","障害福祉サービス事業の\nサービス活動収益","人件費計",null,null,"①指導員等（職業指導員、生活支援員、就労支援員、サービス管理責任者等）",null,null,"②その他の職員",null,null,"サービス活動外収益","うち借入金利息補助金収益","サービス活動外費用","うち支払利息","特別収益","うち事業区分（拠点区分）間繰入金収益","特別費用","うち事業区分（拠点区分）間繰入金費用","サービス活動収益","訓練等給付費収益","就労定着支援\n体制加算","就労移行支援\n体制加算","目標工賃\n達成加算","サービス活動費用","人件費計",null,null,"①指導員等（職業指導員、生活支援員、\n就労支援員、サービス管理責任者）",null,null,"②その他の職員",null,null,"サービス活動外収益","うち借入金利息補助金収益","サービス活動外費用","うち支払利息","特別収益","うち事業区分（拠点区分）間繰入金収益","特別費用","うち事業区分（拠点区分）間繰入金費用","就労移行支援事業収益","就労支援事業費用","うち工賃（賃金）","１．\n事業所の施設や\n設備への投資に向けた留保","２．\n有利子負債削減","３．\n新規雇用の拡大や\n従業員への還元に向けた留保","４．\n役員報酬・\n賞与の支払い","５．\n把握していない","６．\nその他"]
[null,null,null,null,null,{"$f":"就労移行支援事業所用!H51","v":"経営主体"},null,null,null,null,null,null,null,null,null,null,"身体障害","知的障害","精神障害","難病等","障害児","合計","身体障害","知的障害","精神障害","難病等","障害児","合計","身体障害","知的障害","精神障害","難病等","障害児","合計","障害基礎年金\n（１級）","障害基礎年金\n（２級）","受給無し","不明","合計","身体障害","知的障害","精神障害","難病等","障害児","合計","身体障害","知的障害","精神障害","難病等","障害児","合計","身体障害","知的障害","精神障害","難病等","障害児","合計","身体障害","知的障害","精神障害","難病等","障害児","合計","身体障害","知的障害","精神障害","難病等","障害児","合計","身体障害","知的障害","精神障害","難病等","障害児","合計","身体障害","知的障害","精神障害","難病等","障害児","合計","身体障害","知的障害","精神障害","難病等","障害児","合計","身体障害","知的障害","精神障害","難病等","障害児","合計","身体障害","知的障害","精神障害","難病等","障害児","合計","身体障害","知的障害","精神障害","難病等","障害児","合計","身体障害","知的障害","精神障害","難病等","障害児","合計","身体障害","知的障害","精神障害","難病等","障害児","合計","身体障害","知的障害","精神障害","難病等","障害児","合計","身体障害","知的障害","精神障害","難病等","障害児","合計","身体障害","知的障害","精神障害","難病等","障害児","合計","身体障害","知的障害","精神障害","難病等","障害児","合計","身体障害","知的障害","精神障害","難病等","障害児","合計","身体障害","知的障害","精神障害","難病等","障害児","合計","身体障害","知的障害","精神障害","難病等","障害児","合計","身体障害","知的障害","精神障害","難病等","障害児","合計","身体障害","知的障害","精神障害","難病等","障害児","合計","身体障害","知的障害","精神障害","難病等","障害児","合計","身体障害","知的障害","精神障害","難病等","障害児","合計","身体障害","知的障害","精神障害","難病等","障害児","合計","身体障害","知的障害","精神障害","難病等","障害児","合計","身体障害","知的障害","精神障害","難病等","障害児","合計","常勤職員","非常勤職員","合計","常勤職員","非常勤職員","合計","常勤職員","非常勤職員","合計","常勤職員","非常勤職員","合計","常勤職員","非常勤職員","合計","常勤職員","非常勤職員","合計","常勤職員","非常勤職員","合計","常勤職員","非常勤職員","合計","常勤職員","非常勤職員","合計","常勤職員","非常勤職員","合計","常勤職員","非常勤職員","合計","常勤職員","非常勤職員","合計","常勤職員","非常勤職員","合計","常勤職員","非常勤職員","合計","常勤職員","非常勤職員","合計","常勤職員","非常勤職員","合計",null,null,null,null,null,null,"職員人件費","常勤職員","非常勤職員","職員人件費","常勤職員","非常勤職員","職員人件費","常勤職員","非常勤職員",null,null,null,null,null,null,null,null,null,null,null,null,null,null,"職員人件費","常勤職員","非常勤職員","職員人件費","常勤職員","非常勤職員","職員人件費","常勤職員","非常勤職員"]
[null,{"$f":"就労移行支援事業所用!O2","v":0},{"$f":"就労移行支援事業所用!I48","v":"○○県"},{"$f":"就労移行支援事業所用!I49","v":"○○市"},{"$f":"就労移行支援事業所用!I50","v":0},{"$f":"就労移行支援事業所用!I51","v":0},{"$f":"就労移行支援事業所用!I52","v":"○○○○○"},{"$f":"就労移行支援事業所用!I53","v":"○○○○○"},{"$f":"就労移行支援事業所用!I54","v":"H○年○月○日"},{"$f":"就労移行支援事業所用!I55","v":"00-000-0000"},{"$f":"就労移行支援事業所用!I56","v":"○○○○○＠○○○"},{"$f":"就労移行支援事業所用!I57","v":"00-000-0000"},{"$f":"就労移行支援事業所用!I58","v":"○○　○○"},{"$f":"就労移行支援事業所用!I72","v":"１"},{"$f":"就労移行支援事業所用!I81","v":0},{"$f":"就労移行支援事業所用!H95","v":0},{"$f":"就労移行支援事業所用!H104","v":0},{"$f":"就労移行支援事業所用!H105","v":0},{"$f":"就労移行支援事業所用!H106","v":0},{"$f":"就労移行支援事業所用!H107","v":0},{"$f":"就労移行支援事業所用!H108","v":0},{"$f":"就労移行支援事業所用!H109","v":0},{"$f":"就労移行支援事業所用!J104","v":0},{"$f":"就労移行支援事業所用!J105","v":0},{"$f":"就労移行支援事業所用!J106","v":0},{"$f":"就労移行支援事業所用!J107","v":0},{"$f":"就労移行支援事業所用!J108","v":0},{"$f":"就労移行支援事業所用!J109","v":0},{"$f":"就労移行支援事業所用!L104","v":0},{"$f":"就労移行支援事業所用!L105","v":0},{"$f":"就労移行支援事業所用!L106","v":0},{"$f":"就労移行支援事業所用!L107","v":0},{"$f":"就労移行支援事業所用!L108","v":0},{"$f":"就労移行支援事業所用!L109","v":0},{"$f":"就労移行支援事業所用!I114","v":0},{"$f":"就労移行支援事業所用!I115","v":0},{"$f":"就労移行支援事業所用!I116","v":0},{"$f":"就労移行支援事業所用!I117","v":0},{"$f":"就労移行支援事業所用!I118","v":0},{"$f":"就労移行支援事業所用!H123","v":0},{"$f":"就労移行支援事業所用!H124","v":0},{"$f":"就労移行支援事業所用!H125","v":0},{"$f":"就労移行支援事業所用!H126","v":0},{"$f":"就労移行支援事業所用!H127","v":0},{"$f":"就労移行支援事業所用!H128","v":0},{"$f":"就労移行支援事業所用!H139","v":0},{"$f":"就労移行支援事業所用!H140","v":0},{"$f":"就労移行支援事業所用!H141","v":0},{"$f":"就労移行支援事業所用!H142","v":0},{"$f":"就労移行支援事業所用!H143","v":0},{"$f":"就労移行支援事業所用!H144","v":0},{"$f":"就労移行支援事業所用!J139","v":0},{"$f":"就労移行支援事業所用!J140","v":0},{"$f":"就労移行支援事業所用!J141","v":0},{"$f":"就労移行支援事業所用!J142","v":0},{"$f":"就労移行支援事業所用!J143","v":0},{"$f":"就労移行支援事業所用!J144","v":0},{"$f":"就労移行支援事業所用!L139","v":0},{"$f":"就労移行支援事業所用!L140","v":0},{"$f":"就労移行支援事業所用!L141","v":0},{"$f":"就労移行支援事業所用!L142","v":0},{"$f":"就労移行支援事業所用!L143","v":0},{"$f":"就労移行支援事業所用!L144","v":0},{"$f":"就労移行支援事業所用!N139","v":0},{"$f":"就労移行支援事業所用!N140","v":0},{"$f":"就労移行支援事業所用!N141","v":0},{"$f":"就労移行支援事業所用!N142","v":0},{"$f":"就労移行支援事業所用!N143","v":0},{"$f":"就労移行支援事業所用!N144","v":0},{"$f":"就労移行支援事業所用!P139","v":0},{"$f":"就労移行支援事業所用!P140","v":0},{"$f":"就労移行支援事業所用!P141","v":0},{"$f":"就労移行支援事業所用!P142","v":0},{"$f":"就労移行支援事業所用!P143","v":0},{"$f":"就労移行支援事業所用!P144","v":0},{"$f":"就労移行支援事業所用!H147","v":0},{"$f":"就労移行支援事業所用!H148","v":0},{"$f":"就労移行支援事業所用!H149","v":0},{"$f":"就労移行支援事業所用!H150","v":0},{"$f":"就労移行支援事業所用!H151","v":0},{"$f":"就労移行支援事業所用!H152","v":0},{"$f":"就労移行支援事業所用!J147","v":0},{"$f":"就労移行支援事業所用!J148","v":0},{"$f":"就労移行支援事業所用!J149","v":0},{"$f":"就労移行支援事業所用!J150","v":0},{"$f":"就労移行支援事業所用!J151","v":0},{"$f":"就労移行支援事業所用!J152","v":0},{"$f":"就労移行支援事業所用!L147","v":0},{"$f":"就労移行支援事業所用!L148","v":0},{"$f":"就労移行支援事業所用!L149","v":0},{"$f":"就労移行支援事業所用!L150","v":0},{"$f":"就労移行支援事業所用!L151","v":0},{"$f":"就労移行支援事業所用!L152","v":0},{"$f":"就労移行支援事業所用!N147","v":0},{"$f":"就労移行支援事業所用!N148","v":0},{"$f":"就労移行支援事業所用!N149","v":0},{"$f":"就労移行支援事業所用!N150","v":0},{"$f":"就労移行支援事業所用!N151","v":0},{"$f":"就労移行支援事業所用!N152","v":0},{"$f":"就労移行支援事業所用!H176","v":0},{"$f":"就労移行支援事業所用!H177","v":0},{"$f":"就労移行支援事業所用!H178","v":0},{"$f":"就労移行支援事業所用!H179","v":0},{"$f":"就労移行支援事業所用!H180","v":0},{"$f":"就労移行支援事業所用!H181","v":0},{"$f":"就労移行支援事業所用!J176","v":0},{"$f":"就労移行支援事業所用!J177","v":0},{"$f":"就労移行支援事業所用!J178","v":0},{"$f":"就労移行支援事業所用!J179","v":0},{"$f":"就労移行支援事業所用!J180","v":0},{"$f":"就労移行支援事業所用!J181","v":0},{"$f":"就労移行支援事業所用!L176","v":0},{"$f":"就労移行支援事業所用!L177","v":0},{"$f":"就労移行支援事業所用!L178","v":0},{"$f":"就労移行支援事業所用!L179","v":0},{"$f":"就労移行支援事業所用!L180","v":0},{"$f":"就労移行支援事業所用!L181","v":0},{"$f":"就労移行支援事業所用!N176","v":0},{"$f":"就労移行支援事業所用!N177","v":0},{"$f":"就労移行支援事業所用!N178","v":0},{"$f":"就労移行支援事業所用!N179","v":0},{"$f":"就労移行支援事業所用!N180","v":0},{"$f":"就労移行支援事業所用!N181","v":0},{"$f":"就労移行支援事業所用!H188","v":0},{"$f":"就労移行支援事業所用!H189","v":0},{"$f":"就労移行支援事業所用!H190","v":0},{"$f":"就労移行支援事業所用!H191","v":0},{"$f":"就労移行支援事業所用!H192","v":0},{"$f":"就労移行支援事業所用!H193","v":0},{"$f":"就労移行支援事業所用!J188","v":0},{"$f":"就労移行支援事業所用!J189","v":0},{"$f":"就労移行支援事業所用!J190","v":0},{"$f":"就労移行支援事業所用!J191","v":0},{"$f":"就労移行支援事業所用!J192","v":0},{"$f":"就労移行支援事業所用!J193","v":0},{"$f":"就労移行支援事業所用!L188","v":0},{"$f":"就労移行支援事業所用!L189","v":0},{"$f":"就労移行支援事業所用!L190","v":0},{"$f":"就労移行支援事業所用!L191","v":0},{"$f":"就労移行支援事業所用!L192","v":0},{"$f":"就労移行支援事業所用!L193","v":0},{"$f":"就労移行支援事業所用!N188","v":0},{"$f":"就労移行支援事業所用!N189","v":0},{"$f":"就労移行支援事業所用!N190","v":0},{"$f":"就労移行支援事業所用!N191","v":0},{"$f":"就労移行支援事業所用!N192","v":0},{"$f":"就労移行支援事業所用!N193","v":0},{"$f":"就労移行支援事業所用!P188","v":0},{"$f":"就労移行支援事業所用!P189","v":0},{"$f":"就労移行支援事業所用!P190","v":0},{"$f":"就労移行支援事業所用!P191","v":0},{"$f":"就労移行支援事業所用!P192","v":0},{"$f":"就労移行支援事業所用!P193","v":0},{"$f":"就労移行支援事業所用!H196","v":0},{"$f":"就労移行支援事業所用!H197","v":0},{"$f":"就労移行支援事業所用!H198","v":0},{"$f":"就労移行支援事業所用!H199","v":0},{"$f":"就労移行支援事業所用!H200","v":0},{"$f":"就労移行支援事業所用!H201","v":0},{"$f":"就労移行支援事業所用!J196","v":0},{"$f":"就労移行支援事業所用!J197","v":0},{"$f":"就労移行支援事業所用!J198","v":0},{"$f":"就労移行支援事業所用!J199","v":0},{"$f":"就労移行支援事業所用!J200","v":0},{"$f":"就労移行支援事業所用!J201","v":0},{"$f":"就労移行支援事業所用!L196","v":0},{"$f":"就労移行支援事業所用!L197","v":0},{"$f":"就労移行支援事業所用!L198","v":0},{"$f":"就労移行支援事業所用!L199","v":0},{"$f":"就労移行支援事業所用!L200","v":0},{"$f":"就労移行支援事業所用!L201","v":0},{"$f":"就労移行支援事業所用!N196","v":0},{"$f":"就労移行支援事業所用!N197","v":0},{"$f":"就労移行支援事業所用!N198","v":0},{"$f":"就労移行支援事業所用!N199","v":0},{"$f":"就労移行支援事業所用!N200","v":0},{"$f":"就労移行支援事業所用!N201","v":0},{"$f":"就労移行支援事業所用!P196","v":0},{"$f":"就労移行支援事業所用!P197","v":0},{"$f":"就労移行支援事業所用!P198","v":0},{"$f":"就労移行支援事業所用!P199","v":0},{"$f":"就労移行支援事業所用!P200","v":0},{"$f":"就労移行支援事業所用!P201","v":0},{"$f":"就労移行支援事業所用!H224","v":0},{"$f":"就労移行支援事業所用!H225","v":0},{"$f":"就労移行支援事業所用!H226","v":0},{"$f":"就労移行支援事業所用!H227","v":0},{"$f":"就労移行支援事業所用!H228","v":0},{"$f":"就労移行支援事業所用!H229","v":0},{"$f":"就労移行支援事業所用!J224","v":0},{"$f":"就労移行支援事業所用!J225","v":0},{"$f":"就労移行支援事業所用!J226","v":0},{"$f":"就労移行支援事業所用!J227","v":0},{"$f":"就労移行支援事業所用!J228","v":0},{"$f":"就労移行支援事業所用!J229","v":0},{"$f":"就労移行支援事業所用!L224","v":0},{"$f":"就労移行支援事業所用!L225","v":0},{"$f":"就労移行支援事業所用!L226","v":0},{"$f":"就労移行支援事業所用!L227","v":0},{"$f":"就労移行支援事業所用!L228","v":0},{"$f":"就労移行支援事業所用!L229","v":0},{"$f":"就労移行支援事業所用!I243","v":0},{"$f":"就労移行支援事業所用!I244","v":0},{"$f":"就労移行支援事業所用!I245","v":0},{"$f":"就労移行支援事業所用!K243","v":0},{"$f":"就労移行支援事業所用!K244","v":0},{"$f":"就労移行支援事業所用!K245","v":0},{"$f":"就労移行支援事業所用!M243","v":0},{"$f":"就労移行支援事業所用!M244","v":0},{"$f":"就労移行支援事業所用!M245","v":0},{"$f":"就労移行支援事業所用!O243","v":0},{"$f":"就労移行支援事業所用!O244","v":0},{"$f":"就労移行支援事業所用!O245","v":0},{"$f":"就労移行支援事業所用!I270","v":0},{"$f":"就労移行支援事業所用!I271","v":0},{"$f":"就労移行支援事業所用!I272","v":0},{"$f":"就労移行支援事業所用!K270","v":0},{"$f":"就労移行支援事業所用!K271","v":0},{"$f":"就労移行支援事業所用!K272","v":0},{"$f":"就労移行支援事業所用!M270","v":0},{"$f":"就労移行支援事業所用!M271","v":0},{"$f":"就労移行支援事業所用!M272","v":0},{"$f":"就労移行支援事業所用!O270","v":0},{"$f":"就労移行支援事業所用!O271","v":0},{"$f":"就労移行支援事業所用!O272","v":0},{"$f":"就労移行支援事業所用!I299","v":0},{"$f":"就労移行支援事業所用!I300","v":0},{"$f":"就労移行支援事業所用!I301","v":0},{"$f":"就労移行支援事業所用!K299","v":0},{"$f":"就労移行支援事業所用!K300","v":0},{"$f":"就労移行支援事業所用!K301","v":0},{"$f":"就労移行支援事業所用!M299","v":0},{"$f":"就労移行支援事業所用!M300","v":0},{"$f":"就労移行支援事業所用!M301","v":0},{"$f":"就労移行支援事業所用!O299","v":0},{"$f":"就労移行支援事業所用!O300","v":0},{"$f":"就労移行支援事業所用!O301","v":0},{"$f":"就労移行支援事業所用!I326","v":0},{"$f":"就労移行支援事業所用!I327","v":0},{"$f":"就労移行支援事業所用!I328","v":0},{"$f":"就労移行支援事業所用!K326","v":0},{"$f":"就労移行支援事業所用!K327","v":0},{"$f":"就労移行支援事業所用!K328","v":0},{"$f":"就労移行支援事業所用!M326","v":0},{"$f":"就労移行支援事業所用!M327","v":0},{"$f":"就労移行支援事業所用!M328","v":0},{"$f":"就労移行支援事業所用!O326","v":0},{"$f":"就労移行支援事業所用!O327","v":0},{"$f":"就労移行支援事業所用!O328","v":0},{"$f":"就労移行支援事業所用!I359","v":0},{"$f":"就労移行支援事業所用!L359","v":0},{"$f":"就労移行支援事業所用!O359","v":0},{"$f":"就労移行支援事業所用!I362","v":0},{"$f":"就労移行支援事業所用!L362","v":0},{"$f":"就労移行支援事業所用!I366","v":0},{"$f":"就労移行支援事業所用!J386","v":0},{"$f":"就労移行支援事業所用!J387","v":0},{"$f":"就労移行支援事業所用!J388","v":0},{"$f":"就労移行支援事業所用!M386","v":0},{"$f":"就労移行支援事業所用!M387","v":0},{"$f":"就労移行支援事業所用!M388","v":0},{"$f":"就労移行支援事業所用!O386","v":0},{"$f":"就労移行支援事業所用!O387","v":0},{"$f":"就労移行支援事業所用!O388","v":0},{"$f":"就労移行支援事業所用!I395","v":0},{"$f":"就労移行支援事業所用!L395","v":0},{"$f":"就労移行支援事業所用!I399","v":0},{"$f":"就労移行支援事業所用!L399","v":0},{"$f":"就労移行支援事業所用!I408","v":0},{"$f":"就労移行支援事業所用!L408","v":0},{"$f":"就労移行支援事業所用!I412","v":0},{"$f":"就労移行支援事業所用!L412","v":0},{"$f":"就労移行支援事業所用!I422","v":0},{"$f":"就労移行支援事業所用!L422","v":0},{"$f":"就労移行支援事業所用!G424","v":0},{"$f":"就労移行支援事業所用!G425","v":0},{"$f":"就労移行支援事業所用!G426","v":0},{"$f":"就労移行支援事業所用!I431","v":0},{"$f":"就労移行支援事業所用!J452","v":0},{"$f":"就労移行支援事業所用!J453","v":0},{"$f":"就労移行支援事業所用!J454","v":0},{"$f":"就労移行支援事業所用!M452","v":0},{"$f":"就労移行支援事業所用!M453","v":0},{"$f":"就労移行支援事業所用!M454","v":0},{"$f":"就労移行支援事業所用!O452","v":0},{"$f":"就労移行支援事業所用!O453","v":0},{"$f":"就労移行支援事業所用!O454","v":0},{"$f":"就労移行支援事業所用!I462","v":0},{"$f":"就労移行支援事業所用!L462","v":0},{"$f":"就労移行支援事業所用!I466","v":0},{"$f":"就労移行支援事業所用!L466","v":0},{"$f":"就労移行支援事業所用!I473","v":0},{"$f":"就労移行支援事業所用!L473","v":0},{"$f":"就労移行支援事業所用!I477","v":0},{"$f":"就労移行支援事業所用!L477","v":0},{"$f":"就労移行支援事業所用!I484","v":0},{"$f":"就労移行支援事業所用!I493","v":0},{"$f":"就労移行支援事業所用!L493","v":0},{"$f":"就労移行支援事業所用!G517","v":0},{"$f":"就労移行支援事業所用!G518","v":0},{"$f":"就労移行支援事業所用!G519","v":0},{"$f":"就労移行支援事業所用!G520","v":0},{"$f":"就労移行支援事業所用!G521","v":0},{"$f":"就労移行支援事業所用!G522","v":0}]

{"sheet":"【集計表】 (継続A型)","index":7,"n_rows":5,"n_cols":305,"rows_kept":5,"cut":false,"hidden":false,"merged":[[1,304,3,304],[2,303,3,303],[2,297,3,297],[2,298,3,298],[2,299,3,299],[2,300,3,300],[2,301,3,301],[2,302,3,302],[2,291,3,291],[2,292,3,292],[2,293,3,293],[2,294,3,294],[2,295,3,295],[2,296,3,296],[2,281,2,283],[2,284,2,286],[2,287,3,287],[2,288,3,288],[2,289,3,289],[2,290,3,290],[2,273,3,273],[2,274,3,274],[2,275,3,275],[2,276,3,276],[2,277,3,277],[2,278,2,280],[2,267,3,267],[2,268,3,268],[2,269,3,269],[2,270,3,270],[2,271,3,271],[2,272,3,272],[2,255,2,257],[2,258,2,260],[2,261,2,263],[2,264,3,264],[2,265,3,265],[2,266,3,266],[2,249,3,249],[2,250,3,250],[2,251,3,251],[2,252,3,252],[2,253,3,253],[2,254,3,254],[2,231,2,233],[2,234,2,236],[2,237,2,239],[2,240,2,242],[2,243,2,245],[2,246,2,248],[2,216,2,218],[2,219,2,221],[2,222,2,224],[2,225,2,227],[2,228,2,230],[2,189,2,194],[2,195,2,200],[2,201,2,203],[2,204,2,206],[2,207,2,209],[2,210,2,212],[2,177,2,182],[2,183,2,188],[2,117,2,122],[2,123,2,128],[2,129,2,134],[2,135,2,140],[2,141,2,146],[2,147,2,152],[2,213,2,215],[2,51,2,56],[2,57,2,62],[2,63,2,68],[2,69,2,74],[2,75,2,80],[2,153,2,158],[2,159,2,164],[2,165,2,170],[2,171,2,176],[1,213,1,224],[1,225,1,236],[1,237,1,248],[1,2,1,12],[1,16,1,33],[2,15,3,15],[2,16,2,21],[2,22,2,27],[2,28,2,33],[2,34,2,38],[2,39,2,44],[2,9,3,9],[2,10,3,10],[2,11,3,11],[2,12,3,12],[2,13,3,13],[2,14,3,14],[2,81,2,86],[2,87,2,92],[2,93,2,98],[2,99,2,104],[2,105,2,110],[2,111,2,116],[2,45,2,50],[1,34,1,38],[1,39,1,44],[1,45,1,98],[1,99,1,122],[1,1,3,1],[1,287,1,290],[1,291,1,294],[1,296,1,297],[1,298,1,303],[2,2,3,2],[2,3,3,3],[2,4,2,5],[2,6,3,6],[2,7,3,7],[2,8,3,8],[1,249,1,253],[1,255,1,263],[1,264,1,267],[1,268,1,271],[1,272,1,276],[1,278,1,286],[1,123,1,182],[1,183,1,200],[1,201,1,212]]}
[null,null,null,null,null,null,null,null,null,null,null,null,null,null,null,null,null,null,null,null,null,null,null,null,null,null,null,null,null,null,null,null,null,null,null,null,null,null,null,null,null,null,null,null,null,null,null,null,null,null,null,null,null,null,null,null,null,null,null,null,null,null,null,null,null,null,null,null,null,null,null,null,null,null,null,null,null,null,null,null,null,null,null,null,null,null,null,null,null,null,null,null,null,null,null,null,null,null,null,null,null,null,null,null,null,null,null,null,null,null,null,null,null,null,null,null,null,null,null,null,null,null,null,null,null,null,null,null,null,null,null,null,null,null,null,null,null,null,null,null,null,null,null,null,null,null,null,null,null,null,null,null,null,null,null,null,null,null,null,null,null,null,null,null,null,null,null,null,null,null,null,null,null,null,null,null,null,null,null,null,null,null,null,null,null,null,null,null,null,null,null,null,null,null,null,null,null,null,null,null,null,null,null,null,null,null,null,null,null,null,null,null,null,null,null,null,null,null,null,null,null,null,null,null,null,null,null,null,null,null,null,null,null,null,null,null,null,null,null,null,null,null,null,null,null,null,null,null,null,null,null,null,null,null,null,null,null,null,null,null,null,null,null,null,null,null,null,null,null,null,null,null,null,null,null,null,null,null,null,null,null,null,null,"z"]
[null,"整理番号",null,null,null,null,null,null,null,null,null,null,null,"１（１）","１（２）","２（１）","２（２）",null,null,null,null,null,null,null,null,null,null,null,null,null,null,null,null,null,"２（３）",null,null,null,null,"２（４）",null,null,null,null,null,"３（１）",null,null,null,null,null,null,null,null,null,null,null,null,null,null,null,null,null,null,null,null,null,null,null,null,null,null,null,null,null,null,null,null,null,null,null,null,null,null,null,null,null,null,null,null,null,null,null,null,null,null,null,null,null,"３（２）",null,null,null,null,null,null,null,null,null,null,null,null,null,null,null,null,null,null,null,null,null,null,null,"３（３）",null,null,null,null,null,null,null,null,null,null,null,null,null,null,null,null,null,null,null,null,null,null,null,null,null,null,null,null,null,null,null,null,null,null,null,null,null,null,null,null,null,null,null,null,null,null,null,null,null,null,null,null,null,null,null,null,null,null,null,"３（４）",null,null,null,null,null,null,null,null,null,null,null,null,null,null,null,null,null,"４（１）",null,null,null,null,null,null,null,null,null,null,null,"４（２）",null,null,null,null,null,null,null,null,null,null,null,"４（３）",null,null,null,null,null,null,null,null,null,null,null,"４（４）",null,null,null,null,null,null,null,null,null,null,null,"５（１）",null,null,null,null,"５（２）","５（３）",null,null,null,null,null,null,null,null,"５（４）",null,null,null,"５（５）",null,null,null,"６（１）",null,null,null,null,"６（２）","６（３）",null,null,null,null,null,null,null,null,"６（４）",null,null,null,"６（５）",null,null,null,"７（１）","７（２）",null,"８",null,null,null,null,null,"備考"]
[null,null,{"$f":"就労継続支援A型事業所用!G48","v":"都道府県名"},{"$f":"就労継続支援A型事業所用!G49","v":"市区町村名"},{"$f":"就労継続支援A型事業所用!G50","v":"法人名"},null,{"$f":"就労継続支援A型事業所用!G52","v":"事業所名"},{"$f":"就労継続支援A型事業所用!G53","v":"事業所番号"},{"$f":"就労継続支援A型事業所用!G54","v":"事業開始時期"},{"$f":"就労継続支援A型事業所用!G55","v":"電話番号"},{"$f":"就労継続支援A型事業所用!G56","v":"E-mail"},{"$f":"就労継続支援A型事業所用!G57","v":"FAX"},{"$f":"就労継続支援A型事業所用!G58","v":"ご担当者氏名"},"事業実施の\n種類","事業の\n実施形態","定員数","平成28年3月31日時点の利用者数\n（利用契約を締結している者の人数）",null,null,null,null,null,"①障害支援区分有り",null,null,null,null,null,"②障害支援区分無し",null,null,null,null,null,"障害基礎年金受給者数",null,null,null,null,"平成28年3月31日時点の利用者実人数",null,null,null,null,null,"平成27年度中の利用開始者数",null,null,null,null,null,"入所前の状況\n①在宅（障害福祉サービスの利用無し）・一般就労",null,null,null,null,null,"入所前の状況\n②特別支援学校（普通学校の特別支援学級含む）",null,null,null,null,null,"入所前の状況\n③普通学校",null,null,null,null,null,"入所前の状況\n④他の就労移行支援",null,null,null,null,null,"入所前の状況\n⑤他の就労継続支援Ａ型",null,null,null,null,null,"入所前の状況\n⑥他の就労継続支援Ｂ型",null,null,null,null,null,"入所前の状況\n⑦生活介護",null,null,null,null,null,"入所前の状況\n⑧他の障害福祉サービス",null,null,null,null,null,"一般就労の経験がある利用者数",null,null,null,null,null,"①障害者雇用枠",null,null,null,null,null,"②それ以外の雇用",null,null,null,null,null,"③どちらも経験有り",null,null,null,null,null,"利用終了者数計",null,null,null,null,null,"退所理由\n①就職・正規雇用（Ａ型除く）",null,null,null,null,null,"退所理由\n②就職・非正規雇用（Ａ型除く）",null,null,null,null,null,"退所理由\n③就労移行支援へ転所",null,null,null,null,null,"退所理由\n④就労継続支援Ａ型へ転所",null,null,null,null,null,"退所理由\n⑤就労継続支援Ｂ型へ転所",null,null,null,null,null,"退所理由\n⑥生活介護へ転所",null,null,null,null,null,"退所理由\n⑦その他の障害福祉サービスへ転所",null,null,null,null,null,"退所理由\n⑧期間満了のため退所（移行支援）",null,null,null,null,null,"退所理由\n⑨その他（①～⑧のいずれにも該当しないもの）",null,null,null,null,null,"就職者数",null,null,null,null,null,"①障害者雇用枠",null,null,null,null,null,"②それ以外の雇用",null,null,null,null,null,"職員の実人数",null,null,"①指導員等（職業指導員、生活支援員、\n就労支援員、サービス管理責任者等)",null,null,"②うち障害福祉サービス以外の\n営利企業で経験がある者等",null,null,"③その他の職員",null,null,{"$f":"就労継続支援A型事業所用!I267","v":"就労継続支援Ａ型事業に従事する職員の実人数"},null,null,"①指導員等（職業指導員、生活支援員、\n就労支援員、サービス管理責任者）",null,null,"②うち障害福祉サービス以外の\n営利企業で経験がある者",null,null,"③その他の職員",null,null,"職員の常勤換算数",null,null,"①指導員等（職業指導員、生活支援員、\n就労支援員、サービス管理責任者）",null,null,"②うち障害福祉サービス以外の\n営利企業で経験がある者",null,null,"③その他の職員",null,null,{"$f":"就労継続支援A型事業所用!I323","v":"就労継続支援Ａ型事業に従事する職員の常勤換算数"},null,null,"①指導員等（職業指導員、生活支援員、\n就労支援員、サービス管理責任者）",null,null,"②うち障害福祉サービス以外の\n営利企業で経験がある者",null,null,"③その他の職員",null,null,"サービス活動収益の総額","①うち自立支援給付費収益","②うち就労支援事業収益","③うち寄附金による収益","④その他の収益","障害福祉サービス事業の\nサービス活動収益","人件費計",null,null,"①指導員等（職業指導員、生活支援員、就労支援員、サービス管理責任者等）",null,null,"②その他の職員",null,null,"サービス活動外収益","うち借入金利息補助金収益","サービス活動外費用","うち支払利息","特別収益","うち事業区分（拠点区分）間繰入金収益","特別費用","うち事業区分（拠点区分）間繰入金費用","サービス活動収益","訓練等給付費収益","就労定着支援\n体制加算","就労移行支援\n体制加算","目標工賃\n達成加算","サービス活動費用","人件費計",null,null,"①指導員等（職業指導員、生活支援員、\n就労支援員、サービス管理責任者）",null,null,"②その他の職員",null,null,"サービス活動外収益","うち借入金利息補助金収益","サービス活動外費用","うち支払利息","特別収益","うち事業区分（拠点区分）間繰入金収益","特別費用","うち事業区分（拠点区分）間繰入金費用","就労移行支援事業収益","就労支援事業費用","うち工賃（賃金）","１．\n事業所の施設や\n設備への投資に向けた留保","２．\n有利子負債削減","３．\n新規雇用の拡大や\n従業員への還元に向けた留保","４．\n役員報酬・\n賞与の支払い","５．\n把握していない","６．\nその他"]
[null,null,null,null,null,{"$f":"就労継続支援A型事業所用!H51","v":"経営主体"},null,null,null,null,null,null,null,null,null,null,"身体障害","知的障害","精神障害","難病等","障害児","合計","身体障害","知的障害","精神障害","難病等","障害児","合計","身体障害","知的障害","精神障害","難病等","障害児","合計","障害基礎年金\n（１級）","障害基礎年金\n（２級）","受給無し","不明","合計","身体障害","知的障害","精神障害","難病等","障害児","合計","身体障害","知的障害","精神障害","難病等","障害児","合計","身体障害","知的障害","精神障害","難病等","障害児","合計","身体障害","知的障害","精神障害","難病等","障害児","合計","身体障害","知的障害","精神障害","難病等","障害児","合計","身体障害","知的障害","精神障害","難病等","障害児","合計","身体障害","知的障害","精神障害","難病等","障害児","合計","身体障害","知的障害","精神障害","難病等","障害児","合計","身体障害","知的障害","精神障害","難病等","障害児","合計","身体障害","知的障害","精神障害","難病等","障害児","合計","身体障害","知的障害","精神障害","難病等","障害児","合計","身体障害","知的障害","精神障害","難病等","障害児","合計","身体障害","知的障害","精神障害","難病等","障害児","合計","身体障害","知的障害","精神障害","難病等","障害児","合計","身体障害","知的障害","精神障害","難病等","障害児","合計","身体障害","知的障害","精神障害","難病等","障害児","合計","身体障害","知的障害","精神障害","難病等","障害児","合計","身体障害","知的障害","精神障害","難病等","障害児","合計","身体障害","知的障害","精神障害","難病等","障害児","合計","身体障害","知的障害","精神障害","難病等","障害児","合計","身体障害","知的障害","精神障害","難病等","障害児","合計","身体障害","知的障害","精神障害","難病等","障害児","合計","身体障害","知的障害","精神障害","難病等","障害児","合計","身体障害","知的障害","精神障害","難病等","障害児","合計","身体障害","知的障害","精神障害","難病等","障害児","合計","身体障害","知的障害","精神障害","難病等","障害児","合計","身体障害","知的障害","精神障害","難病等","障害児","合計","常勤職員","非常勤職員","合計","常勤職員","非常勤職員","合計","常勤職員","非常勤職員","合計","常勤職員","非常勤職員","合計","常勤職員","非常勤職員","合計","常勤職員","非常勤職員","合計","常勤職員","非常勤職員","合計","常勤職員","非常勤職員","合計","常勤職員","非常勤職員","合計","常勤職員","非常勤職員","合計","常勤職員","非常勤職員","合計","常勤職員","非常勤職員","合計","常勤職員","非常勤職員","合計","常勤職員","非常勤職員","合計","常勤職員","非常勤職員","合計","常勤職員","非常勤職員","合計",null,null,null,null,null,null,"職員人件費","常勤職員","非常勤職員","職員人件費","常勤職員","非常勤職員","職員人件費","常勤職員","非常勤職員",null,null,null,null,null,null,null,null,null,null,null,null,null,null,"職員人件費","常勤職員","非常勤職員","職員人件費","常勤職員","非常勤職員","職員人件費","常勤職員","非常勤職員"]
[null,{"$f":"就労継続支援A型事業所用!O2","v":0},{"$f":"就労継続支援A型事業所用!I48","v":"○○県"},{"$f":"就労継続支援A型事業所用!I49","v":"○○市"},{"$f":"就労継続支援A型事業所用!I50","v":0},{"$f":"就労継続支援A型事業所用!I51","v":0},{"$f":"就労継続支援A型事業所用!I52","v":"○○○○○"},{"$f":"就労継続支援A型事業所用!I53","v":"○○○○○"},{"$f":"就労継続支援A型事業所用!I54","v":"H○年○月○日"},{"$f":"就労継続支援A型事業所用!I55","v":"00-000-0000"},{"$f":"就労継続支援A型事業所用!I56","v":"○○○○○＠○○○"},{"$f":"就労継続支援A型事業所用!I57","v":"00-000-0000"},{"$f":"就労継続支援A型事業所用!I58","v":"○○　○○"},{"$f":"就労継続支援A型事業所用!I72","v":"２"},{"$f":"就労継続支援A型事業所用!I81","v":0},{"$f":"就労継続支援A型事業所用!H95","v":0},{"$f":"就労継続支援A型事業所用!H104","v":0},{"$f":"就労継続支援A型事業所用!H105","v":0},{"$f":"就労継続支援A型事業所用!H106","v":0},{"$f":"就労継続支援A型事業所用!H107","v":0},{"$f":"就労継続支援A型事業所用!H108","v":0},{"$f":"就労継続支援A型事業所用!H109","v":0},{"$f":"就労継続支援A型事業所用!J104","v":0},{"$f":"就労継続支援A型事業所用!J105","v":0},{"$f":"就労継続支援A型事業所用!J106","v":0},{"$f":"就労継続支援A型事業所用!J107","v":0},{"$f":"就労継続支援A型事業所用!J108","v":0},{"$f":"就労継続支援A型事業所用!J109","v":0},{"$f":"就労継続支援A型事業所用!L104","v":0},{"$f":"就労継続支援A型事業所用!L105","v":0},{"$f":"就労継続支援A型事業所用!L106","v":0},{"$f":"就労継続支援A型事業所用!L107","v":0},{"$f":"就労継続支援A型事業所用!L108","v":0},{"$f":"就労継続支援A型事業所用!L109","v":0},{"$f":"就労継続支援A型事業所用!I114","v":0},{"$f":"就労継続支援A型事業所用!I115","v":0},{"$f":"就労継続支援A型事業所用!I116","v":0},{"$f":"就労継続支援A型事業所用!I117","v":0},{"$f":"就労継続支援A型事業所用!I118","v":0},{"$f":"就労継続支援A型事業所用!H123","v":0},{"$f":"就労継続支援A型事業所用!H124","v":0},{"$f":"就労継続支援A型事業所用!H125","v":0},{"$f":"就労継続支援A型事業所用!H126","v":0},{"$f":"就労継続支援A型事業所用!H127","v":0},{"$f":"就労継続支援A型事業所用!H128","v":0},{"$f":"就労継続支援A型事業所用!H139","v":0},{"$f":"就労継続支援A型事業所用!H140","v":0},{"$f":"就労継続支援A型事業所用!H141","v":0},{"$f":"就労継続支援A型事業所用!H142","v":0},{"$f":"就労継続支援A型事業所用!H143","v":0},{"$f":"就労継続支援A型事業所用!H144","v":0},{"$f":"就労継続支援A型事業所用!J139","v":0},{"$f":"就労継続支援A型事業所用!J140","v":0},{"$f":"就労継続支援A型事業所用!J141","v":0},{"$f":"就労継続支援A型事業所用!J142","v":0},{"$f":"就労継続支援A型事業所用!J143","v":0},{"$f":"就労継続支援A型事業所用!J144","v":0},{"$f":"就労継続支援A型事業所用!L139","v":0},{"$f":"就労継続支援A型事業所用!L140","v":0},{"$f":"就労継続支援A型事業所用!L141","v":0},{"$f":"就労継続支援A型事業所用!L142","v":0},{"$f":"就労継続支援A型事業所用!L143","v":0},{"$f":"就労継続支援A型事業所用!L144","v":0},{"$f":"就労継続支援A型事業所用!N139","v":0},{"$f":"就労継続支援A型事業所用!N140","v":0},{"$f":"就労継続支援A型事業所用!N141","v":0},{"$f":"就労継続支援A型事業所用!N142","v":0},{"$f":"就労継続支援A型事業所用!N143","v":0},{"$f":"就労継続支援A型事業所用!N144","v":0},{"$f":"就労継続支援A型事業所用!P139","v":0},{"$f":"就労継続支援A型事業所用!P140","v":0},{"$f":"就労継続支援A型事業所用!P141","v":0},{"$f":"就労継続支援A型事業所用!P142","v":0},{"$f":"就労継続支援A型事業所用!P143","v":0},{"$f":"就労継続支援A型事業所用!P144","v":0},{"$f":"就労継続支援A型事業所用!H147","v":0},{"$f":"就労継続支援A型事業所用!H148","v":0},{"$f":"就労継続支援A型事業所用!H149","v":0},{"$f":"就労継続支援A型事業所用!H150","v":0},{"$f":"就労継続支援A型事業所用!H151","v":0},{"$f":"就労継続支援A型事業所用!H152","v":0},{"$f":"就労継続支援A型事業所用!J147","v":0},{"$f":"就労継続支援A型事業所用!J148","v":0},{"$f":"就労継続支援A型事業所用!J149","v":0},{"$f":"就労継続支援A型事業所用!J150","v":0},{"$f":"就労継続支援A型事業所用!J151","v":0},{"$f":"就労継続支援A型事業所用!J152","v":0},{"$f":"就労継続支援A型事業所用!L147","v":0},{"$f":"就労継続支援A型事業所用!L148","v":0},{"$f":"就労継続支援A型事業所用!L149","v":0},{"$f":"就労継続支援A型事業所用!L150","v":0},{"$f":"就労継続支援A型事業所用!L151","v":0},{"$f":"就労継続支援A型事業所用!L152","v":0},{"$f":"就労継続支援A型事業所用!N147","v":0},{"$f":"就労継続支援A型事業所用!N148","v":0},{"$f":"就労継続支援A型事業所用!N149","v":0},{"$f":"就労継続支援A型事業所用!N150","v":0},{"$f":"就労継続支援A型事業所用!N151","v":0},{"$f":"就労継続支援A型事業所用!N152","v":0},{"$f":"就労継続支援A型事業所用!H176","v":0},{"$f":"就労継続支援A型事業所用!H177","v":0},{"$f":"就労継続支援A型事業所用!H178","v":0},{"$f":"就労継続支援A型事業所用!H179","v":0},{"$f":"就労継続支援A型事業所用!H180","v":0},{"$f":"就労継続支援A型事業所用!H181","v":0},{"$f":"就労継続支援A型事業所用!J176","v":0},{"$f":"就労継続支援A型事業所用!J177","v":0},{"$f":"就労継続支援A型事業所用!J178","v":0},{"$f":"就労継続支援A型事業所用!J179","v":0},{"$f":"就労継続支援A型事業所用!J180","v":0},{"$f":"就労継続支援A型事業所用!J181","v":0},{"$f":"就労継続支援A型事業所用!L176","v":0},{"$f":"就労継続支援A型事業所用!L177","v":0},{"$f":"就労継続支援A型事業所用!L178","v":0},{"$f":"就労継続支援A型事業所用!L179","v":0},{"$f":"就労継続支援A型事業所用!L180","v":0},{"$f":"就労継続支援A型事業所用!L181","v":0},{"$f":"就労継続支援A型事業所用!N176","v":0},{"$f":"就労継続支援A型事業所用!N177","v":0},{"$f":"就労継続支援A型事業所用!N178","v":0},{"$f":"就労継続支援A型事業所用!N179","v":0},{"$f":"就労継続支援A型事業所用!N180","v":0},{"$f":"就労継続支援A型事業所用!N181","v":0},{"$f":"就労継続支援A型事業所用!H188","v":0},{"$f":"就労継続支援A型事業所用!H189","v":0},{"$f":"就労継続支援A型事業所用!H190","v":0},{"$f":"就労継続支援A型事業所用!H191","v":0},{"$f":"就労継続支援A型事業所用!H192","v":0},{"$f":"就労継続支援A型事業所用!H193","v":0},{"$f":"就労継続支援A型事業所用!J188","v":0},{"$f":"就労継続支援A型事業所用!J189","v":0},{"$f":"就労継続支援A型事業所用!J190","v":0},{"$f":"就労継続支援A型事業所用!J191","v":0},{"$f":"就労継続支援A型事業所用!J192","v":0},{"$f":"就労継続支援A型事業所用!J193","v":0},{"$f":"就労継続支援A型事業所用!L188","v":0},{"$f":"就労継続支援A型事業所用!L189","v":0},{"$f":"就労継続支援A型事業所用!L190","v":0},{"$f":"就労継続支援A型事業所用!L191","v":0},{"$f":"就労継続支援A型事業所用!L192","v":0},{"$f":"就労継続支援A型事業所用!L193","v":0},{"$f":"就労継続支援A型事業所用!N188","v":0},{"$f":"就労継続支援A型事業所用!N189","v":0},{"$f":"就労継続支援A型事業所用!N190","v":0},{"$f":"就労継続支援A型事業所用!N191","v":0},{"$f":"就労継続支援A型事業所用!N192","v":0},{"$f":"就労継続支援A型事業所用!N193","v":0},{"$f":"就労継続支援A型事業所用!P188","v":0},{"$f":"就労継続支援A型事業所用!P189","v":0},{"$f":"就労継続支援A型事業所用!P190","v":0},{"$f":"就労継続支援A型事業所用!P191","v":0},{"$f":"就労継続支援A型事業所用!P192","v":0},{"$f":"就労継続支援A型事業所用!P193","v":0},{"$f":"就労継続支援A型事業所用!H196","v":0},{"$f":"就労継続支援A型事業所用!H197","v":0},{"$f":"就労継続支援A型事業所用!H198","v":0},{"$f":"就労継続支援A型事業所用!H199","v":0},{"$f":"就労継続支援A型事業所用!H200","v":0},{"$f":"就労継続支援A型事業所用!H201","v":0},{"$f":"就労継続支援A型事業所用!J196","v":0},{"$f":"就労継続支援A型事業所用!J197","v":0},{"$f":"就労継続支援A型事業所用!J198","v":0},{"$f":"就労継続支援A型事業所用!J199","v":0},{"$f":"就労継続支援A型事業所用!J200","v":0},{"$f":"就労継続支援A型事業所用!J201","v":0},{"$f":"就労継続支援A型事業所用!L196","v":0},{"$f":"就労継続支援A型事業所用!L197","v":0},{"$f":"就労継続支援A型事業所用!L198","v":0},{"$f":"就労継続支援A型事業所用!L199","v":0},{"$f":"就労継続支援A型事業所用!L200","v":0},{"$f":"就労継続支援A型事業所用!L201","v":0},{"$f":"就労継続支援A型事業所用!N196","v":0},{"$f":"就労継続支援A型事業所用!N197","v":0},{"$f":"就労継続支援A型事業所用!N198","v":0},{"$f":"就労継続支援A型事業所用!N199","v":0},{"$f":"就労継続支援A型事業所用!N200","v":0},{"$f":"就労継続支援A型事業所用!N201","v":0},{"$f":"就労継続支援A型事業所用!P196","v":0},{"$f":"就労継続支援A型事業所用!P197","v":0},{"$f":"就労継続支援A型事業所用!P198","v":0},{"$f":"就労継続支援A型事業所用!P199","v":0},{"$f":"就労継続支援A型事業所用!P200","v":0},{"$f":"就労継続支援A型事業所用!P201","v":0},{"$f":"就労継続支援A型事業所用!H224","v":0},{"$f":"就労継続支援A型事業所用!H225","v":0},{"$f":"就労継続支援A型事業所用!H226","v":0},{"$f":"就労継続支援A型事業所用!H227","v":0},{"$f":"就労継続支援A型事業所用!H228","v":0},{"$f":"就労継続支援A型事業所用!H229","v":0},{"$f":"就労継続支援A型事業所用!J224","v":0},{"$f":"就労継続支援A型事業所用!J225","v":0},{"$f":"就労継続支援A型事業所用!J226","v":0},{"$f":"就労継続支援A型事業所用!J227","v":0},{"$f":"就労継続支援A型事業所用!J228","v":0},{"$f":"就労継続支援A型事業所用!J229","v":0},{"$f":"就労継続支援A型事業所用!L224","v":0},{"$f":"就労継続支援A型事業所用!L225","v":0},{"$f":"就労継続支援A型事業所用!L226","v":0},{"$f":"就労継続支援A型事業所用!L227","v":0},{"$f":"就労継続支援A型事業所用!L228","v":0},{"$f":"就労継続支援A型事業所用!L229","v":0},{"$f":"就労継続支援A型事業所用!I243","v":0},{"$f":"就労継続支援A型事業所用!I244","v":0},{"$f":"就労継続支援A型事業所用!I245","v":0},{"$f":"就労継続支援A型事業所用!K243","v":0},{"$f":"就労継続支援A型事業所用!K244","v":0},{"$f":"就労継続支援A型事業所用!K245","v":0},{"$f":"就労継続支援A型事業所用!M243","v":0},{"$f":"就労継続支援A型事業所用!M244","v":0},{"$f":"就労継続支援A型事業所用!M245","v":0},{"$f":"就労継続支援A型事業所用!O243","v":0},{"$f":"就労継続支援A型事業所用!O244","v":0},{"$f":"就労継続支援A型事業所用!O245","v":0},{"$f":"就労継続支援A型事業所用!I270","v":0},{"$f":"就労継続支援A型事業所用!I271","v":0},{"$f":"就労継続支援A型事業所用!I272","v":0},{"$f":"就労継続支援A型事業所用!K270","v":0},{"$f":"就労継続支援A型事業所用!K271","v":0},{"$f":"就労継続支援A型事業所用!K272","v":0},{"$f":"就労継続支援A型事業所用!M270","v":0},{"$f":"就労継続支援A型事業所用!M271","v":0},{"$f":"就労継続支援A型事業所用!M272","v":0},{"$f":"就労継続支援A型事業所用!O270","v":0},{"$f":"就労継続支援A型事業所用!O271","v":0},{"$f":"就労継続支援A型事業所用!O272","v":0},{"$f":"就労継続支援A型事業所用!I299","v":0},{"$f":"就労継続支援A型事業所用!I300","v":0},{"$f":"就労継続支援A型事業所用!I301","v":0},{"$f":"就労継続支援A型事業所用!K299","v":0},{"$f":"就労継続支援A型事業所用!K300","v":0},{"$f":"就労継続支援A型事業所用!K301","v":0},{"$f":"就労継続支援A型事業所用!M299","v":0},{"$f":"就労継続支援A型事業所用!M300","v":0},{"$f":"就労継続支援A型事業所用!M301","v":0},{"$f":"就労継続支援A型事業所用!O299","v":0},{"$f":"就労継続支援A型事業所用!O300","v":0},{"$f":"就労継続支援A型事業所用!O301","v":0},{"$f":"就労継続支援A型事業所用!I326","v":0},{"$f":"就労継続支援A型事業所用!I327","v":0},{"$f":"就労継続支援A型事業所用!I328","v":0},{"$f":"就労継続支援A型事業所用!K326","v":0},{"$f":"就労継続支援A型事業所用!K327","v":0},{"$f":"就労継続支援A型事業所用!K328","v":0},{"$f":"就労継続支援A型事業所用!M326","v":0},{"$f":"就労継続支援A型事業所用!M327","v":0},{"$f":"就労継続支援A型事業所用!M328","v":0},{"$f":"就労継続支援A型事業所用!O326","v":0},{"$f":"就労継続支援A型事業所用!O327","v":0},{"$f":"就労継続支援A型事業所用!O328","v":0},{"$f":"就労継続支援A型事業所用!I359","v":0},{"$f":"就労継続支援A型事業所用!L359","v":0},{"$f":"就労継続支援A型事業所用!O359","v":0},{"$f":"就労継続支援A型事業所用!I362","v":0},{"$f":"就労継続支援A型事業所用!L362","v":0},{"$f":"就労継続支援A型事業所用!I366","v":0},{"$f":"就労継続支援A型事業所用!J386","v":0},{"$f":"就労継続支援A型事業所用!J387","v":0},{"$f":"就労継続支援A型事業所用!J388","v":0},{"$f":"就労継続支援A型事業所用!M386","v":0},{"$f":"就労継続支援A型事業所用!M387","v":0},{"$f":"就労継続支援A型事業所用!M388","v":0},{"$f":"就労継続支援A型事業所用!O386","v":0},{"$f":"就労継続支援A型事業所用!O387","v":0},{"$f":"就労継続支援A型事業所用!O388","v":0},{"$f":"就労継続支援A型事業所用!I395","v":0},{"$f":"就労継続支援A型事業所用!L395","v":0},{"$f":"就労継続支援A型事業所用!I399","v":0},{"$f":"就労継続支援A型事業所用!L399","v":0},{"$f":"就労継続支援A型事業所用!I408","v":0},{"$f":"就労継続支援A型事業所用!L408","v":0},{"$f":"就労継続支援A型事業所用!I412","v":0},{"$f":"就労継続支援A型事業所用!L412","v":0},{"$f":"就労継続支援A型事業所用!I422","v":0},{"$f":"就労継続支援A型事業所用!L422","v":0},{"$f":"就労継続支援A型事業所用!G424","v":0},{"$f":"就労継続支援A型事業所用!G425","v":0},{"$f":"就労継続支援A型事業所用!G426","v":0},{"$f":"就労継続支援A型事業所用!I431","v":0},{"$f":"就労継続支援A型事業所用!J452","v":0},{"$f":"就労継続支援A型事業所用!J453","v":0},{"$f":"就労継続支援A型事業所用!J454","v":0},{"$f":"就労継続支援A型事業所用!M452","v":0},{"$f":"就労継続支援A型事業所用!M453","v":0},{"$f":"就労継続支援A型事業所用!M454","v":0},{"$f":"就労継続支援A型事業所用!O452","v":0},{"$f":"就労継続支援A型事業所用!O453","v":0},{"$f":"就労継続支援A型事業所用!O454","v":0},{"$f":"就労継続支援A型事業所用!I462","v":0},{"$f":"就労継続支援A型事業所用!L462","v":0},{"$f":"就労継続支援A型事業所用!I466","v":0},{"$f":"就労継続支援A型事業所用!L466","v":0},{"$f":"就労継続支援A型事業所用!I473","v":0},{"$f":"就労継続支援A型事業所用!L473","v":0},{"$f":"就労継続支援A型事業所用!I477","v":0},{"$f":"就労継続支援A型事業所用!L477","v":0},{"$f":"就労継続支援A型事業所用!I484","v":0},{"$f":"就労継続支援A型事業所用!I493","v":0},{"$f":"就労継続支援A型事業所用!L493","v":0},{"$f":"就労継続支援A型事業所用!G517","v":0},{"$f":"就労継続支援A型事業所用!G518","v":0},{"$f":"就労継続支援A型事業所用!G519","v":0},{"$f":"就労継続支援A型事業所用!G520","v":0},{"$f":"就労継続支援A型事業所用!G521","v":0},{"$f":"就労継続支援A型事業所用!G522","v":0}]

{"sheet":"【集計表】 (継続B型)","index":8,"n_rows":5,"n_cols":305,"rows_kept":5,"cut":false,"hidden":false,"merged":[[1,304,3,304],[2,303,3,303],[2,297,3,297],[2,298,3,298],[2,299,3,299],[2,300,3,300],[2,301,3,301],[2,302,3,302],[2,291,3,291],[2,292,3,292],[2,293,3,293],[2,294,3,294],[2,295,3,295],[2,296,3,296],[2,281,2,283],[2,284,2,286],[2,287,3,287],[2,288,3,288],[2,289,3,289],[2,290,3,290],[2,273,3,273],[2,274,3,274],[2,275,3,275],[2,276,3,276],[2,277,3,277],[2,278,2,280],[2,267,3,267],[2,268,3,268],[2,269,3,269],[2,270,3,270],[2,271,3,271],[2,272,3,272],[2,255,2,257],[2,258,2,260],[2,261,2,263],[2,264,3,264],[2,265,3,265],[2,266,3,266],[2,249,3,249],[2,250,3,250],[2,251,3,251],[2,252,3,252],[2,253,3,253],[2,254,3,254],[2,231,2,233],[2,234,2,236],[2,237,2,239],[2,240,2,242],[2,243,2,245],[2,246,2,248],[2,216,2,218],[2,219,2,221],[2,222,2,224],[2,225,2,227],[2,228,2,230],[2,189,2,194],[2,195,2,200],[2,201,2,203],[2,204,2,206],[2,207,2,209],[2,210,2,212],[2,177,2,182],[2,183,2,188],[2,117,2,122],[2,123,2,128],[2,129,2,134],[2,135,2,140],[2,141,2,146],[2,147,2,152],[2,213,2,215],[2,51,2,56],[2,57,2,62],[2,63,2,68],[2,69,2,74],[2,75,2,80],[2,153,2,158],[2,159,2,164],[2,165,2,170],[2,171,2,176],[1,213,1,224],[1,225,1,236],[1,237,1,248],[1,2,1,12],[1,16,1,33],[2,15,3,15],[2,16,2,21],[2,22,2,27],[2,28,2,33],[2,34,2,38],[2,39,2,44],[2,9,3,9],[2,10,3,10],[2,11,3,11],[2,12,3,12],[2,13,3,13],[2,14,3,14],[2,81,2,86],[2,87,2,92],[2,93,2,98],[2,99,2,104],[2,105,2,110],[2,111,2,116],[2,45,2,50],[1,34,1,38],[1,39,1,44],[1,45,1,98],[1,99,1,122],[1,1,3,1],[1,287,1,290],[1,291,1,294],[1,296,1,297],[1,298,1,303],[2,2,3,2],[2,3,3,3],[2,4,2,5],[2,6,3,6],[2,7,3,7],[2,8,3,8],[1,249,1,253],[1,255,1,263],[1,264,1,267],[1,268,1,271],[1,272,1,276],[1,278,1,286],[1,123,1,182],[1,183,1,200],[1,201,1,212]]}
[null,null,null,null,null,null,null,null,null,null,null,null,null,null,null,null,null,null,null,null,null,null,null,null,null,null,null,null,null,null,null,null,null,null,null,null,null,null,null,null,null,null,null,null,null,null,null,null,null,null,null,null,null,null,null,null,null,null,null,null,null,null,null,null,null,null,null,null,null,null,null,null,null,null,null,null,null,null,null,null,null,null,null,null,null,null,null,null,null,null,null,null,null,null,null,null,null,null,null,null,null,null,null,null,null,null,null,null,null,null,null,null,null,null,null,null,null,null,null,null,null,null,null,null,null,null,null,null,null,null,null,null,null,null,null,null,null,null,null,null,null,null,null,null,null,null,null,null,null,null,null,null,null,null,null,null,null,null,null,null,null,null,null,null,null,null,null,null,null,null,null,null,null,null,null,null,null,null,null,null,null,null,null,null,null,null,null,null,null,null,null,null,null,null,null,null,null,null,null,null,null,null,null,null,null,null,null,null,null,null,null,null,null,null,null,null,null,null,null,null,null,null,null,null,null,null,null,null,null,null,null,null,null,null,null,null,null,null,null,null,null,null,null,null,null,null,null,null,null,null,null,null,null,null,null,null,null,null,null,null,null,null,null,null,null,null,null,null,null,null,null,null,null,null,null,null,null,null,null,null,null,null,null,"z"]
[null,"整理番号",null,null,null,null,null,null,null,null,null,null,null,"１（１）","１（２）","２（１）","２（２）",null,null,null,null,null,null,null,null,null,null,null,null,null,null,null,null,null,"２（３）",null,null,null,null,"２（４）",null,null,null,null,null,"３（１）",null,null,null,null,null,null,null,null,null,null,null,null,null,null,null,null,null,null,null,null,null,null,null,null,null,null,null,null,null,null,null,null,null,null,null,null,null,null,null,null,null,null,null,null,null,null,null,null,null,null,null,null,null,"３（２）",null,null,null,null,null,null,null,null,null,null,null,null,null,null,null,null,null,null,null,null,null,null,null,"３（３）",null,null,null,null,null,null,null,null,null,null,null,null,null,null,null,null,null,null,null,null,null,null,null,null,null,null,null,null,null,null,null,null,null,null,null,null,null,null,null,null,null,null,null,null,null,null,null,null,null,null,null,null,null,null,null,null,null,null,null,"３（４）",null,null,null,null,null,null,null,null,null,null,null,null,null,null,null,null,null,"４（１）",null,null,null,null,null,null,null,null,null,null,null,"４（２）",null,null,null,null,null,null,null,null,null,null,null,"４（３）",null,null,null,null,null,null,null,null,null,null,null,"４（４）",null,null,null,null,null,null,null,null,null,null,null,"５（１）",null,null,null,null,"５（２）","５（３）",null,null,null,null,null,null,null,null,"５（４）",null,null,null,"５（５）",null,null,null,"６（１）",null,null,null,null,"６（２）","６（３）",null,null,null,null,null,null,null,null,"６（４）",null,null,null,"６（５）",null,null,null,"７（１）","７（２）",null,"８",null,null,null,null,null,"備考"]
[null,null,{"$f":"就労継続支援B型事業所用!G48","v":"都道府県名"},{"$f":"就労継続支援B型事業所用!G49","v":"市区町村名"},{"$f":"就労継続支援B型事業所用!G50","v":"法人名"},null,{"$f":"就労継続支援B型事業所用!G52","v":"事業所名"},{"$f":"就労継続支援B型事業所用!G53","v":"事業所番号"},{"$f":"就労継続支援B型事業所用!G54","v":"事業開始時期"},{"$f":"就労継続支援B型事業所用!G55","v":"電話番号"},{"$f":"就労継続支援B型事業所用!G56","v":"E-mail"},{"$f":"就労継続支援B型事業所用!G57","v":"FAX"},{"$f":"就労継続支援B型事業所用!G58","v":"ご担当者氏名"},"事業実施の\n種類","事業の\n実施形態","定員数","平成28年3月31日時点の利用者数\n（利用契約を締結している者の人数）",null,null,null,null,null,"①障害支援区分有り",null,null,null,null,null,"②障害支援区分無し",null,null,null,null,null,"障害基礎年金受給者数",null,null,null,null,"平成28年3月31日時点の利用者実人数",null,null,null,null,null,"平成27年度中の利用開始者数",null,null,null,null,null,"入所前の状況\n①在宅（障害福祉サービスの利用無し）・一般就労",null,null,null,null,null,"入所前の状況\n②特別支援学校（普通学校の特別支援学級含む）",null,null,null,null,null,"入所前の状況\n③普通学校",null,null,null,null,null,"入所前の状況\n④他の就労移行支援",null,null,null,null,null,"入所前の状況\n⑤他の就労継続支援Ａ型",null,null,null,null,null,"入所前の状況\n⑥他の就労継続支援Ｂ型",null,null,null,null,null,"入所前の状況\n⑦生活介護",null,null,null,null,null,"入所前の状況\n⑧他の障害福祉サービス",null,null,null,null,null,"一般就労の経験がある利用者数",null,null,null,null,null,"①障害者雇用枠",null,null,null,null,null,"②それ以外の雇用",null,null,null,null,null,"③どちらも経験有り",null,null,null,null,null,"利用修了者数計",null,null,null,null,null,"退所理由\n①就職・正規雇用（Ａ型除く）",null,null,null,null,null,"退所理由\n②就職・非正規雇用（Ａ型除く）",null,null,null,null,null,"退所理由\n③就労移行支援へ転所",null,null,null,null,null,"退所理由\n④就労継続支援Ａ型へ転所",null,null,null,null,null,"退所理由\n⑤就労継続支援Ｂ型へ転所",null,null,null,null,null,"退所理由\n⑥生活介護へ転所",null,null,null,null,null,"退所理由\n⑦その他の障害福祉サービスへ転所",null,null,null,null,null,"退所理由\n⑧期間満了のため退所（移行支援）",null,null,null,null,null,"退所理由\n⑨その他（①～⑧のいずれにも該当しないもの）",null,null,null,null,null,"就職者数",null,null,null,null,null,"①障害者雇用枠",null,null,null,null,null,"②それ以外の雇用",null,null,null,null,null,"職員の実人数",null,null,"①指導員等（職業指導員、生活支援員、\n就労支援員、サービス管理責任者等)",null,null,"②うち障害福祉サービス以外の\n営利企業で経験がある者等",null,null,"③その他の職員",null,null,{"$f":"就労継続支援B型事業所用!I267","v":"就労継続支援Ｂ型事業に従事する職員の実人数"},null,null,"①指導員等（職業指導員、生活支援員、\n就労支援員、サービス管理責任者）",null,null,"②うち障害福祉サービス以外の\n営利企業で経験がある者",null,null,"③その他の職員",null,null,"職員の常勤換算数",null,null,"①指導員等（職業指導員、生活支援員、\n就労支援員、サービス管理責任者）",null,null,"②うち障害福祉サービス以外の\n営利企業で経験がある者",null,null,"③その他の職員",null,null,{"$f":"就労継続支援B型事業所用!I323","v":"就労継続支援Ｂ型事業に従事する職員の常勤換算数"},null,null,"①指導員等（職業指導員、生活支援員、\n就労支援員、サービス管理責任者）",null,null,"②うち障害福祉サービス以外の\n営利企業で経験がある者",null,null,"③その他の職員",null,null,"サービス活動収益の総額","①うち自立支援給付費収益","②うち就労支援事業収益","③うち寄附金による収益","④その他の収益","障害福祉サービス事業の\nサービス活動収益","人件費計",null,null,"①指導員等（職業指導員、生活支援員、就労支援員、サービス管理責任者等）",null,null,"②その他の職員",null,null,"サービス活動外収益","うち借入金利息補助金収益","サービス活動外費用","うち支払利息","特別収益","うち事業区分（拠点区分）間繰入金収益","特別費用","うち事業区分（拠点区分）間繰入金費用","サービス活動収益","訓練等給付費収益","就労定着支援\n体制加算","就労移行支援\n体制加算","目標工賃\n達成加算","サービス活動費用","人件費計",null,null,"①指導員等（職業指導員、生活支援員、\n就労支援員、サービス管理責任者）",null,null,"②その他の職員",null,null,"サービス活動外収益","うち借入金利息補助金収益","サービス活動外費用","うち支払利息","特別収益","うち事業区分（拠点区分）間繰入金収益","特別費用","うち事業区分（拠点区分）間繰入金費用","就労移行支援事業収益","就労支援事業費用","うち工賃（賃金）","１．\n事業所の施設や\n設備への投資に向けた留保","２．\n有利子負債削減","３．\n新規雇用の拡大や\n従業員への還元に向けた留保","４．\n役員報酬・\n賞与の支払い","５．\n把握していない","６．\nその他"]
[null,null,null,null,null,{"$f":"就労継続支援B型事業所用!H51","v":"経営主体"},null,null,null,null,null,null,null,null,null,null,"身体障害","知的障害","精神障害","難病等","障害児","合計","身体障害","知的障害","精神障害","難病等","障害児","合計","身体障害","知的障害","精神障害","難病等","障害児","合計","障害基礎年金\n（１級）","障害基礎年金\n（２級）","受給無し","不明","合計","身体障害","知的障害","精神障害","難病等","障害児","合計","身体障害","知的障害","精神障害","難病等","障害児","合計","身体障害","知的障害","精神障害","難病等","障害児","合計","身体障害","知的障害","精神障害","難病等","障害児","合計","身体障害","知的障害","精神障害","難病等","障害児","合計","身体障害","知的障害","精神障害","難病等","障害児","合計","身体障害","知的障害","精神障害","難病等","障害児","合計","身体障害","知的障害","精神障害","難病等","障害児","合計","身体障害","知的障害","精神障害","難病等","障害児","合計","身体障害","知的障害","精神障害","難病等","障害児","合計","身体障害","知的障害","精神障害","難病等","障害児","合計","身体障害","知的障害","精神障害","難病等","障害児","合計","身体障害","知的障害","精神障害","難病等","障害児","合計","身体障害","知的障害","精神障害","難病等","障害児","合計","身体障害","知的障害","精神障害","難病等","障害児","合計","身体障害","知的障害","精神障害","難病等","障害児","合計","身体障害","知的障害","精神障害","難病等","障害児","合計","身体障害","知的障害","精神障害","難病等","障害児","合計","身体障害","知的障害","精神障害","難病等","障害児","合計","身体障害","知的障害","精神障害","難病等","障害児","合計","身体障害","知的障害","精神障害","難病等","障害児","合計","身体障害","知的障害","精神障害","難病等","障害児","合計","身体障害","知的障害","精神障害","難病等","障害児","合計","身体障害","知的障害","精神障害","難病等","障害児","合計","身体障害","知的障害","精神障害","難病等","障害児","合計","身体障害","知的障害","精神障害","難病等","障害児","合計","身体障害","知的障害","精神障害","難病等","障害児","合計","常勤職員","非常勤職員","合計","常勤職員","非常勤職員","合計","常勤職員","非常勤職員","合計","常勤職員","非常勤職員","合計","常勤職員","非常勤職員","合計","常勤職員","非常勤職員","合計","常勤職員","非常勤職員","合計","常勤職員","非常勤職員","合計","常勤職員","非常勤職員","合計","常勤職員","非常勤職員","合計","常勤職員","非常勤職員","合計","常勤職員","非常勤職員","合計","常勤職員","非常勤職員","合計","常勤職員","非常勤職員","合計","常勤職員","非常勤職員","合計","常勤職員","非常勤職員","合計",null,null,null,null,null,null,"職員人件費","常勤職員","非常勤職員","職員人件費","常勤職員","非常勤職員","職員人件費","常勤職員","非常勤職員",null,null,null,null,null,null,null,null,null,null,null,null,null,null,"職員人件費","常勤職員","非常勤職員","職員人件費","常勤職員","非常勤職員","職員人件費","常勤職員","非常勤職員"]
[null,{"$f":"就労継続支援B型事業所用!O2","v":0},{"$f":"就労継続支援B型事業所用!I48","v":"○○県"},{"$f":"就労継続支援B型事業所用!I49","v":"○○市"},{"$f":"就労継続支援B型事業所用!I50","v":0},{"$f":"就労継続支援B型事業所用!I51","v":0},{"$f":"就労継続支援B型事業所用!I52","v":"○○○○○"},{"$f":"就労継続支援B型事業所用!I53","v":"○○○○○"},{"$f":"就労継続支援B型事業所用!I54","v":"H○年○月○日"},{"$f":"就労継続支援B型事業所用!I55","v":"00-000-0000"},{"$f":"就労継続支援B型事業所用!I56","v":"○○○○○＠○○○"},{"$f":"就労継続支援B型事業所用!I57","v":"00-000-0000"},{"$f":"就労継続支援B型事業所用!I58","v":"○○　○○"},{"$f":"就労継続支援B型事業所用!I72","v":"３"},{"$f":"就労継続支援B型事業所用!I81","v":0},{"$f":"就労継続支援B型事業所用!H95","v":0},{"$f":"就労継続支援B型事業所用!H104","v":0},{"$f":"就労継続支援B型事業所用!H105","v":0},{"$f":"就労継続支援B型事業所用!H106","v":0},{"$f":"就労継続支援B型事業所用!H107","v":0},{"$f":"就労継続支援B型事業所用!H108","v":0},{"$f":"就労継続支援B型事業所用!H109","v":0},{"$f":"就労継続支援B型事業所用!J104","v":0},{"$f":"就労継続支援B型事業所用!J105","v":0},{"$f":"就労継続支援B型事業所用!J106","v":0},{"$f":"就労継続支援B型事業所用!J107","v":0},{"$f":"就労継続支援B型事業所用!J108","v":0},{"$f":"就労継続支援B型事業所用!J109","v":0},{"$f":"就労継続支援B型事業所用!L104","v":0},{"$f":"就労継続支援B型事業所用!L105","v":0},{"$f":"就労継続支援B型事業所用!L106","v":0},{"$f":"就労継続支援B型事業所用!L107","v":0},{"$f":"就労継続支援B型事業所用!L108","v":0},{"$f":"就労継続支援B型事業所用!L109","v":0},{"$f":"就労継続支援B型事業所用!I114","v":0},{"$f":"就労継続支援B型事業所用!I115","v":0},{"$f":"就労継続支援B型事業所用!I116","v":0},{"$f":"就労継続支援B型事業所用!I117","v":0},{"$f":"就労継続支援B型事業所用!I118","v":0},{"$f":"就労継続支援B型事業所用!H123","v":0},{"$f":"就労継続支援B型事業所用!H124","v":0},{"$f":"就労継続支援B型事業所用!H125","v":0},{"$f":"就労継続支援B型事業所用!H126","v":0},{"$f":"就労継続支援B型事業所用!H127","v":0},{"$f":"就労継続支援B型事業所用!H128","v":0},{"$f":"就労継続支援B型事業所用!H139","v":0},{"$f":"就労継続支援B型事業所用!H140","v":0},{"$f":"就労継続支援B型事業所用!H141","v":0},{"$f":"就労継続支援B型事業所用!H142","v":0},{"$f":"就労継続支援B型事業所用!H143","v":0},{"$f":"就労継続支援B型事業所用!H144","v":0},{"$f":"就労継続支援B型事業所用!J139","v":0},{"$f":"就労継続支援B型事業所用!J140","v":0},{"$f":"就労継続支援B型事業所用!J141","v":0},{"$f":"就労継続支援B型事業所用!J142","v":0},{"$f":"就労継続支援B型事業所用!J143","v":0},{"$f":"就労継続支援B型事業所用!J144","v":0},{"$f":"就労継続支援B型事業所用!L139","v":0},{"$f":"就労継続支援B型事業所用!L140","v":0},{"$f":"就労継続支援B型事業所用!L141","v":0},{"$f":"就労継続支援B型事業所用!L142","v":0},{"$f":"就労継続支援B型事業所用!L143","v":0},{"$f":"就労継続支援B型事業所用!L144","v":0},{"$f":"就労継続支援B型事業所用!N139","v":0},{"$f":"就労継続支援B型事業所用!N140","v":0},{"$f":"就労継続支援B型事業所用!N141","v":0},{"$f":"就労継続支援B型事業所用!N142","v":0},{"$f":"就労継続支援B型事業所用!N143","v":0},{"$f":"就労継続支援B型事業所用!N144","v":0},{"$f":"就労継続支援B型事業所用!P139","v":0},{"$f":"就労継続支援B型事業所用!P140","v":0},{"$f":"就労継続支援B型事業所用!P141","v":0},{"$f":"就労継続支援B型事業所用!P142","v":0},{"$f":"就労継続支援B型事業所用!P143","v":0},{"$f":"就労継続支援B型事業所用!P144","v":0},{"$f":"就労継続支援B型事業所用!H147","v":0},{"$f":"就労継続支援B型事業所用!H148","v":0},{"$f":"就労継続支援B型事業所用!H149","v":0},{"$f":"就労継続支援B型事業所用!H150","v":0},{"$f":"就労継続支援B型事業所用!H151","v":0},{"$f":"就労継続支援B型事業所用!H152","v":0},{"$f":"就労継続支援B型事業所用!J147","v":0},{"$f":"就労継続支援B型事業所用!J148","v":0},{"$f":"就労継続支援B型事業所用!J149","v":0},{"$f":"就労継続支援B型事業所用!J150","v":0},{"$f":"就労継続支援B型事業所用!J151","v":0},{"$f":"就労継続支援B型事業所用!J152","v":0},{"$f":"就労継続支援B型事業所用!L147","v":0},{"$f":"就労継続支援B型事業所用!L148","v":0},{"$f":"就労継続支援B型事業所用!L149","v":0},{"$f":"就労継続支援B型事業所用!L150","v":0},{"$f":"就労継続支援B型事業所用!L151","v":0},{"$f":"就労継続支援B型事業所用!L152","v":0},{"$f":"就労継続支援B型事業所用!N147","v":0},{"$f":"就労継続支援B型事業所用!N148","v":0},{"$f":"就労継続支援B型事業所用!N149","v":0},{"$f":"就労継続支援B型事業所用!N150","v":0},{"$f":"就労継続支援B型事業所用!N151","v":0},{"$f":"就労継続支援B型事業所用!N152","v":0},{"$f":"就労継続支援B型事業所用!H176","v":0},{"$f":"就労継続支援B型事業所用!H177","v":0},{"$f":"就労継続支援B型事業所用!H178","v":0},{"$f":"就労継続支援B型事業所用!H179","v":0},{"$f":"就労継続支援B型事業所用!H180","v":0},{"$f":"就労継続支援B型事業所用!H181","v":0},{"$f":"就労継続支援B型事業所用!J176","v":0},{"$f":"就労継続支援B型事業所用!J177","v":0},{"$f":"就労継続支援B型事業所用!J178","v":0},{"$f":"就労継続支援B型事業所用!J179","v":0},{"$f":"就労継続支援B型事業所用!J180","v":0},{"$f":"就労継続支援B型事業所用!J181","v":0},{"$f":"就労継続支援B型事業所用!L176","v":0},{"$f":"就労継続支援B型事業所用!L177","v":0},{"$f":"就労継続支援B型事業所用!L178","v":0},{"$f":"就労継続支援B型事業所用!L179","v":0},{"$f":"就労継続支援B型事業所用!L180","v":0},{"$f":"就労継続支援B型事業所用!L181","v":0},{"$f":"就労継続支援B型事業所用!N176","v":0},{"$f":"就労継続支援B型事業所用!N177","v":0},{"$f":"就労継続支援B型事業所用!N178","v":0},{"$f":"就労継続支援B型事業所用!N179","v":0},{"$f":"就労継続支援B型事業所用!N180","v":0},{"$f":"就労継続支援B型事業所用!N181","v":0},{"$f":"就労継続支援B型事業所用!H188","v":0},{"$f":"就労継続支援B型事業所用!H189","v":0},{"$f":"就労継続支援B型事業所用!H190","v":0},{"$f":"就労継続支援B型事業所用!H191","v":0},{"$f":"就労継続支援B型事業所用!H192","v":0},{"$f":"就労継続支援B型事業所用!H193","v":0},{"$f":"就労継続支援B型事業所用!J188","v":0},{"$f":"就労継続支援B型事業所用!J189","v":0},{"$f":"就労継続支援B型事業所用!J190","v":0},{"$f":"就労継続支援B型事業所用!J191","v":0},{"$f":"就労継続支援B型事業所用!J192","v":0},{"$f":"就労継続支援B型事業所用!J193","v":0},{"$f":"就労継続支援B型事業所用!L188","v":0},{"$f":"就労継続支援B型事業所用!L189","v":0},{"$f":"就労継続支援B型事業所用!L190","v":0},{"$f":"就労継続支援B型事業所用!L191","v":0},{"$f":"就労継続支援B型事業所用!L192","v":0},{"$f":"就労継続支援B型事業所用!L193","v":0},{"$f":"就労継続支援B型事業所用!N188","v":0},{"$f":"就労継続支援B型事業所用!N189","v":0},{"$f":"就労継続支援B型事業所用!N190","v":0},{"$f":"就労継続支援B型事業所用!N191","v":0},{"$f":"就労継続支援B型事業所用!N192","v":0},{"$f":"就労継続支援B型事業所用!N193","v":0},{"$f":"就労継続支援B型事業所用!P188","v":0},{"$f":"就労継続支援B型事業所用!P189","v":0},{"$f":"就労継続支援B型事業所用!P190","v":0},{"$f":"就労継続支援B型事業所用!P191","v":0},{"$f":"就労継続支援B型事業所用!P192","v":0},{"$f":"就労継続支援B型事業所用!P193","v":0},{"$f":"就労継続支援B型事業所用!H196","v":0},{"$f":"就労継続支援B型事業所用!H197","v":0},{"$f":"就労継続支援B型事業所用!H198","v":0},{"$f":"就労継続支援B型事業所用!H199","v":0},{"$f":"就労継続支援B型事業所用!H200","v":0},{"$f":"就労継続支援B型事業所用!H201","v":0},{"$f":"就労継続支援B型事業所用!J196","v":0},{"$f":"就労継続支援B型事業所用!J197","v":0},{"$f":"就労継続支援B型事業所用!J198","v":0},{"$f":"就労継続支援B型事業所用!J199","v":0},{"$f":"就労継続支援B型事業所用!J200","v":0},{"$f":"就労継続支援B型事業所用!J201","v":0},{"$f":"就労継続支援B型事業所用!L196","v":0},{"$f":"就労継続支援B型事業所用!L197","v":0},{"$f":"就労継続支援B型事業所用!L198","v":0},{"$f":"就労継続支援B型事業所用!L199","v":0},{"$f":"就労継続支援B型事業所用!L200","v":0},{"$f":"就労継続支援B型事業所用!L201","v":0},{"$f":"就労継続支援B型事業所用!N196","v":0},{"$f":"就労継続支援B型事業所用!N197","v":0},{"$f":"就労継続支援B型事業所用!N198","v":0},{"$f":"就労継続支援B型事業所用!N199","v":0},{"$f":"就労継続支援B型事業所用!N200","v":0},{"$f":"就労継続支援B型事業所用!N201","v":0},{"$f":"就労継続支援B型事業所用!P196","v":0},{"$f":"就労継続支援B型事業所用!P197","v":0},{"$f":"就労継続支援B型事業所用!P198","v":0},{"$f":"就労継続支援B型事業所用!P199","v":0},{"$f":"就労継続支援B型事業所用!P200","v":0},{"$f":"就労継続支援B型事業所用!P201","v":0},{"$f":"就労継続支援B型事業所用!H224","v":0},{"$f":"就労継続支援B型事業所用!H225","v":0},{"$f":"就労継続支援B型事業所用!H226","v":0},{"$f":"就労継続支援B型事業所用!H227","v":0},{"$f":"就労継続支援B型事業所用!H228","v":0},{"$f":"就労継続支援B型事業所用!H229","v":0},{"$f":"就労継続支援B型事業所用!J224","v":0},{"$f":"就労継続支援B型事業所用!J225","v":0},{"$f":"就労継続支援B型事業所用!J226","v":0},{"$f":"就労継続支援B型事業所用!J227","v":0},{"$f":"就労継続支援B型事業所用!J228","v":0},{"$f":"就労継続支援B型事業所用!J229","v":0},{"$f":"就労継続支援B型事業所用!L224","v":0},{"$f":"就労継続支援B型事業所用!L225","v":0},{"$f":"就労継続支援B型事業所用!L226","v":0},{"$f":"就労継続支援B型事業所用!L227","v":0},{"$f":"就労継続支援B型事業所用!L228","v":0},{"$f":"就労継続支援B型事業所用!L229","v":0},{"$f":"就労継続支援B型事業所用!I243","v":0},{"$f":"就労継続支援B型事業所用!I244","v":0},{"$f":"就労継続支援B型事業所用!I245","v":0},{"$f":"就労継続支援B型事業所用!K243","v":0},{"$f":"就労継続支援B型事業所用!K244","v":0},{"$f":"就労継続支援B型事業所用!K245","v":0},{"$f":"就労継続支援B型事業所用!M243","v":0},{"$f":"就労継続支援B型事業所用!M244","v":0},{"$f":"就労継続支援B型事業所用!M245","v":0},{"$f":"就労継続支援B型事業所用!O243","v":0},{"$f":"就労継続支援B型事業所用!O244","v":0},{"$f":"就労継続支援B型事業所用!O245","v":0},{"$f":"就労継続支援B型事業所用!I270","v":0},{"$f":"就労継続支援B型事業所用!I271","v":0},{"$f":"就労継続支援B型事業所用!I272","v":0},{"$f":"就労継続支援B型事業所用!K270","v":0},{"$f":"就労継続支援B型事業所用!K271","v":0},{"$f":"就労継続支援B型事業所用!K272","v":0},{"$f":"就労継続支援B型事業所用!M270","v":0},{"$f":"就労継続支援B型事業所用!M271","v":0},{"$f":"就労継続支援B型事業所用!M272","v":0},{"$f":"就労継続支援B型事業所用!O270","v":0},{"$f":"就労継続支援B型事業所用!O271","v":0},{"$f":"就労継続支援B型事業所用!O272","v":0},{"$f":"就労継続支援B型事業所用!I299","v":0},{"$f":"就労継続支援B型事業所用!I300","v":0},{"$f":"就労継続支援B型事業所用!I301","v":0},{"$f":"就労継続支援B型事業所用!K299","v":0},{"$f":"就労継続支援B型事業所用!K300","v":0},{"$f":"就労継続支援B型事業所用!K301","v":0},{"$f":"就労継続支援B型事業所用!M299","v":0},{"$f":"就労継続支援B型事業所用!M300","v":0},{"$f":"就労継続支援B型事業所用!M301","v":0},{"$f":"就労継続支援B型事業所用!O299","v":0},{"$f":"就労継続支援B型事業所用!O300","v":0},{"$f":"就労継続支援B型事業所用!O301","v":0},{"$f":"就労継続支援B型事業所用!I326","v":0},{"$f":"就労継続支援B型事業所用!I327","v":0},{"$f":"就労継続支援B型事業所用!I328","v":0},{"$f":"就労継続支援B型事業所用!K326","v":0},{"$f":"就労継続支援B型事業所用!K327","v":0},{"$f":"就労継続支援B型事業所用!K328","v":0},{"$f":"就労継続支援B型事業所用!M326","v":0},{"$f":"就労継続支援B型事業所用!M327","v":0},{"$f":"就労継続支援B型事業所用!M328","v":0},{"$f":"就労継続支援B型事業所用!O326","v":0},{"$f":"就労継続支援B型事業所用!O327","v":0},{"$f":"就労継続支援B型事業所用!O328","v":0},{"$f":"就労継続支援B型事業所用!I359","v":0},{"$f":"就労継続支援B型事業所用!L359","v":0},{"$f":"就労継続支援B型事業所用!O359","v":0},{"$f":"就労継続支援B型事業所用!I362","v":0},{"$f":"就労継続支援B型事業所用!L362","v":0},{"$f":"就労継続支援B型事業所用!I366","v":0},{"$f":"就労継続支援B型事業所用!J386","v":0},{"$f":"就労継続支援B型事業所用!J387","v":0},{"$f":"就労継続支援B型事業所用!J388","v":0},{"$f":"就労継続支援B型事業所用!M386","v":0},{"$f":"就労継続支援B型事業所用!M387","v":0},{"$f":"就労継続支援B型事業所用!M388","v":0},{"$f":"就労継続支援B型事業所用!O386","v":0},{"$f":"就労継続支援B型事業所用!O387","v":0},{"$f":"就労継続支援B型事業所用!O388","v":0},{"$f":"就労継続支援B型事業所用!I395","v":0},{"$f":"就労継続支援B型事業所用!L395","v":0},{"$f":"就労継続支援B型事業所用!I399","v":0},{"$f":"就労継続支援B型事業所用!L399","v":0},{"$f":"就労継続支援B型事業所用!I408","v":0},{"$f":"就労継続支援B型事業所用!L408","v":0},{"$f":"就労継続支援B型事業所用!I412","v":0},{"$f":"就労継続支援B型事業所用!L412","v":0},{"$f":"就労継続支援B型事業所用!I422","v":0},{"$f":"就労継続支援B型事業所用!L422","v":0},{"$f":"就労継続支援B型事業所用!G424","v":0},{"$f":"就労継続支援B型事業所用!G425","v":0},{"$f":"就労継続支援B型事業所用!G426","v":0},{"$f":"就労継続支援B型事業所用!I431","v":0},{"$f":"就労継続支援B型事業所用!J452","v":0},{"$f":"就労継続支援B型事業所用!J453","v":0},{"$f":"就労継続支援B型事業所用!J454","v":0},{"$f":"就労継続支援B型事業所用!M452","v":0},{"$f":"就労継続支援B型事業所用!M453","v":0},{"$f":"就労継続支援B型事業所用!M454","v":0},{"$f":"就労継続支援B型事業所用!O452","v":0},{"$f":"就労継続支援B型事業所用!O453","v":0},{"$f":"就労継続支援B型事業所用!O454","v":0},{"$f":"就労継続支援B型事業所用!I462","v":0},{"$f":"就労継続支援B型事業所用!L462","v":0},{"$f":"就労継続支援B型事業所用!I466","v":0},{"$f":"就労継続支援B型事業所用!L466","v":0},{"$f":"就労継続支援B型事業所用!I473","v":0},{"$f":"就労継続支援B型事業所用!L473","v":0},{"$f":"就労継続支援B型事業所用!I477","v":0},{"$f":"就労継続支援B型事業所用!L477","v":0},{"$f":"就労継続支援B型事業所用!I484","v":0},{"$f":"就労継続支援B型事業所用!I493","v":0},{"$f":"就労継続支援B型事業所用!L493","v":0},{"$f":"就労継続支援B型事業所用!G517","v":0},{"$f":"就労継続支援B型事業所用!G518","v":0},{"$f":"就労継続支援B型事業所用!G519","v":0},{"$f":"就労継続支援B型事業所用!G520","v":0},{"$f":"就労継続支援B型事業所用!G521","v":0},{"$f":"就労継続支援B型事業所用!G522","v":0}]

{"sheet":"送迎（集計表）","index":9,"n_rows":4,"n_cols":18,"rows_kept":4,"cut":false,"hidden":true,"merged":[[1,17,2,17],[1,8,1,9],[1,10,1,11],[1,14,1,15],[1,13,2,13],[1,16,2,16]]}
["生活介護における送迎の実態に関する調査票（集計表）",null,null,null,null,null,null,null,null,null,null,"A","B",null,null,null,null,"C"]
[null,null,null,null,null,null,null,null,"調査対象期間",null,"生活介護利用者数",null,"開所日数","送迎の\n有無","送迎利用者数",null,"併設状況","人員配置"]
["都道府県","市区町村","事業所名","送迎加算","電話番号","E-mail","FAX","ご担当者氏名","開始","終了","実人員","延べ人員","日",null,"実人員","延べ人員"]
[{"$f":"#REF!","v":{"$error":"#REF!"}},{"$f":"#REF!","v":{"$error":"#REF!"}},{"$f":"#REF!","v":{"$error":"#REF!"}},{"$f":"#REF!","v":{"$error":"#REF!"}},{"$f":"#REF!","v":{"$error":"#REF!"}},{"$f":"#REF!","v":{"$error":"#REF!"}},{"$f":"#REF!","v":{"$error":"#REF!"}},{"$f":"#REF!","v":{"$error":"#REF!"}},{"$f":"#REF!","v":{"$error":"#REF!"}},{"$f":"#REF!","v":{"$error":"#REF!"}},{"$f":"#REF!","v":{"$error":"#REF!"}},{"$f":"#REF!","v":{"$error":"#REF!"}},{"$f":"#REF!","v":{"$error":"#REF!"}},"あり",{"$f":"#REF!","v":{"$error":"#REF!"}},{"$f":"#REF!","v":{"$error":"#REF!"}},{"$f":"#REF!","v":{"$error":"#REF!"}},{"$f":"#REF!","v":{"$error":"#REF!"}}]